{"text_format":"1","workbook":"xlsx","n_sheets":8,"sheets":["Hoe gebruiken","Toelichting Lijst OA","0.basisgegevens","1.Overzicht vorderingsstaat","2.Vorderingsstaat","3.VS1-A","4.VS1-B","Sjabloon revisies"],"not_rendered":{"charts":0,"images":6,"macros":1,"external_links":1,"defined_names":10,"comments":0,"pivot_tables":0},"unopened":[],"bounds":{"document_bytes":16777216,"sheet_cells":100000,"rows_first":2000,"rows_last":500,"rows_between":2000,"halvings":0,"cell_chars":16384,"cell_head_chars":4096},"cells_cut":0,"cells_raw":0,"read":"whole","date_system":"1900"}

{"sheet":"Hoe gebruiken","index":0,"n_rows":7,"n_cols":3,"rows_kept":7,"cut":false,"hidden":false,"merged":[[1,1,1,2]]}
[]
[null,"Hoe gaat u te werk:"]
[null,1,"Vervolledig de algemene info in werkblad '0.basisgegevens'"]
[null,2,"Vervolledig  werkblad '1.Overzicht vorderingsstaat'"]
[null,3,"Geef aan in werkblad '2.Vorderingsstaat' of gewerkt wordt met :\n• BTW verlegd\n• Informatieplicht onderaannemer"]
[null,4,"Werkblad '3.VS1-A' en '4.VS1-B' zijn vrijblijvend te gebruiken."]
[null,5,"Voeg '1.Overzicht vorderingsstaat' en '2.Vorderingsstaat' toe als voorbladen bij detailstaat"]

{"sheet":"Toelichting Lijst OA","index":1,"n_rows":3,"n_cols":2,"rows_kept":3,"cut":false,"hidden":false,"merged":[[1,1,1,14],[2,1,2,14]]}
[]
[null,"Volgens de bepalingen in artikel 12/1 en 12/2 van de wetgeving op overheidsopdrachten is de opdrachtnemer tijdens de volledige looptijd van de opdrachten gehouden de aanbesteder onverwijld in kennis te stellen van alle gegevens van onderaanneming, alsmede van de vereiste gegevens betreffende eventuele nieuwe onderaannemers die hij nadien bij de uitvoering van deze werken of verlening van deze diensten zal betrekken"]
[null,"Onderstaand stroom diagramma geeft de verwachting van UZ Leuven aan, al naargelang of u met onderaannemer(s), VS of facturen werkt."]

{"sheet":"0.basisgegevens","index":2,"n_rows":22,"n_cols":4,"rows_kept":22,"cut":false,"hidden":false,"merged":[[15,0,15,1],[17,2,17,3]]}
[null,"Pagina in te vullen door UZ Leuven"]
["Projectnummer :","TE"]
["Naam project :","Omschrijving project"]
["Perceelnummer :","Pxx"]
["Naam perceel :","Perceel omschrijving"]
["Naam projectingenieur UZL :"]
["Naam Project coördinator UZL :"]
["Naam uitvoeringscoördinator :"]
["Naam ontwerper :"]
["Naam aannemer :"]
["Naam derden :"]
["Bestelbon nummer : "]
["Datum :"]
[]
[]
["In dit sjabloon kan u werken met een deel UZL, een deel gemeenschappelijk en een deel derden, geef de verdeelseutel aan in werkblad '1.Overzicht vorderingsstaat'.\nDruk op de knop om wat u wenst achtereenvolgens zichtbaar te maken of te verbergen:"]
[]
[null,"UZL zichtbaar","Verdeelsleutel"]
[null,null,"Deel UZL","Deel Derden"]
[null,"Gemeenschappelijk verborgen",{"$f":"'1.Overzicht vorderingsstaat'!S24","v":1},{"$f":"'1.Overzicht vorderingsstaat'!S25","v":0}]
[]
[null,"Derden verborgen"]

{"sheet":"1.Overzicht vorderingsstaat","index":3,"n_rows":116,"n_cols":67,"rows_kept":116,"cut":false,"hidden":false,"merged":[[66,34,66,65],[66,1,66,32],[66,66,68,66],[28,45,28,47],[43,54,43,59],[43,60,43,65],[43,3,43,8],[43,9,43,14],[43,15,43,20],[43,21,43,26],[43,27,43,32],[43,34,43,35],[43,36,43,41],[43,42,43,47],[43,48,43,53],[36,1,36,7],[36,8,36,14],[36,15,36,21],[36,23,36,29],[36,30,36,36],[31,21,31,29],[60,15,60,20],[31,30,31,38],[32,1,32,20],[42,60,42,65],[62,60,62,65],[63,1,63,2],[63,3,63,8],[63,9,63,14],[63,15,63,20],[63,21,63,26],[61,48,61,53],[61,54,61,59],[61,60,61,65],[62,1,62,2],[62,3,62,8],[62,9,62,14],[62,15,62,20],[62,21,62,26],[62,27,62,32],[62,34,62,35],[63,60,63,65],[63,27,63,32],[63,34,63,35],[63,36,63,41],[63,42,63,47],[31,11,31,20],[60,21,60,26],[62,48,62,53],[62,54,62,59],[58,48,58,53],[58,54,58,59],[58,60,58,65],[59,48,59,53],[59,54,59,59],[59,60,59,65],[63,48,63,53],[63,54,63,59],[62,36,62,41],[60,60,60,65],[61,1,61,2],[61,3,61,8],[61,9,61,14],[61,15,61,20],[61,21,61,26],[61,27,61,32],[61,34,61,35],[61,36,61,41],[61,42,61,47],[60,27,60,32],[60,34,60,35],[60,36,60,41],[60,42,60,47],[60,48,60,53],[60,54,60,59],[62,42,62,47],[60,1,60,2],[60,3,60,8],[60,9,60,14],[58,1,58,2],[58,3,58,8],[58,9,58,14],[58,15,58,20],[58,21,58,26],[58,27,58,32],[58,34,58,35],[58,36,58,41],[58,42,58,47],[59,1,59,2],[59,3,59,8],[59,9,59,14],[59,15,59,20],[59,21,59,26],[59,27,59,32],[59,34,59,35],[59,36,59,41],[59,42,59,47],[56,48,56,53],[56,54,56,59],[56,60,56,65],[57,1,57,2],[57,3,57,8],[57,9,57,14],[57,15,57,20],[57,21,57,26],[57,60,57,65],[57,27,57,32],[57,34,57,35],[57,36,57,41],[57,42,57,47],[57,48,57,53],[57,54,57,59],[56,1,56,2],[56,3,56,8],[56,9,56,14],[56,15,56,20],[56,21,56,26],[56,27,56,32],[56,34,56,35],[56,36,56,41],[56,42,56,47],[54,1,54,2],[54,3,54,8],[54,9,54,14],[54,15,54,20],[54,21,54,26],[54,60,54,65],[55,1,55,2],[55,3,55,8],[55,9,55,14],[55,15,55,20],[55,21,55,26],[55,27,55,32],[55,34,55,35],[55,36,55,41],[55,42,55,47],[54,27,54,32],[54,34,54,35],[54,36,54,41],[54,42,54,47],[54,48,54,53],[54,54,54,59],[55,48,55,53],[55,54,55,59],[55,60,55,65],[52,48,52,53],[52,54,52,59],[52,60,52,65],[53,1,53,2],[53,3,53,8],[53,9,53,14],[53,15,53,20],[53,21,53,26],[53,27,53,32],[53,34,53,35],[53,36,53,41],[53,42,53,47],[53,48,53,53],[53,54,53,59],[53,60,53,65],[52,1,52,2],[52,3,52,8],[52,9,52,14],[52,15,52,20],[52,21,52,26],[52,27,52,32],[52,34,52,35],[52,36,52,41],[52,42,52,47],[50,48,50,53],[50,54,50,59],[50,60,50,65],[51,1,51,2],[51,3,51,8],[51,9,51,14],[51,15,51,20],[51,21,51,26],[51,60,51,65],[51,27,51,32],[51,34,51,35],[51,36,51,41],[51,42,51,47],[51,48,51,53],[51,54,51,59],[50,1,50,2],[50,3,50,8],[50,9,50,14],[50,15,50,20],[50,21,50,26],[50,27,50,32],[50,34,50,35],[50,36,50,41],[50,42,50,47],[48,1,48,2],[48,3,48,8],[48,9,48,14],[48,15,48,20],[48,21,48,26],[48,60,48,65],[49,1,49,2],[49,3,49,8],[49,9,49,14],[49,15,49,20],[49,21,49,26],[49,27,49,32],[49,34,49,35],[49,36,49,41],[49,42,49,47],[48,27,48,32],[48,34,48,35],[48,36,48,41],[48,42,48,47],[48,48,48,53],[48,54,48,59],[49,48,49,53],[49,54,49,59],[49,60,49,65],[46,48,46,53],[46,54,46,59],[46,60,46,65],[47,1,47,2],[47,3,47,8],[47,9,47,14],[47,15,47,20],[47,21,47,26],[47,27,47,32],[47,34,47,35],[47,36,47,41],[47,42,47,47],[47,48,47,53],[47,54,47,59],[47,60,47,65],[46,1,46,2],[46,3,46,8],[46,9,46,14],[46,15,46,20],[46,21,46,26],[46,27,46,32],[46,34,46,35],[46,36,46,41],[46,42,46,47],[44,48,44,53],[44,54,44,59],[44,60,44,65],[45,1,45,2],[45,3,45,8],[45,9,45,14],[45,15,45,20],[45,21,45,26],[45,60,45,65],[45,27,45,32],[45,34,45,35],[45,36,45,41],[45,42,45,47],[45,48,45,53],[45,54,45,59],[44,1,44,2],[44,3,44,8],[44,9,44,14],[44,15,44,20],[44,21,44,26],[44,27,44,32],[44,34,44,35],[44,36,44,41],[44,42,44,47],[42,1,42,2],[23,21,23,29],[43,1,43,2],[42,3,42,8],[42,9,42,14],[42,15,42,20],[42,21,42,26],[42,27,42,32],[42,34,42,35],[42,36,42,41],[42,54,42,59],[35,45,35,47],[42,42,42,47],[41,27,41,32],[41,34,41,35],[41,36,41,41],[41,42,41,47],[40,1,40,32],[37,8,37,14],[37,15,37,21],[36,37,36,43],[36,45,36,47],[26,1,26,21],[26,23,26,43],[27,1,27,7],[27,8,27,14],[27,15,27,21],[27,30,27,36],[27,37,27,43],[27,45,27,47],[24,21,24,29],[24,30,24,38],[24,39,24,47],[23,11,24,17],[23,1,23,10],[24,1,24,10],[24,18,24,20],[23,18,23,20],[17,45,17,47],[18,45,18,47],[22,30,22,38],[22,39,22,47],[7,53,7,61],[13,21,13,29],[13,30,13,38],[13,39,13,47],[13,1,13,10],[18,1,18,7],[18,8,18,14],[18,15,18,21],[18,23,18,29],[18,30,18,36],[18,37,18,43],[17,1,17,7],[17,8,17,14],[17,15,17,21],[17,30,17,36],[17,37,17,43],[23,30,23,38],[23,39,23,47],[10,45,10,48],[10,49,10,52],[10,53,10,57],[10,58,10,61],[11,45,11,53],[11,54,11,61],[13,11,13,20],[4,10,4,25],[5,10,5,25],[6,1,6,9],[6,10,6,25],[4,27,4,35],[5,45,5,52],[5,53,5,61],[8,1,8,9],[9,1,9,9],[8,10,8,25],[9,10,9,25],[4,45,4,47],[4,48,4,50],[16,1,16,21],[16,23,16,43],[8,45,8,52],[8,53,8,61],[6,45,6,52],[6,53,6,61],[9,45,9,48],[9,49,9,52],[9,53,9,57],[9,58,9,61],[15,1,15,20],[15,21,15,29],[15,30,15,38],[15,39,15,47],[14,1,14,20],[14,21,14,29],[14,30,14,38],[14,39,14,47],[7,45,7,52],[19,8,19,14],[19,15,19,21],[19,30,19,36],[19,37,19,43],[21,21,21,29],[21,30,21,38],[21,39,21,47],[22,1,22,20],[22,21,22,29],[21,1,21,10],[21,11,21,20],[0,1,0,65],[2,1,2,9],[2,10,2,25],[2,27,2,35],[2,36,2,43],[3,1,3,9],[3,10,3,25],[3,27,3,35],[3,36,3,43],[2,45,2,61],[3,45,3,61],[4,36,4,43],[7,1,7,9],[7,10,7,25],[12,1,12,9],[4,51,4,53],[4,54,4,56],[4,57,4,58],[4,59,4,61],[4,1,4,9],[5,1,5,9],[28,8,28,14],[29,8,29,14],[28,15,28,21],[29,15,29,21],[28,30,28,36],[28,37,28,43],[29,30,29,36],[29,37,29,43],[34,1,34,21],[34,23,34,43],[35,1,35,7],[35,8,35,14],[35,15,35,21],[35,30,35,36],[35,37,35,43],[32,21,32,29],[32,30,32,38],[32,39,32,47],[33,1,33,20],[31,1,31,10],[31,39,31,47],[10,1,10,9],[10,10,10,25],[11,1,11,9],[11,10,11,25],[7,27,7,32],[7,33,7,43],[5,27,5,35],[5,36,5,43],[67,60,67,65],[68,1,68,2],[68,3,68,8],[68,9,68,14],[68,15,68,20],[68,21,68,26],[68,27,68,32],[68,34,68,35],[68,36,68,41],[68,42,68,47],[68,48,68,53],[68,54,68,59],[68,60,68,65],[67,1,67,2],[67,3,67,8],[67,9,67,14],[67,15,67,20],[67,21,67,26],[67,27,67,32],[67,34,67,35],[67,36,67,41],[67,42,67,47],[69,1,69,2],[69,3,69,8],[69,9,69,14],[69,15,69,20],[69,21,69,26],[69,27,69,32],[69,34,69,35],[69,36,69,41],[69,42,69,47],[33,21,33,29],[33,30,33,38],[33,39,33,47],[67,48,67,53],[67,54,67,59],[41,48,41,53],[41,54,41,59],[42,48,42,53],[65,1,65,66],[40,34,40,65],[37,30,37,36],[37,37,37,43],[39,1,39,66],[40,66,42,66],[41,1,41,2],[41,3,41,8],[41,9,41,14],[41,15,41,20],[41,21,41,26],[41,60,41,65],[69,48,69,53],[69,54,69,59],[69,60,69,65],[70,48,70,53],[70,54,70,59],[70,60,70,65],[71,1,71,2],[71,3,71,8],[71,9,71,14],[71,15,71,20],[71,21,71,26],[71,27,71,32],[71,34,71,35],[71,36,71,41],[71,42,71,47],[71,48,71,53],[71,54,71,59],[71,60,71,65],[70,1,70,2],[70,3,70,8],[70,9,70,14],[70,15,70,20],[70,21,70,26],[70,27,70,32],[70,34,70,35],[70,36,70,41],[70,42,70,47],[72,48,72,53],[72,54,72,59],[72,60,72,65],[73,1,73,2],[73,3,73,8],[73,9,73,14],[73,15,73,20],[73,21,73,26],[73,27,73,32],[73,34,73,35],[73,36,73,41],[73,42,73,47],[73,48,73,53],[73,54,73,59],[73,60,73,65],[72,1,72,2],[72,3,72,8],[72,9,72,14],[72,15,72,20],[72,21,72,26],[72,27,72,32],[72,34,72,35],[72,36,72,41],[72,42,72,47],[74,48,74,53],[74,54,74,59],[74,60,74,65],[75,1,75,2],[75,3,75,8],[75,9,75,14],[75,15,75,20],[75,21,75,26],[75,27,75,32],[75,34,75,35],[75,36,75,41],[75,42,75,47],[75,48,75,53],[75,54,75,59],[75,60,75,65],[74,1,74,2],[74,3,74,8],[74,9,74,14],[74,15,74,20],[74,21,74,26],[74,27,74,32],[74,34,74,35],[74,36,74,41],[74,42,74,47],[76,48,76,53],[76,54,76,59],[76,60,76,65],[77,1,77,2],[77,3,77,8],[77,9,77,14],[77,15,77,20],[77,21,77,26],[77,27,77,32],[77,34,77,35],[77,36,77,41],[77,42,77,47],[77,48,77,53],[77,54,77,59],[77,60,77,65],[76,1,76,2],[76,3,76,8],[76,9,76,14],[76,15,76,20],[76,21,76,26],[76,27,76,32],[76,34,76,35],[76,36,76,41],[76,42,76,47],[78,48,78,53],[78,54,78,59],[78,60,78,65],[79,1,79,2],[79,3,79,8],[79,9,79,14],[79,15,79,20],[79,21,79,26],[79,27,79,32],[79,34,79,35],[79,36,79,41],[79,42,79,47],[79,48,79,53],[79,54,79,59],[79,60,79,65],[78,1,78,2],[78,3,78,8],[78,9,78,14],[78,15,78,20],[78,21,78,26],[78,27,78,32],[78,34,78,35],[78,36,78,41],[78,42,78,47],[80,48,80,53],[80,54,80,59],[80,60,80,65],[81,1,81,2],[81,3,81,8],[81,9,81,14],[81,15,81,20],[81,21,81,26],[81,27,81,32],[81,34,81,35],[81,36,81,41],[81,42,81,47],[81,48,81,53],[81,54,81,59],[81,60,81,65],[80,1,80,2],[80,3,80,8],[80,9,80,14],[80,15,80,20],[80,21,80,26],[80,27,80,32],[80,34,80,35],[80,36,80,41],[80,42,80,47],[82,48,82,53],[82,54,82,59],[82,60,82,65],[83,1,83,2],[83,3,83,8],[83,9,83,14],[83,15,83,20],[83,21,83,26],[83,27,83,32],[83,34,83,35],[83,36,83,41],[83,42,83,47],[83,48,83,53],[83,54,83,59],[83,60,83,65],[82,1,82,2],[82,3,82,8],[82,9,82,14],[82,15,82,20],[82,21,82,26],[82,27,82,32],[82,34,82,35],[82,36,82,41],[82,42,82,47],[84,48,84,53],[84,54,84,59],[84,60,84,65],[85,1,85,2],[85,3,85,8],[85,9,85,14],[85,15,85,20],[85,21,85,26],[85,27,85,32],[85,34,85,35],[85,36,85,41],[85,42,85,47],[85,48,85,53],[85,54,85,59],[85,60,85,65],[84,1,84,2],[84,3,84,8],[84,9,84,14],[84,15,84,20],[84,21,84,26],[84,27,84,32],[84,34,84,35],[84,36,84,41],[84,42,84,47],[86,48,86,53],[86,54,86,59],[86,60,86,65],[87,1,87,2],[87,3,87,8],[87,9,87,14],[87,15,87,20],[87,21,87,26],[87,27,87,32],[87,34,87,35],[87,36,87,41],[87,42,87,47],[87,48,87,53],[87,54,87,59],[87,60,87,65],[86,1,86,2],[86,3,86,8],[86,9,86,14],[86,15,86,20],[86,21,86,26],[86,27,86,32],[86,34,86,35],[86,36,86,41],[86,42,86,47],[88,48,88,53],[88,54,88,59],[88,60,88,65],[89,1,89,2],[89,3,89,8],[89,9,89,14],[89,15,89,20],[89,21,89,26],[89,27,89,32],[89,34,89,35],[89,36,89,41],[89,42,89,47],[89,48,89,53],[89,54,89,59],[89,60,89,65],[88,1,88,2],[88,3,88,8],[88,9,88,14],[88,15,88,20],[88,21,88,26],[88,27,88,32],[88,34,88,35],[88,36,88,41],[88,42,88,47],[91,1,91,66],[92,1,92,32],[92,34,92,65],[92,66,94,66],[93,1,93,2],[93,3,93,8],[93,9,93,14],[93,15,93,20],[93,21,93,26],[93,27,93,32],[93,34,93,35],[93,36,93,41],[93,42,93,47],[93,48,93,53],[93,54,93,59],[93,60,93,65],[94,1,94,2],[94,3,94,8],[94,9,94,14],[94,15,94,20],[94,21,94,26],[94,27,94,32],[94,34,94,35],[94,36,94,41],[94,42,94,47],[94,48,94,53],[94,54,94,59],[94,60,94,65],[95,1,95,2],[95,3,95,8],[95,9,95,14],[95,15,95,20],[95,21,95,26],[95,27,95,32],[95,34,95,35],[95,36,95,41],[95,42,95,47],[95,48,95,53],[95,54,95,59],[95,60,95,65],[96,60,96,65],[97,1,97,2],[97,3,97,8],[97,9,97,14],[97,15,97,20],[97,21,97,26],[97,27,97,32],[97,34,97,35],[97,36,97,41],[97,42,97,47],[97,48,97,53],[97,54,97,59],[97,60,97,65],[96,1,96,2],[96,3,96,8],[96,9,96,14],[96,15,96,20],[96,21,96,26],[96,27,96,32],[96,34,96,35],[96,36,96,41],[96,42,96,47],[96,48,96,53],[96,54,96,59],[98,60,98,65],[99,1,99,2],[99,3,99,8],[99,9,99,14],[99,15,99,20],[99,21,99,26],[99,27,99,32],[99,34,99,35],[99,36,99,41],[99,42,99,47],[99,48,99,53],[99,54,99,59],[99,60,99,65],[98,1,98,2],[98,3,98,8],[98,9,98,14],[98,15,98,20],[98,21,98,26],[98,27,98,32],[98,34,98,35],[98,36,98,41],[98,42,98,47],[98,48,98,53],[98,54,98,59],[100,60,100,65],[101,1,101,2],[101,3,101,8],[101,9,101,14],[101,15,101,20],[101,21,101,26],[101,27,101,32],[101,34,101,35],[101,36,101,41],[101,42,101,47],[101,48,101,53],[101,54,101,59],[101,60,101,65],[100,1,100,2],[100,3,100,8],[100,9,100,14],[100,15,100,20],[100,21,100,26],[100,27,100,32],[100,34,100,35],[100,36,100,41],[100,42,100,47],[100,48,100,53],[100,54,100,59],[102,60,102,65],[103,1,103,2],[103,3,103,8],[103,9,103,14],[103,15,103,20],[103,21,103,26],[103,27,103,32],[103,34,103,35],[103,36,103,41],[103,42,103,47],[103,48,103,53],[103,54,103,59],[103,60,103,65],[102,1,102,2],[102,3,102,8],[102,9,102,14],[102,15,102,20],[102,21,102,26],[102,27,102,32],[102,34,102,35],[102,36,102,41],[102,42,102,47],[102,48,102,53],[102,54,102,59],[104,60,104,65],[105,1,105,2],[105,3,105,8],[105,9,105,14],[105,15,105,20],[105,21,105,26],[105,27,105,32],[105,34,105,35],[105,36,105,41],[105,42,105,47],[105,48,105,53],[105,54,105,59],[105,60,105,65],[104,1,104,2],[104,3,104,8],[104,9,104,14],[104,15,104,20],[104,21,104,26],[104,27,104,32],[104,34,104,35],[104,36,104,41],[104,42,104,47],[104,48,104,53],[104,54,104,59],[106,60,106,65],[107,1,107,2],[107,3,107,8],[107,9,107,14],[107,15,107,20],[107,21,107,26],[107,27,107,32],[107,34,107,35],[107,36,107,41],[107,42,107,47],[107,48,107,53],[107,54,107,59],[107,60,107,65],[106,1,106,2],[106,3,106,8],[106,9,106,14],[106,15,106,20],[106,21,106,26],[106,27,106,32],[106,34,106,35],[106,36,106,41],[106,42,106,47],[106,48,106,53],[106,54,106,59],[108,60,108,65],[109,1,109,2],[109,3,109,8],[109,9,109,14],[109,15,109,20],[109,21,109,26],[109,27,109,32],[109,34,109,35],[109,36,109,41],[109,42,109,47],[109,48,109,53],[109,54,109,59],[109,60,109,65],[108,1,108,2],[108,3,108,8],[108,9,108,14],[108,15,108,20],[108,21,108,26],[108,27,108,32],[108,34,108,35],[108,36,108,41],[108,42,108,47],[108,48,108,53],[108,54,108,59],[110,60,110,65],[111,1,111,2],[111,3,111,8],[111,9,111,14],[111,15,111,20],[111,21,111,26],[111,27,111,32],[111,34,111,35],[111,36,111,41],[111,42,111,47],[111,48,111,53],[111,54,111,59],[111,60,111,65],[110,1,110,2],[110,3,110,8],[110,9,110,14],[110,15,110,20],[110,21,110,26],[110,27,110,32],[110,34,110,35],[110,36,110,41],[110,42,110,47],[110,48,110,53],[110,54,110,59],[113,27,113,32],[113,34,113,35],[113,36,113,41],[113,42,113,47],[113,48,113,53],[113,54,113,59],[113,60,113,65],[112,1,112,2],[112,3,112,8],[112,9,112,14],[112,15,112,20],[112,21,112,26],[112,27,112,32],[112,34,112,35],[112,36,112,41],[112,42,112,47],[112,48,112,53],[112,54,112,59],[6,27,6,35],[6,36,6,43],[114,60,114,65],[115,1,115,2],[115,3,115,8],[115,9,115,14],[115,15,115,20],[115,21,115,26],[115,27,115,32],[115,34,115,35],[115,36,115,41],[115,42,115,47],[115,48,115,53],[115,54,115,59],[115,60,115,65],[114,1,114,2],[114,3,114,8],[114,9,114,14],[114,15,114,20],[114,21,114,26],[114,27,114,32],[114,34,114,35],[114,36,114,41],[114,42,114,47],[114,48,114,53],[114,54,114,59],[112,60,112,65],[113,1,113,2],[113,3,113,8],[113,9,113,14],[113,15,113,20]],"merged_total":1001,"flags":["merged_cut"]}
[null,{"$f":"CONCATENATE(\"OVERZICHT VORDERINGSSTAAT \",AK3)","v":"OVERZICHT VORDERINGSSTAAT 0"}]
[null,null,null,null,null,null,null,null,null,null,null,null,null,null,null,null,null,null,null,null,null,null,null,null,null,null,null,null,null,null,null,null,null,null,null,null,null,null,null,null,null,null,null,null,null,null,null,null,null,null,null,null,null,null,null,null,null,null,null,null,null,null,null,null,null,"STD-AL-854-MD21735 R8"]
[null,"Dossier :",null,null,null,null,null,null,null,null,{"$f":"IF('0.basisgegevens'!$B$2=\"\",\"\",'0.basisgegevens'!$B$2)","v":"TE"},null,null,null,null,null,null,null,null,null,null,null,null,null,null,null,null,"Vorderingsstaat nr. :",null,null,null,null,null,null,null,null,0,null,null,null,null,null,null,null,null,"Herzieningscoëfficiënten"]
[null,"Naam dossier :",null,null,null,null,null,null,null,null,{"$f":"'0.basisgegevens'!$B$3","v":"Omschrijving project"},null,null,null,null,null,null,null,null,null,null,null,null,null,null,null,null,"Omschrijving :",null,null,null,null,null,null,null,null,null,null,null,null,null,null,null,null,null,"p=P * (a*s/S + b*i/I + c)"]
[null,"Perceelnummer :",null,null,null,null,null,null,null,null,{"$f":"IF('0.basisgegevens'!$B$4=\"\",\"\",'0.basisgegevens'!$B$4)","v":"Pxx"},null,null,null,null,null,null,null,null,null,null,null,null,null,null,null,null,"Index :",null,null,null,null,null,null,null,null,null,null,null,null,null,null,null,null,null,"a =",null,null,0.4,null,null,"b =",null,null,0.4,null,null,"c =",null,0.2]
[null,"Naam Perceel :",null,null,null,null,null,null,null,null,{"$f":"IF('0.basisgegevens'!$B$5=\"\",\"\",'0.basisgegevens'!$B$5)","v":"Perceel omschrijving"},null,null,null,null,null,null,null,null,null,null,null,null,null,null,null,null,"Periode van :",null,null,null,null,null,null,null,null,null,null,null,null,null,null,null,null,null,"s ="]
[null,"Projectingenieur UZL :",null,null,null,null,null,null,null,null,{"$f":"IF('0.basisgegevens'!$B$6=\"\",\"\",'0.basisgegevens'!$B$6)","v":""},null,null,null,null,null,null,null,null,null,null,null,null,null,null,null,null,"Periode tot :",null,null,null,null,null,null,null,null,null,null,null,null,null,null,null,null,null,"S ="]
[null,"Projectcoördinator UZL :",null,null,null,null,null,null,null,null,{"$f":"IF('0.basisgegevens'!$B$7=\"\",\"\",'0.basisgegevens'!$B$7)","v":""},null,null,null,null,null,null,null,null,null,null,null,null,null,null,null,null,"Bestelbon Nr : ",null,null,null,null,null,{"$f":"IF('0.basisgegevens'!$B$12=\"\",\"\",'0.basisgegevens'!$B$12)","v":""},null,null,null,null,null,null,null,null,null,null,null,"i ="]
[null,"Uitvoeringscoördinator :",null,null,null,null,null,null,null,null,{"$f":"IF('0.basisgegevens'!$B$8=\"\",\"\",'0.basisgegevens'!$B$8)","v":""},null,null,null,null,null,null,null,null,null,null,null,null,null,null,null,null,null,null,null,null,null,null,null,null,null,null,null,null,null,null,null,null,null,null,"I ="]
[null,"Ontwerper :",null,null,null,null,null,null,null,null,{"$f":"IF('0.basisgegevens'!$B$9=\"\",\"\",'0.basisgegevens'!$B$9)","v":""},null,null,null,null,null,null,null,null,null,null,null,null,null,null,null,null,null,null,null,null,null,null,null,null,null,null,null,null,null,null,null,null,null,null,"s/S =",null,null,null,{"$f":"IFERROR(ROUND(BB6/BB7,5),\"\")","v":""},null,null,null,"i/I =",null,null,null,null,{"$f":"IFERROR(ROUND(BB8/BB9,5),\"\")","v":""}]
[null,"Aannemer :",null,null,null,null,null,null,null,null,{"$f":"IF('0.basisgegevens'!$B$10=\"\",\"\",'0.basisgegevens'!$B$10)","v":""},null,null,null,null,null,null,null,null,null,null,null,null,null,null,null,null,null,null,null,null,null,null,null,null,null,null,null,null,null,null,null,null,null,null,"a*s/S =",null,null,null,{"$f":"IFERROR(ROUND(AW5*AX10,5),\"\")","v":""},null,null,null,"b*i/I =",null,null,null,null,{"$f":"IFERROR(ROUND(BC5*BG10,5),\"\")","v":""}]
[null,"Derden :",null,null,null,null,null,null,null,null,{"$f":"IF('0.basisgegevens'!$B$11=\"\",\"\",'0.basisgegevens'!$B$11)","v":""},null,null,null,null,null,null,null,null,null,null,null,null,null,null,null,null,null,null,null,null,null,null,null,null,null,null,null,null,null,null,null,null,null,null,"p=P *",null,null,null,null,null,null,null,null,{"$f":"IFERROR(ROUND(AX11+BG11+BH5,5),\"\")","v":""}]
[]
[null,"DEEL UZL",null,null,null,null,null,null,null,null,null,null,null,null,null,null,null,null,null,null,null,"Bedrag",null,null,null,null,null,null,null,null,"BTW",null,null,null,null,null,null,null,null,"Totaal"]
[null,"Basisbestelbon",null,null,null,null,null,null,null,null,null,null,null,null,null,null,null,null,null,null,null,null,null,null,null,null,null,null,null,null,{"$f":"V15*AT19","v":0},null,null,null,null,null,null,null,null,{"$f":"V15+AE15","v":0}]
[]
[null,{"$f":"CONCATENATE(\"Totalen huidige Vorderingsstaat : nr. \",AK3)","v":"Totalen huidige Vorderingsstaat : nr. 0"},null,null,null,null,null,null,null,null,null,null,null,null,null,null,null,null,null,null,null,null,null,"Totalen vorige Vorderingsstaten"]
[null,null,null,null,null,null,null,null,"Te herzien bedrag",null,null,null,null,null,null,"Herzieningsbedrag",null,null,null,null,null,null,null,null,null,null,null,null,null,null,"Te herzien bedrag",null,null,null,null,null,null,"Herzieningsbedrag",null,null,null,null,null,null,null,"BTW"]
[null,"Deel A excl. BTW :",null,null,null,null,null,null,{"$f":"SUMIF(B45:C64,$AK$3,D45:I64)","v":0},null,null,null,null,null,null,{"$f":"SUMIF(B45:C64,AK3,J45:O64)","v":0},null,null,null,null,null,null,null,"Deel A excl. BTW :",null,null,null,null,null,null,{"$f":"D43-I19","v":0},null,null,null,null,null,null,{"$f":"J43-P19","v":0},null,null,null,null,null,null,null,0.21]
[null,"Deel B excl. BTW :",null,null,null,null,null,null,{"$f":"SUMIF(AI45:AJ64,$AK$3,AK45:AP64)","v":0},null,null,null,null,null,null,{"$f":"SUMIF(AI45:AJ64,$AK$3,AQ45:AV64)","v":0},null,null,null,null,null,null,null,"Deel B excl. BTW :",null,null,null,null,null,null,{"$f":"AK43-I20","v":0},null,null,null,null,null,null,{"$f":"AQ43-P20","v":0}]
[]
[null,"DEEL gemeenschappelijk",null,null,null,null,null,null,null,null,null,null,null,null,null,null,null,null,null,null,null,"Bedrag",null,null,null,null,null,null,null,null,"BTW",null,null,null,null,null,null,null,null,"Totaal"]
[null,"Basisbestelbon",null,null,null,null,null,null,null,null,null,null,null,null,null,null,null,null,null,null,null,null,null,null,null,null,null,null,null,null,{"$f":"V23*AT29","v":0},null,null,null,null,null,null,null,null,{"$f":"V23+AE23","v":0}]
[null,"aandeel UZL",null,null,null,null,null,null,null,null,null,"Verdeelsleutel:",null,null,null,null,null,null,1,null,null,{"$f":"V23*S24","v":0},null,null,null,null,null,null,null,null,{"$f":"V24*AT19","v":0},null,null,null,null,null,null,null,null,{"$f":"V24+AE24","v":0}]
[null,"aandeel Derden",null,null,null,null,null,null,null,null,null,null,null,null,null,null,null,null,{"$f":"1-S24","v":0},null,null,{"$f":"V23*S25","v":0},null,null,null,null,null,null,null,null,{"$f":"V25*AT37","v":0},null,null,null,null,null,null,null,null,0]
[]
[null,{"$f":"CONCATENATE(\"Totalen huidige Vorderingsstaat : nr. \",AK3)","v":"Totalen huidige Vorderingsstaat : nr. 0"},null,null,null,null,null,null,null,null,null,null,null,null,null,null,null,null,null,null,null,null,null,"Totalen vorige Vorderingsstaten"]
[null,null,null,null,null,null,null,null,"Te herzien bedrag",null,null,null,null,null,null,"Herzieningsbedrag",null,null,null,null,null,null,null,null,null,null,null,null,null,null,"Te herzien bedrag",null,null,null,null,null,null,"Herzieningsbedrag"]
[null,"Deel A excl. BTW :",null,null,null,null,null,null,{"$f":"SUMIF(B71:C90,$AK$3,D71:I90)","v":0},null,null,null,null,null,null,{"$f":"SUMIF(B71:C90,AK3,J71:O90)","v":0},null,null,null,null,null,null,null,"Deel A excl. BTW :",null,null,null,null,null,null,{"$f":"D69-I29","v":0},null,null,null,null,null,null,{"$f":"J69-P29","v":0}]
[null,"Deel B excl. BTW :",null,null,null,null,null,null,{"$f":"SUMIF(AI71:AJ90,$AK$3,AK71:AP90)","v":0},null,null,null,null,null,null,{"$f":"SUMIF(AI71:AJ90,AK3,AQ71:AV90)","v":0},null,null,null,null,null,null,null,"Deel B excl. BTW :",null,null,null,null,null,null,{"$f":"AK69-I30","v":0},null,null,null,null,null,null,{"$f":"AQ69-P30","v":0}]
[]
[null,"DEEL Derden",null,null,null,null,null,null,null,null,null,null,null,null,null,null,null,null,null,null,null,"Bedrag",null,null,null,null,null,null,null,null,"BTW",null,null,null,null,null,null,null,null,"Totaal"]
[null,"Aandeel Derden in bestelbon",null,null,null,null,null,null,null,null,null,null,null,null,null,null,null,null,null,null,null,null,null,null,null,null,null,null,null,null,{"$f":"V33*AT37","v":0},null,null,null,null,null,null,null,null,{"$f":"V33+AE33","v":0}]
[]
[null,{"$f":"CONCATENATE(\"Totalen huidige Vorderingsstaat : nr. \",AK3)","v":"Totalen huidige Vorderingsstaat : nr. 0"},null,null,null,null,null,null,null,null,null,null,null,null,null,null,null,null,null,null,null,null,null,"Totalen vorige Vorderingsstaten"]
[null,null,null,null,null,null,null,null,"Te herzien bedrag",null,null,null,null,null,null,"Herzieningsbedrag",null,null,null,null,null,null,null,null,null,null,null,null,null,null,"Te herzien bedrag",null,null,null,null,null,null,"Herzieningsbedrag",null,null,null,null,null,null,null,"BTW"]
[null,"Deel A excl. BTW :",null,null,null,null,null,null,{"$f":"SUMIF(B97:C116,$AK$3,D97:I116)","v":0},null,null,null,null,null,null,{"$f":"SUMIF(B97:C116,AK3,J97:O116)","v":0},null,null,null,null,null,null,null,"Deel A excl. BTW :",null,null,null,null,null,null,{"$f":"D95-I37","v":0},null,null,null,null,null,null,{"$f":"J95-P37","v":0},null,null,null,null,null,null,null,0.21]
[null,"Deel B excl. BTW :",null,null,null,null,null,null,{"$f":"SUMIF(AI97:AJ116,$AK$3,AK97:AP116)","v":0},null,null,null,null,null,null,{"$f":"SUMIF(AI97:AJ116,AK3,AQ97:AV116)","v":0},null,null,null,null,null,null,null,"Deel B excl. BTW :",null,null,null,null,null,null,{"$f":"AK95-I38","v":0},null,null,null,null,null,null,{"$f":"AQ95-P38","v":0}]
[]
[null,"OVERZICHT VORDERINGSSTATEN DEEL UZL"]
[null,"Overzicht vorderingsstaten deel A",null,null,null,null,null,null,null,null,null,null,null,null,null,null,null,null,null,null,null,null,null,null,null,null,null,null,null,null,null,null,null,null,"Overzicht vorderingsstaten deel B",null,null,null,null,null,null,null,null,null,null,null,null,null,null,null,null,null,null,null,null,null,null,null,null,null,null,null,null,null,null,null,"Vorderings % (excl.BTW)"]
[null,"Nr.",null,"Te herzien bedrag",null,null,null,null,null,"Herzieningsbedrag",null,null,null,null,null,"Bedrag excl. BTW",null,null,null,null,null,"BTW",null,null,null,null,null,"Bedrag incl BTW",null,null,null,null,null,null,"Nr.",null,"Te herzien bedrag",null,null,null,null,null,"Herzieningsbedrag",null,null,null,null,null,"Bedrag excl. BTW",null,null,null,null,null,"BTW",null,null,null,null,null,"Bedrag incl BTW"]
[null,"Tot.",null,{"$f":"SUM(D45:I64)","v":0},{"$f":"IFERROR(IF(SUM(E49:E1039)<>0,SUM(E49:E1039),\"\"),\"\")","v":""},"","","","",{"$f":"SUM(J45:O64)","v":0},"","","","","",{"$f":"SUM(P45:U64)","v":0},"","","","","",{"$f":"SUM(V45:AA64)","v":0},"","","","","",{"$f":"SUM(AB45:AG64)","v":0},"","","","","",null,"Tot.",null,{"$f":"SUM(AK45:AP64)","v":0},{"$f":"IFERROR(IF(SUM(AL49:AL1039)<>0,SUM(AL49:AL1039),\"\"),\"\")","v":""},"","","","",{"$f":"SUM(AQ45:AV64)","v":0},{"$f":"IFERROR(IF(SUM(AR49:AR1039)<>0,SUM(AR49:AR1039),\"\"),\"\")","v":""},"","","","",{"$f":"SUM(AW45:BB64)","v":0},{"$f":"IFERROR(IF(SUM(AX49:AX1039)<>0,SUM(AX49:AX1039),\"\"),\"\")","v":""},"","","","",{"$f":"SUM(BC45:BH64)","v":0},{"$f":"IFERROR(IF(SUM(BD49:BD1039)<>0,SUM(BD49:BD1039),\"\"),\"\")","v":""},"","","","",{"$f":"SUM(BI45:BN64)","v":0},{"$f":"IFERROR(IF(SUM(BJ49:BJ1039)<>0,SUM(BJ49:BJ1039),\"\"),\"\")","v":""},"","","",""]
[null,0,null,0,null,null,null,null,null,0,null,null,null,null,null,0,null,null,null,null,null,0,null,null,null,null,null,0,null,null,null,null,null,null,0,null,0,null,null,null,null,null,0,null,null,null,null,null,0,null,null,null,null,null,0,null,null,null,null,null,0]
[null,1,null,null,null,null,null,null,null,null,null,null,null,null,null,{"$f":"D45+J45","v":0},null,null,null,null,null,{"$f":"IF('2.Vorderingsstaat'!$AC$6=TRUE,\"BTW verlegd\",P45*$AT$19)","v":0},null,null,null,null,null,{"$f":"IF('2.Vorderingsstaat'!$AC$6=TRUE,\"BTW verlegd\",V45+P45)","v":0},null,null,null,null,null,null,1,null,null,null,null,null,null,null,null,null,null,null,null,null,{"$f":"AK45+AQ45","v":0},null,null,null,null,null,{"$f":"IF('2.Vorderingsstaat'!$AC$6=TRUE,\"BTW verlegd\",AW45*$AT$19)","v":0},null,null,null,null,null,{"$f":"IF('2.Vorderingsstaat'!$AC$6=TRUE,\"BTW verlegd\",BC45+AW45)","v":0},null,null,null,null,null,{"$f":"IF(D45=\"\",0,IFERROR((D45+AK45)/$V$15,0))","v":0}]
[null,2,null,null,null,null,null,null,null,null,null,null,null,null,null,{"$f":"D46+J46","v":0},null,null,null,null,null,{"$f":"IF('2.Vorderingsstaat'!$AC$6=TRUE,\"BTW verlegd\",P46*$AT$19)","v":0},null,null,null,null,null,{"$f":"IF('2.Vorderingsstaat'!$AC$6=TRUE,\"BTW verlegd\",V46+P46)","v":0},null,null,null,null,null,null,2,null,null,null,null,null,null,null,null,null,null,null,null,null,{"$f":"AK46+AQ46","v":0},null,null,null,null,null,{"$f":"IF('2.Vorderingsstaat'!$AC$6=TRUE,\"BTW verlegd\",AW46*$AT$19)","v":0},null,null,null,null,null,{"$f":"IF('2.Vorderingsstaat'!$AC$6=TRUE,\"BTW verlegd\",BC46+AW46)","v":0},null,null,null,null,null,{"$f":"IF(D46=\"\",0,IFERROR((SUM($AK$45:AP46,$D$45:I46)/$V$15),0))","v":0}]
[null,3,null,null,null,null,null,null,null,null,null,null,null,null,null,0,null,null,null,null,null,{"$f":"IF('2.Vorderingsstaat'!$AC$6=TRUE,\"BTW verlegd\",P47*$AT$19)","v":0},null,null,null,null,null,{"$f":"IF('2.Vorderingsstaat'!$AC$6=TRUE,\"BTW verlegd\",V47+P47)","v":0},null,null,null,null,null,null,3,null,null,null,null,null,null,null,null,null,null,null,null,null,0,null,null,null,null,null,{"$f":"IF('2.Vorderingsstaat'!$AC$6=TRUE,\"BTW verlegd\",AW47*$AT$19)","v":0},null,null,null,null,null,{"$f":"IF('2.Vorderingsstaat'!$AC$6=TRUE,\"BTW verlegd\",BC47+AW47)","v":0},null,null,null,null,null,{"$f":"IF(D47=\"\",0,IFERROR((SUM($AK$45:AP47,$D$45:I47)/$V$15),0))","v":0}]
[null,4,null,null,null,null,null,null,null,null,null,null,null,null,null,0,null,null,null,null,null,{"$f":"IF('2.Vorderingsstaat'!$AC$6=TRUE,\"BTW verlegd\",P48*$AT$19)","v":0},null,null,null,null,null,{"$f":"IF('2.Vorderingsstaat'!$AC$6=TRUE,\"BTW verlegd\",V48+P48)","v":0},null,null,null,null,null,null,4,null,null,null,null,null,null,null,null,null,null,null,null,null,0,null,null,null,null,null,{"$f":"IF('2.Vorderingsstaat'!$AC$6=TRUE,\"BTW verlegd\",AW48*$AT$19)","v":0},null,null,null,null,null,{"$f":"IF('2.Vorderingsstaat'!$AC$6=TRUE,\"BTW verlegd\",BC48+AW48)","v":0},null,null,null,null,null,{"$f":"IF(D48=\"\",0,IFERROR((SUM($AK$45:AP48,$D$45:I48)/$V$15),0))","v":0}]
[null,5,null,null,null,null,null,null,null,null,null,null,null,null,null,0,null,null,null,null,null,{"$f":"IF('2.Vorderingsstaat'!$AC$6=TRUE,\"BTW verlegd\",P49*$AT$19)","v":0},null,null,null,null,null,{"$f":"IF('2.Vorderingsstaat'!$AC$6=TRUE,\"BTW verlegd\",V49+P49)","v":0},null,null,null,null,null,null,5,null,null,null,null,null,null,null,null,null,null,null,null,null,0,null,null,null,null,null,{"$f":"IF('2.Vorderingsstaat'!$AC$6=TRUE,\"BTW verlegd\",AW49*$AT$19)","v":0},null,null,null,null,null,{"$f":"IF('2.Vorderingsstaat'!$AC$6=TRUE,\"BTW verlegd\",BC49+AW49)","v":0},null,null,null,null,null,{"$f":"IF(D49=\"\",0,IFERROR((SUM($AK$45:AP49,$D$45:I49)/$V$15),0))","v":0}]
[null,6,null,null,null,null,null,null,null,null,null,null,null,null,null,0,null,null,null,null,null,{"$f":"IF('2.Vorderingsstaat'!$AC$6=TRUE,\"BTW verlegd\",P50*$AT$19)","v":0},null,null,null,null,null,{"$f":"IF('2.Vorderingsstaat'!$AC$6=TRUE,\"BTW verlegd\",V50+P50)","v":0},null,null,null,null,null,null,6,null,null,null,null,null,null,null,null,null,null,null,null,null,0,null,null,null,null,null,{"$f":"IF('2.Vorderingsstaat'!$AC$6=TRUE,\"BTW verlegd\",AW50*$AT$19)","v":0},null,null,null,null,null,{"$f":"IF('2.Vorderingsstaat'!$AC$6=TRUE,\"BTW verlegd\",BC50+AW50)","v":0},null,null,null,null,null,{"$f":"IF(D50=\"\",0,IFERROR((SUM($AK$45:AP50,$D$45:I50)/$V$15),0))","v":0}]
[null,7,null,null,null,null,null,null,null,null,null,null,null,null,null,0,null,null,null,null,null,{"$f":"IF('2.Vorderingsstaat'!$AC$6=TRUE,\"BTW verlegd\",P51*$AT$19)","v":0},null,null,null,null,null,{"$f":"IF('2.Vorderingsstaat'!$AC$6=TRUE,\"BTW verlegd\",V51+P51)","v":0},null,null,null,null,null,null,7,null,null,null,null,null,null,null,null,null,null,null,null,null,0,null,null,null,null,null,{"$f":"IF('2.Vorderingsstaat'!$AC$6=TRUE,\"BTW verlegd\",AW51*$AT$19)","v":0},null,null,null,null,null,{"$f":"IF('2.Vorderingsstaat'!$AC$6=TRUE,\"BTW verlegd\",BC51+AW51)","v":0},null,null,null,null,null,{"$f":"IF(D51=\"\",0,IFERROR((SUM($AK$45:AP51,$D$45:I51)/$V$15),0))","v":0}]
[null,8,null,null,null,null,null,null,null,null,null,null,null,null,null,0,null,null,null,null,null,{"$f":"IF('2.Vorderingsstaat'!$AC$6=TRUE,\"BTW verlegd\",P52*$AT$19)","v":0},null,null,null,null,null,{"$f":"IF('2.Vorderingsstaat'!$AC$6=TRUE,\"BTW verlegd\",V52+P52)","v":0},null,null,null,null,null,null,8,null,null,null,null,null,null,null,null,null,null,null,null,null,0,null,null,null,null,null,{"$f":"IF('2.Vorderingsstaat'!$AC$6=TRUE,\"BTW verlegd\",AW52*$AT$19)","v":0},null,null,null,null,null,{"$f":"IF('2.Vorderingsstaat'!$AC$6=TRUE,\"BTW verlegd\",BC52+AW52)","v":0},null,null,null,null,null,{"$f":"IF(D52=\"\",0,IFERROR((SUM($AK$45:AP52,$D$45:I52)/$V$15),0))","v":0}]
[null,9,null,null,null,null,null,null,null,null,null,null,null,null,null,0,null,null,null,null,null,{"$f":"IF('2.Vorderingsstaat'!$AC$6=TRUE,\"BTW verlegd\",P53*$AT$19)","v":0},null,null,null,null,null,{"$f":"IF('2.Vorderingsstaat'!$AC$6=TRUE,\"BTW verlegd\",V53+P53)","v":0},null,null,null,null,null,null,9,null,null,null,null,null,null,null,null,null,null,null,null,null,0,null,null,null,null,null,{"$f":"IF('2.Vorderingsstaat'!$AC$6=TRUE,\"BTW verlegd\",AW53*$AT$19)","v":0},null,null,null,null,null,{"$f":"IF('2.Vorderingsstaat'!$AC$6=TRUE,\"BTW verlegd\",BC53+AW53)","v":0},null,null,null,null,null,{"$f":"IF(D53=\"\",0,IFERROR((SUM($AK$45:AP53,$D$45:I53)/$V$15),0))","v":0}]
[null,10,null,null,null,null,null,null,null,null,null,null,null,null,null,0,null,null,null,null,null,{"$f":"IF('2.Vorderingsstaat'!$AC$6=TRUE,\"BTW verlegd\",P54*$AT$19)","v":0},null,null,null,null,null,{"$f":"IF('2.Vorderingsstaat'!$AC$6=TRUE,\"BTW verlegd\",V54+P54)","v":0},null,null,null,null,null,null,10,null,null,null,null,null,null,null,null,null,null,null,null,null,0,null,null,null,null,null,{"$f":"IF('2.Vorderingsstaat'!$AC$6=TRUE,\"BTW verlegd\",AW54*$AT$19)","v":0},null,null,null,null,null,{"$f":"IF('2.Vorderingsstaat'!$AC$6=TRUE,\"BTW verlegd\",BC54+AW54)","v":0},null,null,null,null,null,{"$f":"IF(D54=\"\",0,IFERROR((SUM($AK$45:AP54,$D$45:I54)/$V$15),0))","v":0}]
[null,11,null,null,null,null,null,null,null,null,null,null,null,null,null,0,null,null,null,null,null,{"$f":"IF('2.Vorderingsstaat'!$AC$6=TRUE,\"BTW verlegd\",P55*$AT$19)","v":0},null,null,null,null,null,{"$f":"IF('2.Vorderingsstaat'!$AC$6=TRUE,\"BTW verlegd\",V55+P55)","v":0},null,null,null,null,null,null,11,null,null,null,null,null,null,null,null,null,null,null,null,null,0,null,null,null,null,null,{"$f":"IF('2.Vorderingsstaat'!$AC$6=TRUE,\"BTW verlegd\",AW55*$AT$19)","v":0},null,null,null,null,null,{"$f":"IF('2.Vorderingsstaat'!$AC$6=TRUE,\"BTW verlegd\",BC55+AW55)","v":0},null,null,null,null,null,{"$f":"IF(D55=\"\",0,IFERROR((SUM($AK$45:AP55,$D$45:I55)/$V$15),0))","v":0}]
[null,12,null,null,null,null,null,null,null,null,null,null,null,null,null,0,null,null,null,null,null,{"$f":"IF('2.Vorderingsstaat'!$AC$6=TRUE,\"BTW verlegd\",P56*$AT$19)","v":0},null,null,null,null,null,{"$f":"IF('2.Vorderingsstaat'!$AC$6=TRUE,\"BTW verlegd\",V56+P56)","v":0},null,null,null,null,null,null,12,null,null,null,null,null,null,null,null,null,null,null,null,null,0,null,null,null,null,null,{"$f":"IF('2.Vorderingsstaat'!$AC$6=TRUE,\"BTW verlegd\",AW56*$AT$19)","v":0},null,null,null,null,null,{"$f":"IF('2.Vorderingsstaat'!$AC$6=TRUE,\"BTW verlegd\",BC56+AW56)","v":0},null,null,null,null,null,{"$f":"IF(D56=\"\",0,IFERROR((SUM($AK$45:AP56,$D$45:I56)/$V$15),0))","v":0}]
[null,13,null,null,null,null,null,null,null,null,null,null,null,null,null,0,null,null,null,null,null,{"$f":"IF('2.Vorderingsstaat'!$AC$6=TRUE,\"BTW verlegd\",P57*$AT$19)","v":0},null,null,null,null,null,{"$f":"IF('2.Vorderingsstaat'!$AC$6=TRUE,\"BTW verlegd\",V57+P57)","v":0},null,null,null,null,null,null,13,null,null,null,null,null,null,null,null,null,null,null,null,null,0,null,null,null,null,null,{"$f":"IF('2.Vorderingsstaat'!$AC$6=TRUE,\"BTW verlegd\",AW57*$AT$19)","v":0},null,null,null,null,null,{"$f":"IF('2.Vorderingsstaat'!$AC$6=TRUE,\"BTW verlegd\",BC57+AW57)","v":0},null,null,null,null,null,{"$f":"IF(D57=\"\",0,IFERROR((SUM($AK$45:AP57,$D$45:I57)/$V$15),0))","v":0}]
[null,14,null,null,null,null,null,null,null,null,null,null,null,null,null,0,null,null,null,null,null,{"$f":"IF('2.Vorderingsstaat'!$AC$6=TRUE,\"BTW verlegd\",P58*$AT$19)","v":0},null,null,null,null,null,{"$f":"IF('2.Vorderingsstaat'!$AC$6=TRUE,\"BTW verlegd\",V58+P58)","v":0},null,null,null,null,null,null,14,null,null,null,null,null,null,null,null,null,null,null,null,null,0,null,null,null,null,null,{"$f":"IF('2.Vorderingsstaat'!$AC$6=TRUE,\"BTW verlegd\",AW58*$AT$19)","v":0},null,null,null,null,null,{"$f":"IF('2.Vorderingsstaat'!$AC$6=TRUE,\"BTW verlegd\",BC58+AW58)","v":0},null,null,null,null,null,{"$f":"IF(D58=\"\",0,IFERROR((SUM($AK$45:AP58,$D$45:I58)/$V$15),0))","v":0}]
[null,15,null,null,null,null,null,null,null,null,null,null,null,null,null,0,null,null,null,null,null,{"$f":"IF('2.Vorderingsstaat'!$AC$6=TRUE,\"BTW verlegd\",P59*$AT$19)","v":0},null,null,null,null,null,{"$f":"IF('2.Vorderingsstaat'!$AC$6=TRUE,\"BTW verlegd\",V59+P59)","v":0},null,null,null,null,null,null,15,null,null,null,null,null,null,null,null,null,null,null,null,null,0,null,null,null,null,null,{"$f":"IF('2.Vorderingsstaat'!$AC$6=TRUE,\"BTW verlegd\",AW59*$AT$19)","v":0},null,null,null,null,null,{"$f":"IF('2.Vorderingsstaat'!$AC$6=TRUE,\"BTW verlegd\",BC59+AW59)","v":0},null,null,null,null,null,{"$f":"IF(D59=\"\",0,IFERROR((SUM($AK$45:AP59,$D$45:I59)/$V$15),0))","v":0}]
[null,16,null,null,null,null,null,null,null,null,null,null,null,null,null,0,null,null,null,null,null,{"$f":"IF('2.Vorderingsstaat'!$AC$6=TRUE,\"BTW verlegd\",P60*$AT$19)","v":0},null,null,null,null,null,{"$f":"IF('2.Vorderingsstaat'!$AC$6=TRUE,\"BTW verlegd\",V60+P60)","v":0},null,null,null,null,null,null,16,null,null,null,null,null,null,null,null,null,null,null,null,null,0,null,null,null,null,null,{"$f":"IF('2.Vorderingsstaat'!$AC$6=TRUE,\"BTW verlegd\",AW60*$AT$19)","v":0},null,null,null,null,null,{"$f":"IF('2.Vorderingsstaat'!$AC$6=TRUE,\"BTW verlegd\",BC60+AW60)","v":0},null,null,null,null,null,{"$f":"IF(D60=\"\",0,IFERROR((SUM($AK$45:AP60,$D$45:I60)/$V$15),0))","v":0}]
[null,17,null,null,null,null,null,null,null,null,null,null,null,null,null,0,null,null,null,null,null,{"$f":"IF('2.Vorderingsstaat'!$AC$6=TRUE,\"BTW verlegd\",P61*$AT$19)","v":0},null,null,null,null,null,{"$f":"IF('2.Vorderingsstaat'!$AC$6=TRUE,\"BTW verlegd\",V61+P61)","v":0},null,null,null,null,null,null,17,null,null,null,null,null,null,null,null,null,null,null,null,null,0,null,null,null,null,null,{"$f":"IF('2.Vorderingsstaat'!$AC$6=TRUE,\"BTW verlegd\",AW61*$AT$19)","v":0},null,null,null,null,null,{"$f":"IF('2.Vorderingsstaat'!$AC$6=TRUE,\"BTW verlegd\",BC61+AW61)","v":0},null,null,null,null,null,{"$f":"IF(D61=\"\",0,IFERROR((SUM($AK$45:AP61,$D$45:I61)/$V$15),0))","v":0}]
[null,18,null,null,null,null,null,null,null,null,null,null,null,null,null,0,null,null,null,null,null,{"$f":"IF('2.Vorderingsstaat'!$AC$6=TRUE,\"BTW verlegd\",P62*$AT$19)","v":0},null,null,null,null,null,{"$f":"IF('2.Vorderingsstaat'!$AC$6=TRUE,\"BTW verlegd\",V62+P62)","v":0},null,null,null,null,null,null,18,null,null,null,null,null,null,null,null,null,null,null,null,null,0,null,null,null,null,null,{"$f":"IF('2.Vorderingsstaat'!$AC$6=TRUE,\"BTW verlegd\",AW62*$AT$19)","v":0},null,null,null,null,null,{"$f":"IF('2.Vorderingsstaat'!$AC$6=TRUE,\"BTW verlegd\",BC62+AW62)","v":0},null,null,null,null,null,{"$f":"IF(D62=\"\",0,IFERROR((SUM($AK$45:AP62,$D$45:I62)/$V$15),0))","v":0}]
[null,19,null,null,null,null,null,null,null,null,null,null,null,null,null,0,null,null,null,null,null,{"$f":"IF('2.Vorderingsstaat'!$AC$6=TRUE,\"BTW verlegd\",P63*$AT$19)","v":0},null,null,null,null,null,{"$f":"IF('2.Vorderingsstaat'!$AC$6=TRUE,\"BTW verlegd\",V63+P63)","v":0},null,null,null,null,null,null,19,null,null,null,null,null,null,null,null,null,null,null,null,null,0,null,null,null,null,null,{"$f":"IF('2.Vorderingsstaat'!$AC$6=TRUE,\"BTW verlegd\",AW63*$AT$19)","v":0},null,null,null,null,null,{"$f":"IF('2.Vorderingsstaat'!$AC$6=TRUE,\"BTW verlegd\",BC63+AW63)","v":0},null,null,null,null,null,{"$f":"IF(D63=\"\",0,IFERROR((SUM($AK$45:AP63,$D$45:I63)/$V$15),0))","v":0}]
[null,20,null,null,null,null,null,null,null,null,null,null,null,null,null,0,null,null,null,null,null,{"$f":"IF('2.Vorderingsstaat'!$AC$6=TRUE,\"BTW verlegd\",P64*$AT$19)","v":0},null,null,null,null,null,{"$f":"IF('2.Vorderingsstaat'!$AC$6=TRUE,\"BTW verlegd\",V64+P64)","v":0},null,null,null,null,null,null,20,null,null,null,null,null,null,null,null,null,null,null,null,null,0,null,null,null,null,null,{"$f":"IF('2.Vorderingsstaat'!$AC$6=TRUE,\"BTW verlegd\",AW64*$AT$19)","v":0},null,null,null,null,null,{"$f":"IF('2.Vorderingsstaat'!$AC$6=TRUE,\"BTW verlegd\",BC64+AW64)","v":0},null,null,null,null,null,{"$f":"IF(D64=\"\",0,IFERROR((SUM($AK$45:AP64,$D$45:I64)/$V$15),0))","v":0}]
[]
[null,"OVERZICHT VORDERINGSSTATEN DEEL GEMEENSCHAPPELIJK"]
[null,"Overzicht vorderingsstaten deel A",null,null,null,null,null,null,null,null,null,null,null,null,null,null,null,null,null,null,null,null,null,null,null,null,null,null,null,null,null,null,null,null,"Overzicht vorderingsstaten deel B",null,null,null,null,null,null,null,null,null,null,null,null,null,null,null,null,null,null,null,null,null,null,null,null,null,null,null,null,null,null,null,"Vorderings %\n(excl.BTW)"]
[null,"Nr.",null,"Te herzien bedrag",null,null,null,null,null,"Herzieningsbedrag",null,null,null,null,null,"Bedrag excl. BTW",null,null,null,null,null,null,null,null,null,null,null,null,null,null,null,null,null,null,"Nr.",null,"Te herzien bedrag",null,null,null,null,null,"Herzieningsbedrag",null,null,null,null,null,"Bedrag excl. BTW"]
[null,"Tot.",null,{"$f":"SUM(D71:I90)","v":0},{"$f":"IFERROR(IF(SUM(E75:E1065)<>0,SUM(E75:E1065),\"\"),\"\")","v":""},"","","","",{"$f":"SUM(J71:O90)","v":0},{"$f":"IFERROR(IF(SUM(K75:K1065)<>0,SUM(K75:K1065),\"\"),\"\")","v":""},"","","","",{"$f":"SUM(P71:U90)","v":0},{"$f":"IFERROR(IF(SUM(Q75:Q1065)<>0,SUM(Q75:Q1065),\"\"),\"\")","v":""},"","","","",null,null,null,null,null,null,null,null,null,null,null,null,null,"Tot.",null,{"$f":"SUM(AK71:AP90)","v":0},{"$f":"IFERROR(IF(SUM(AL75:AL1065)<>0,SUM(AL75:AL1065),\"\"),\"\")","v":""},{"$f":"IFERROR(IF(SUM(AM75:AM1065)<>0,SUM(AM75:AM1065),\"\"),\"\")","v":""},{"$f":"IFERROR(IF(SUM(AN75:AN1065)<>0,SUM(AN75:AN1065),\"\"),\"\")","v":""},{"$f":"IFERROR(IF(SUM(AO75:AO1065)<>0,SUM(AO75:AO1065),\"\"),\"\")","v":""},{"$f":"IFERROR(IF(SUM(AP75:AP1065)<>0,SUM(AP75:AP1065),\"\"),\"\")","v":""},{"$f":"SUM(AQ71:AV90)","v":0},{"$f":"IFERROR(IF(SUM(AR75:AR1065)<>0,SUM(AR75:AR1065),\"\"),\"\")","v":""},{"$f":"IFERROR(IF(SUM(AS75:AS1065)<>0,SUM(AS75:AS1065),\"\"),\"\")","v":""},{"$f":"IFERROR(IF(SUM(AT75:AT1065)<>0,SUM(AT75:AT1065),\"\"),\"\")","v":""},{"$f":"IFERROR(IF(SUM(AU75:AU1065)<>0,SUM(AU75:AU1065),\"\"),\"\")","v":""},{"$f":"IFERROR(IF(SUM(AV75:AV1065)<>0,SUM(AV75:AV1065),\"\"),\"\")","v":""},{"$f":"SUM(AW71:BB90)","v":0},{"$f":"IFERROR(IF(SUM(AX75:AX1065)<>0,SUM(AX75:AX1065),\"\"),\"\")","v":""},{"$f":"IFERROR(IF(SUM(AY75:AY1065)<>0,SUM(AY75:AY1065),\"\"),\"\")","v":""},{"$f":"IFERROR(IF(SUM(AZ75:AZ1065)<>0,SUM(AZ75:AZ1065),\"\"),\"\")","v":""},{"$f":"IFERROR(IF(SUM(BA75:BA1065)<>0,SUM(BA75:BA1065),\"\"),\"\")","v":""},{"$f":"IFERROR(IF(SUM(BB75:BB1065)<>0,SUM(BB75:BB1065),\"\"),\"\")","v":""}]
[null,0,null,0,null,null,null,null,null,0,null,null,null,null,null,0,null,null,null,null,null,null,null,null,null,null,null,null,null,null,null,null,null,null,0,null,0,null,null,null,null,null,0,null,null,null,null,null,0]
[null,1,null,null,null,null,null,null,null,null,null,null,null,null,null,{"$f":"D71+J71","v":0},null,null,null,null,null,null,null,null,null,null,null,null,null,null,null,null,null,null,1,null,null,null,null,null,null,null,null,null,null,null,null,null,{"$f":"AK71+AQ71","v":0},null,null,null,null,null,null,null,null,null,null,null,null,null,null,null,null,null,{"$f":"IF(D71=\"\",0,IFERROR((D71+AK71)/$V$23,0))","v":0}]
[null,2,null,null,null,null,null,null,null,null,null,null,null,null,null,{"$f":"D72+J72","v":0},null,null,null,null,null,null,null,null,null,null,null,null,null,null,null,null,null,null,2,null,null,null,null,null,null,null,null,null,null,null,null,null,{"$f":"AK72+AQ72","v":0},null,null,null,null,null,null,null,null,null,null,null,null,null,null,null,null,null,{"$f":"IF(D72=\"\",0,IFERROR((SUM($AK$71:AP72,$D$71:I72)/$V$23),0))","v":0}]
[null,3,null,null,null,null,null,null,null,null,null,null,null,null,null,0,null,null,null,null,null,null,null,null,null,null,null,null,null,null,null,null,null,null,3,null,null,null,null,null,null,null,null,null,null,null,null,null,0,null,null,null,null,null,null,null,null,null,null,null,null,null,null,null,null,null,{"$f":"IF(D73=\"\",0,IFERROR((SUM($AK$71:AP73,$D$71:I73)/$V$23),0))","v":0}]
[null,4,null,null,null,null,null,null,null,null,null,null,null,null,null,0,null,null,null,null,null,null,null,null,null,null,null,null,null,null,null,null,null,null,4,null,null,null,null,null,null,null,null,null,null,null,null,null,0,null,null,null,null,null,null,null,null,null,null,null,null,null,null,null,null,null,{"$f":"IF(D74=\"\",0,IFERROR((SUM($AK$71:AP74,$D$71:I74)/$V$23),0))","v":0}]
[null,5,null,null,null,null,null,null,null,null,null,null,null,null,null,0,null,null,null,null,null,null,null,null,null,null,null,null,null,null,null,null,null,null,5,null,null,null,null,null,null,null,null,null,null,null,null,null,0,null,null,null,null,null,null,null,null,null,null,null,null,null,null,null,null,null,{"$f":"IF(D75=\"\",0,IFERROR((SUM($AK$71:AP75,$D$71:I75)/$V$23),0))","v":0}]
[null,6,null,null,null,null,null,null,null,null,null,null,null,null,null,0,null,null,null,null,null,null,null,null,null,null,null,null,null,null,null,null,null,null,6,null,null,null,null,null,null,null,null,null,null,null,null,null,0,null,null,null,null,null,null,null,null,null,null,null,null,null,null,null,null,null,{"$f":"IF(D76=\"\",0,IFERROR((SUM($AK$71:AP76,$D$71:I76)/$V$23),0))","v":0}]
[null,7,null,null,null,null,null,null,null,null,null,null,null,null,null,0,null,null,null,null,null,null,null,null,null,null,null,null,null,null,null,null,null,null,7,null,null,null,null,null,null,null,null,null,null,null,null,null,0,null,null,null,null,null,null,null,null,null,null,null,null,null,null,null,null,null,{"$f":"IF(D77=\"\",0,IFERROR((SUM($AK$71:AP77,$D$71:I77)/$V$23),0))","v":0}]
[null,8,null,null,null,null,null,null,null,null,null,null,null,null,null,0,null,null,null,null,null,null,null,null,null,null,null,null,null,null,null,null,null,null,8,null,null,null,null,null,null,null,null,null,null,null,null,null,0,null,null,null,null,null,null,null,null,null,null,null,null,null,null,null,null,null,{"$f":"IF(D78=\"\",0,IFERROR((SUM($AK$71:AP78,$D$71:I78)/$V$23),0))","v":0}]
[null,9,null,null,null,null,null,null,null,null,null,null,null,null,null,0,null,null,null,null,null,null,null,null,null,null,null,null,null,null,null,null,null,null,9,null,null,null,null,null,null,null,null,null,null,null,null,null,0,null,null,null,null,null,null,null,null,null,null,null,null,null,null,null,null,null,{"$f":"IF(D79=\"\",0,IFERROR((SUM($AK$71:AP79,$D$71:I79)/$V$23),0))","v":0}]
[null,10,null,null,null,null,null,null,null,null,null,null,null,null,null,0,null,null,null,null,null,null,null,null,null,null,null,null,null,null,null,null,null,null,10,null,null,null,null,null,null,null,null,null,null,null,null,null,0,null,null,null,null,null,null,null,null,null,null,null,null,null,null,null,null,null,{"$f":"IF(D80=\"\",0,IFERROR((SUM($AK$71:AP80,$D$71:I80)/$V$23),0))","v":0}]
[null,11,null,null,null,null,null,null,null,null,null,null,null,null,null,0,null,null,null,null,null,null,null,null,null,null,null,null,null,null,null,null,null,null,11,null,null,null,null,null,null,null,null,null,null,null,null,null,0,null,null,null,null,null,null,null,null,null,null,null,null,null,null,null,null,null,{"$f":"IF(D81=\"\",0,IFERROR((SUM($AK$71:AP81,$D$71:I81)/$V$23),0))","v":0}]
[null,12,null,null,null,null,null,null,null,null,null,null,null,null,null,0,null,null,null,null,null,null,null,null,null,null,null,null,null,null,null,null,null,null,12,null,null,null,null,null,null,null,null,null,null,null,null,null,0,null,null,null,null,null,null,null,null,null,null,null,null,null,null,null,null,null,{"$f":"IF(D82=\"\",0,IFERROR((SUM($AK$71:AP82,$D$71:I82)/$V$23),0))","v":0}]
[null,13,null,null,null,null,null,null,null,null,null,null,null,null,null,0,null,null,null,null,null,null,null,null,null,null,null,null,null,null,null,null,null,null,13,null,null,null,null,null,null,null,null,null,null,null,null,null,0,null,null,null,null,null,null,null,null,null,null,null,null,null,null,null,null,null,{"$f":"IF(D83=\"\",0,IFERROR((SUM($AK$71:AP83,$D$71:I83)/$V$23),0))","v":0}]
[null,14,null,null,null,null,null,null,null,null,null,null,null,null,null,0,null,null,null,null,null,null,null,null,null,null,null,null,null,null,null,null,null,null,14,null,null,null,null,null,null,null,null,null,null,null,null,null,0,null,null,null,null,null,null,null,null,null,null,null,null,null,null,null,null,null,{"$f":"IF(D84=\"\",0,IFERROR((SUM($AK$71:AP84,$D$71:I84)/$V$23),0))","v":0}]
[null,15,null,null,null,null,null,null,null,null,null,null,null,null,null,0,null,null,null,null,null,null,null,null,null,null,null,null,null,null,null,null,null,null,15,null,null,null,null,null,null,null,null,null,null,null,null,null,0,null,null,null,null,null,null,null,null,null,null,null,null,null,null,null,null,null,{"$f":"IF(D85=\"\",0,IFERROR((SUM($AK$71:AP85,$D$71:I85)/$V$23),0))","v":0}]
[null,16,null,null,null,null,null,null,null,null,null,null,null,null,null,0,null,null,null,null,null,null,null,null,null,null,null,null,null,null,null,null,null,null,16,null,null,null,null,null,null,null,null,null,null,null,null,null,0,null,null,null,null,null,null,null,null,null,null,null,null,null,null,null,null,null,{"$f":"IF(D86=\"\",0,IFERROR((SUM($AK$71:AP86,$D$71:I86)/$V$23),0))","v":0}]
[null,17,null,null,null,null,null,null,null,null,null,null,null,null,null,0,null,null,null,null,null,null,null,null,null,null,null,null,null,null,null,null,null,null,17,null,null,null,null,null,null,null,null,null,null,null,null,null,0,null,null,null,null,null,null,null,null,null,null,null,null,null,null,null,null,null,{"$f":"IF(D87=\"\",0,IFERROR((SUM($AK$71:AP87,$D$71:I87)/$V$23),0))","v":0}]
[null,18,null,null,null,null,null,null,null,null,null,null,null,null,null,0,null,null,null,null,null,null,null,null,null,null,null,null,null,null,null,null,null,null,18,null,null,null,null,null,null,null,null,null,null,null,null,null,0,null,null,null,null,null,null,null,null,null,null,null,null,null,null,null,null,null,{"$f":"IF(D88=\"\",0,IFERROR((SUM($AK$71:AP88,$D$71:I88)/$V$23),0))","v":0}]
[null,19,null,null,null,null,null,null,null,null,null,null,null,null,null,0,null,null,null,null,null,null,null,null,null,null,null,null,null,null,null,null,null,null,19,null,null,null,null,null,null,null,null,null,null,null,null,null,0,null,null,null,null,null,null,null,null,null,null,null,null,null,null,null,null,null,{"$f":"IF(D89=\"\",0,IFERROR((SUM($AK$71:AP89,$D$71:I89)/$V$23),0))","v":0}]
[null,20,null,null,null,null,null,null,null,null,null,null,null,null,null,0,null,null,null,null,null,null,null,null,null,null,null,null,null,null,null,null,null,null,20,null,null,null,null,null,null,null,null,null,null,null,null,null,0,null,null,null,null,null,null,null,null,null,null,null,null,null,null,null,null,null,{"$f":"IF(D90=\"\",0,IFERROR((SUM($AK$71:AP90,$D$71:I90)/$V$23),0))","v":0}]
[]
[null,"OVERZICHT VORDERINGSSTATEN DEEL Derden"]
[null,"Overzicht vorderingsstaten deel A",null,null,null,null,null,null,null,null,null,null,null,null,null,null,null,null,null,null,null,null,null,null,null,null,null,null,null,null,null,null,null,null,"Overzicht vorderingsstaten deel B",null,null,null,null,null,null,null,null,null,null,null,null,null,null,null,null,null,null,null,null,null,null,null,null,null,null,null,null,null,null,null,"Vorderings %\n(excl.BTW)"]
[null,"Nr.",null,"Te herzien bedrag",null,null,null,null,null,"Herzieningsbedrag",null,null,null,null,null,"Bedrag excl. BTW",null,null,null,null,null,"BTW",null,null,null,null,null,"Bedrag incl BTW",null,null,null,null,null,null,"Nr.",null,"Te herzien bedrag",null,null,null,null,null,"Herzieningsbedrag",null,null,null,null,null,"Bedrag excl. BTW",null,null,null,null,null,"BTW",null,null,null,null,null,"Bedrag incl BTW"]
[null,"Tot.",null,{"$f":"SUM(D97:I116)","v":0},{"$f":"IFERROR(IF(SUM(E101:E1091)<>0,SUM(E101:E1091),\"\"),\"\")","v":""},"","","","",{"$f":"SUM(J97:O116)","v":0},{"$f":"IFERROR(IF(SUM(K101:K1091)<>0,SUM(K101:K1091),\"\"),\"\")","v":""},"","","","",{"$f":"SUM(P97:U116)","v":0},{"$f":"IFERROR(IF(SUM(Q101:Q1091)<>0,SUM(Q101:Q1091),\"\"),\"\")","v":""},"","","","",{"$f":"SUM(V97:AA116)","v":0},{"$f":"IFERROR(IF(SUM(W101:W1091)<>0,SUM(W101:W1091),\"\"),\"\")","v":""},"","","","",{"$f":"SUM(AB97:AG116)","v":0},{"$f":"IFERROR(IF(SUM(AC101:AC1091)<>0,SUM(AC101:AC1091),\"\"),\"\")","v":""},"","","","",null,"Tot.",null,{"$f":"SUM(AK97:AP116)","v":0},{"$f":"IFERROR(IF(SUM(AL101:AL1091)<>0,SUM(AL101:AL1091),\"\"),\"\")","v":""},"","","","",{"$f":"SUM(AQ97:AV116)","v":0},{"$f":"IFERROR(IF(SUM(AR101:AR1091)<>0,SUM(AR101:AR1091),\"\"),\"\")","v":""},"","","","",{"$f":"SUM(AW97:BB116)","v":0},{"$f":"IFERROR(IF(SUM(AX101:AX1091)<>0,SUM(AX101:AX1091),\"\"),\"\")","v":""},"","","","",{"$f":"SUM(BC97:BH116)","v":0},{"$f":"IFERROR(IF(SUM(BD101:BD1091)<>0,SUM(BD101:BD1091),\"\"),\"\")","v":""},"","","","",{"$f":"SUM(BI97:BN116)","v":0},{"$f":"IFERROR(IF(SUM(BJ101:BJ1091)<>0,SUM(BJ101:BJ1091),\"\"),\"\")","v":""},"","","",""]
[null,0,null,0,null,null,null,null,null,0,null,null,null,null,null,0,null,null,null,null,null,0,null,null,null,null,null,0,null,null,null,null,null,null,0,null,0,null,null,null,null,null,0,null,null,null,null,null,0,null,null,null,null,null,0,null,null,null,null,null,0]
[null,1,null,null,null,null,null,null,null,null,null,null,null,null,null,{"$f":"D97+J97","v":0},null,null,null,null,null,{"$f":"IF('2.Vorderingsstaat'!$AC$6=TRUE,\"BTW verlegd\",P97*$AT$19)","v":0},null,null,null,null,null,{"$f":"IF('2.Vorderingsstaat'!$AC$6=TRUE,\"BTW verlegd\",V97+P97)","v":0},null,null,null,null,null,null,1,null,null,null,null,null,null,null,null,null,null,null,null,null,{"$f":"AK97+AQ97","v":0},null,null,null,null,null,{"$f":"IF('2.Vorderingsstaat'!$AC$6=TRUE,\"BTW verlegd\",AW97*$AT$19)","v":0},null,null,null,null,null,{"$f":"IF('2.Vorderingsstaat'!$AC$6=TRUE,\"BTW verlegd\",BC97+AW97)","v":0},null,null,null,null,null,{"$f":"IFERROR((D97+AK97)/$V$33,0)","v":0}]
[null,2,null,null,null,null,null,null,null,null,null,null,null,null,null,{"$f":"D98+J98","v":0},null,null,null,null,null,{"$f":"IF('2.Vorderingsstaat'!$AC$6=TRUE,\"BTW verlegd\",P98*$AT$19)","v":0},null,null,null,null,null,{"$f":"IF('2.Vorderingsstaat'!$AC$6=TRUE,\"BTW verlegd\",V98+P98)","v":0},null,null,null,null,null,null,2,null,null,null,null,null,null,null,null,null,null,null,null,null,{"$f":"AK98+AQ98","v":0},null,null,null,null,null,{"$f":"IF('2.Vorderingsstaat'!$AC$6=TRUE,\"BTW verlegd\",AW98*$AT$19)","v":0},null,null,null,null,null,{"$f":"IF('2.Vorderingsstaat'!$AC$6=TRUE,\"BTW verlegd\",BC98+AW98)","v":0},null,null,null,null,null,{"$f":"IF(D98=\"\",0,IFERROR((SUM($AK$97:AP98,$D$97:I98)/$V$33),0))","v":0}]
[null,3,null,null,null,null,null,null,null,null,null,null,null,null,null,0,null,null,null,null,null,{"$f":"IF('2.Vorderingsstaat'!$AC$6=TRUE,\"BTW verlegd\",P99*$AT$19)","v":0},null,null,null,null,null,{"$f":"IF('2.Vorderingsstaat'!$AC$6=TRUE,\"BTW verlegd\",V99+P99)","v":0},null,null,null,null,null,null,3,null,null,null,null,null,null,null,null,null,null,null,null,null,0,null,null,null,null,null,{"$f":"IF('2.Vorderingsstaat'!$AC$6=TRUE,\"BTW verlegd\",AW99*$AT$19)","v":0},null,null,null,null,null,{"$f":"IF('2.Vorderingsstaat'!$AC$6=TRUE,\"BTW verlegd\",BC99+AW99)","v":0},null,null,null,null,null,{"$f":"IF(D99=\"\",0,IFERROR((SUM($AK$97:AP99,$D$97:I99)/$V$33),0))","v":0}]
[null,4,null,null,null,null,null,null,null,null,null,null,null,null,null,0,null,null,null,null,null,{"$f":"IF('2.Vorderingsstaat'!$AC$6=TRUE,\"BTW verlegd\",P100*$AT$19)","v":0},null,null,null,null,null,{"$f":"IF('2.Vorderingsstaat'!$AC$6=TRUE,\"BTW verlegd\",V100+P100)","v":0},null,null,null,null,null,null,4,null,null,null,null,null,null,null,null,null,null,null,null,null,0,null,null,null,null,null,{"$f":"IF('2.Vorderingsstaat'!$AC$6=TRUE,\"BTW verlegd\",AW100*$AT$19)","v":0},null,null,null,null,null,{"$f":"IF('2.Vorderingsstaat'!$AC$6=TRUE,\"BTW verlegd\",BC100+AW100)","v":0},null,null,null,null,null,{"$f":"IF(D100=\"\",0,IFERROR((SUM($AK$97:AP100,$D$97:I100)/$V$33),0))","v":0}]
[null,5,null,null,null,null,null,null,null,null,null,null,null,null,null,0,null,null,null,null,null,{"$f":"IF('2.Vorderingsstaat'!$AC$6=TRUE,\"BTW verlegd\",P101*$AT$19)","v":0},null,null,null,null,null,{"$f":"IF('2.Vorderingsstaat'!$AC$6=TRUE,\"BTW verlegd\",V101+P101)","v":0},null,null,null,null,null,null,5,null,null,null,null,null,null,null,null,null,null,null,null,null,0,null,null,null,null,null,{"$f":"IF('2.Vorderingsstaat'!$AC$6=TRUE,\"BTW verlegd\",AW101*$AT$19)","v":0},null,null,null,null,null,{"$f":"IF('2.Vorderingsstaat'!$AC$6=TRUE,\"BTW verlegd\",BC101+AW101)","v":0},null,null,null,null,null,{"$f":"IF(D101=\"\",0,IFERROR((SUM($AK$97:AP101,$D$97:I101)/$V$33),0))","v":0}]
[null,6,null,null,null,null,null,null,null,null,null,null,null,null,null,0,null,null,null,null,null,{"$f":"IF('2.Vorderingsstaat'!$AC$6=TRUE,\"BTW verlegd\",P102*$AT$19)","v":0},null,null,null,null,null,{"$f":"IF('2.Vorderingsstaat'!$AC$6=TRUE,\"BTW verlegd\",V102+P102)","v":0},null,null,null,null,null,null,6,null,null,null,null,null,null,null,null,null,null,null,null,null,0,null,null,null,null,null,{"$f":"IF('2.Vorderingsstaat'!$AC$6=TRUE,\"BTW verlegd\",AW102*$AT$19)","v":0},null,null,null,null,null,{"$f":"IF('2.Vorderingsstaat'!$AC$6=TRUE,\"BTW verlegd\",BC102+AW102)","v":0},null,null,null,null,null,{"$f":"IF(D102=\"\",0,IFERROR((SUM($AK$97:AP102,$D$97:I102)/$V$33),0))","v":0}]
[null,7,null,null,null,null,null,null,null,null,null,null,null,null,null,0,null,null,null,null,null,{"$f":"IF('2.Vorderingsstaat'!$AC$6=TRUE,\"BTW verlegd\",P103*$AT$19)","v":0},null,null,null,null,null,{"$f":"IF('2.Vorderingsstaat'!$AC$6=TRUE,\"BTW verlegd\",V103+P103)","v":0},null,null,null,null,null,null,7,null,null,null,null,null,null,null,null,null,null,null,null,null,0,null,null,null,null,null,{"$f":"IF('2.Vorderingsstaat'!$AC$6=TRUE,\"BTW verlegd\",AW103*$AT$19)","v":0},null,null,null,null,null,{"$f":"IF('2.Vorderingsstaat'!$AC$6=TRUE,\"BTW verlegd\",BC103+AW103)","v":0},null,null,null,null,null,{"$f":"IF(D103=\"\",0,IFERROR((SUM($AK$97:AP103,$D$97:I103)/$V$33),0))","v":0}]
[null,8,null,null,null,null,null,null,null,null,null,null,null,null,null,0,null,null,null,null,null,{"$f":"IF('2.Vorderingsstaat'!$AC$6=TRUE,\"BTW verlegd\",P104*$AT$19)","v":0},null,null,null,null,null,{"$f":"IF('2.Vorderingsstaat'!$AC$6=TRUE,\"BTW verlegd\",V104+P104)","v":0},null,null,null,null,null,null,8,null,null,null,null,null,null,null,null,null,null,null,null,null,0,null,null,null,null,null,{"$f":"IF('2.Vorderingsstaat'!$AC$6=TRUE,\"BTW verlegd\",AW104*$AT$19)","v":0},null,null,null,null,null,{"$f":"IF('2.Vorderingsstaat'!$AC$6=TRUE,\"BTW verlegd\",BC104+AW104)","v":0},null,null,null,null,null,{"$f":"IF(D104=\"\",0,IFERROR((SUM($AK$97:AP104,$D$97:I104)/$V$33),0))","v":0}]
[null,9,null,null,null,null,null,null,null,null,null,null,null,null,null,0,null,null,null,null,null,{"$f":"IF('2.Vorderingsstaat'!$AC$6=TRUE,\"BTW verlegd\",P105*$AT$19)","v":0},null,null,null,null,null,{"$f":"IF('2.Vorderingsstaat'!$AC$6=TRUE,\"BTW verlegd\",V105+P105)","v":0},null,null,null,null,null,null,9,null,null,null,null,null,null,null,null,null,null,null,null,null,0,null,null,null,null,null,{"$f":"IF('2.Vorderingsstaat'!$AC$6=TRUE,\"BTW verlegd\",AW105*$AT$19)","v":0},null,null,null,null,null,{"$f":"IF('2.Vorderingsstaat'!$AC$6=TRUE,\"BTW verlegd\",BC105+AW105)","v":0},null,null,null,null,null,{"$f":"IF(D105=\"\",0,IFERROR((SUM($AK$97:AP105,$D$97:I105)/$V$33),0))","v":0}]
[null,10,null,null,null,null,null,null,null,null,null,null,null,null,null,0,null,null,null,null,null,{"$f":"IF('2.Vorderingsstaat'!$AC$6=TRUE,\"BTW verlegd\",P106*$AT$19)","v":0},null,null,null,null,null,{"$f":"IF('2.Vorderingsstaat'!$AC$6=TRUE,\"BTW verlegd\",V106+P106)","v":0},null,null,null,null,null,null,10,null,null,null,null,null,null,null,null,null,null,null,null,null,0,null,null,null,null,null,{"$f":"IF('2.Vorderingsstaat'!$AC$6=TRUE,\"BTW verlegd\",AW106*$AT$19)","v":0},null,null,null,null,null,{"$f":"IF('2.Vorderingsstaat'!$AC$6=TRUE,\"BTW verlegd\",BC106+AW106)","v":0},null,null,null,null,null,{"$f":"IF(D106=\"\",0,IFERROR((SUM($AK$97:AP106,$D$97:I106)/$V$33),0))","v":0}]
[null,11,null,null,null,null,null,null,null,null,null,null,null,null,null,0,null,null,null,null,null,{"$f":"IF('2.Vorderingsstaat'!$AC$6=TRUE,\"BTW verlegd\",P107*$AT$19)","v":0},null,null,null,null,null,{"$f":"IF('2.Vorderingsstaat'!$AC$6=TRUE,\"BTW verlegd\",V107+P107)","v":0},null,null,null,null,null,null,11,null,null,null,null,null,null,null,null,null,null,null,null,null,0,null,null,null,null,null,{"$f":"IF('2.Vorderingsstaat'!$AC$6=TRUE,\"BTW verlegd\",AW107*$AT$19)","v":0},null,null,null,null,null,{"$f":"IF('2.Vorderingsstaat'!$AC$6=TRUE,\"BTW verlegd\",BC107+AW107)","v":0},null,null,null,null,null,{"$f":"IF(D107=\"\",0,IFERROR((SUM($AK$97:AP107,$D$97:I107)/$V$33),0))","v":0}]
[null,12,null,null,null,null,null,null,null,null,null,null,null,null,null,0,null,null,null,null,null,{"$f":"IF('2.Vorderingsstaat'!$AC$6=TRUE,\"BTW verlegd\",P108*$AT$19)","v":0},null,null,null,null,null,{"$f":"IF('2.Vorderingsstaat'!$AC$6=TRUE,\"BTW verlegd\",V108+P108)","v":0},null,null,null,null,null,null,12,null,null,null,null,null,null,null,null,null,null,null,null,null,0,null,null,null,null,null,{"$f":"IF('2.Vorderingsstaat'!$AC$6=TRUE,\"BTW verlegd\",AW108*$AT$19)","v":0},null,null,null,null,null,{"$f":"IF('2.Vorderingsstaat'!$AC$6=TRUE,\"BTW verlegd\",BC108+AW108)","v":0},null,null,null,null,null,{"$f":"IF(D108=\"\",0,IFERROR((SUM($AK$97:AP108,$D$97:I108)/$V$33),0))","v":0}]
[null,13,null,null,null,null,null,null,null,null,null,null,null,null,null,0,null,null,null,null,null,{"$f":"IF('2.Vorderingsstaat'!$AC$6=TRUE,\"BTW verlegd\",P109*$AT$19)","v":0},null,null,null,null,null,{"$f":"IF('2.Vorderingsstaat'!$AC$6=TRUE,\"BTW verlegd\",V109+P109)","v":0},null,null,null,null,null,null,13,null,null,null,null,null,null,null,null,null,null,null,null,null,0,null,null,null,null,null,{"$f":"IF('2.Vorderingsstaat'!$AC$6=TRUE,\"BTW verlegd\",AW109*$AT$19)","v":0},null,null,null,null,null,{"$f":"IF('2.Vorderingsstaat'!$AC$6=TRUE,\"BTW verlegd\",BC109+AW109)","v":0},null,null,null,null,null,{"$f":"IF(D109=\"\",0,IFERROR((SUM($AK$97:AP109,$D$97:I109)/$V$33),0))","v":0}]
[null,14,null,null,null,null,null,null,null,null,null,null,null,null,null,0,null,null,null,null,null,{"$f":"IF('2.Vorderingsstaat'!$AC$6=TRUE,\"BTW verlegd\",P110*$AT$19)","v":0},null,null,null,null,null,{"$f":"IF('2.Vorderingsstaat'!$AC$6=TRUE,\"BTW verlegd\",V110+P110)","v":0},null,null,null,null,null,null,14,null,null,null,null,null,null,null,null,null,null,null,null,null,0,null,null,null,null,null,{"$f":"IF('2.Vorderingsstaat'!$AC$6=TRUE,\"BTW verlegd\",AW110*$AT$19)","v":0},null,null,null,null,null,{"$f":"IF('2.Vorderingsstaat'!$AC$6=TRUE,\"BTW verlegd\",BC110+AW110)","v":0},null,null,null,null,null,{"$f":"IF(D110=\"\",0,IFERROR((SUM($AK$97:AP110,$D$97:I110)/$V$33),0))","v":0}]
[null,15,null,null,null,null,null,null,null,null,null,null,null,null,null,0,null,null,null,null,null,{"$f":"IF('2.Vorderingsstaat'!$AC$6=TRUE,\"BTW verlegd\",P111*$AT$19)","v":0},null,null,null,null,null,{"$f":"IF('2.Vorderingsstaat'!$AC$6=TRUE,\"BTW verlegd\",V111+P111)","v":0},null,null,null,null,null,null,15,null,null,null,null,null,null,null,null,null,null,null,null,null,0,null,null,null,null,null,{"$f":"IF('2.Vorderingsstaat'!$AC$6=TRUE,\"BTW verlegd\",AW111*$AT$19)","v":0},null,null,null,null,null,{"$f":"IF('2.Vorderingsstaat'!$AC$6=TRUE,\"BTW verlegd\",BC111+AW111)","v":0},null,null,null,null,null,{"$f":"IF(D111=\"\",0,IFERROR((SUM($AK$97:AP111,$D$97:I111)/$V$33),0))","v":0}]
[null,16,null,null,null,null,null,null,null,null,null,null,null,null,null,0,null,null,null,null,null,{"$f":"IF('2.Vorderingsstaat'!$AC$6=TRUE,\"BTW verlegd\",P112*$AT$19)","v":0},null,null,null,null,null,{"$f":"IF('2.Vorderingsstaat'!$AC$6=TRUE,\"BTW verlegd\",V112+P112)","v":0},null,null,null,null,null,null,16,null,null,null,null,null,null,null,null,null,null,null,null,null,0,null,null,null,null,null,{"$f":"IF('2.Vorderingsstaat'!$AC$6=TRUE,\"BTW verlegd\",AW112*$AT$19)","v":0},null,null,null,null,null,{"$f":"IF('2.Vorderingsstaat'!$AC$6=TRUE,\"BTW verlegd\",BC112+AW112)","v":0},null,null,null,null,null,{"$f":"IF(D112=\"\",0,IFERROR((SUM($AK$97:AP112,$D$97:I112)/$V$33),0))","v":0}]
[null,17,null,null,null,null,null,null,null,null,null,null,null,null,null,0,null,null,null,null,null,{"$f":"IF('2.Vorderingsstaat'!$AC$6=TRUE,\"BTW verlegd\",P113*$AT$19)","v":0},null,null,null,null,null,{"$f":"IF('2.Vorderingsstaat'!$AC$6=TRUE,\"BTW verlegd\",V113+P113)","v":0},null,null,null,null,null,null,17,null,null,null,null,null,null,null,null,null,null,null,null,null,0,null,null,null,null,null,{"$f":"IF('2.Vorderingsstaat'!$AC$6=TRUE,\"BTW verlegd\",AW113*$AT$19)","v":0},null,null,null,null,null,{"$f":"IF('2.Vorderingsstaat'!$AC$6=TRUE,\"BTW verlegd\",BC113+AW113)","v":0},null,null,null,null,null,{"$f":"IF(D113=\"\",0,IFERROR((SUM($AK$97:AP113,$D$97:I113)/$V$33),0))","v":0}]
[null,18,null,null,null,null,null,null,null,null,null,null,null,null,null,0,null,null,null,null,null,{"$f":"IF('2.Vorderingsstaat'!$AC$6=TRUE,\"BTW verlegd\",P114*$AT$19)","v":0},null,null,null,null,null,{"$f":"IF('2.Vorderingsstaat'!$AC$6=TRUE,\"BTW verlegd\",V114+P114)","v":0},null,null,null,null,null,null,18,null,null,null,null,null,null,null,null,null,null,null,null,null,0,null,null,null,null,null,{"$f":"IF('2.Vorderingsstaat'!$AC$6=TRUE,\"BTW verlegd\",AW114*$AT$19)","v":0},null,null,null,null,null,{"$f":"IF('2.Vorderingsstaat'!$AC$6=TRUE,\"BTW verlegd\",BC114+AW114)","v":0},null,null,null,null,null,{"$f":"IF(D114=\"\",0,IFERROR((SUM($AK$97:AP114,$D$97:I114)/$V$33),0))","v":0}]
[null,19,null,null,null,null,null,null,null,null,null,null,null,null,null,0,null,null,null,null,null,{"$f":"IF('2.Vorderingsstaat'!$AC$6=TRUE,\"BTW verlegd\",P115*$AT$19)","v":0},null,null,null,null,null,{"$f":"IF('2.Vorderingsstaat'!$AC$6=TRUE,\"BTW verlegd\",V115+P115)","v":0},null,null,null,null,null,null,19,null,null,null,null,null,null,null,null,null,null,null,null,null,0,null,null,null,null,null,{"$f":"IF('2.Vorderingsstaat'!$AC$6=TRUE,\"BTW verlegd\",AW115*$AT$19)","v":0},null,null,null,null,null,{"$f":"IF('2.Vorderingsstaat'!$AC$6=TRUE,\"BTW verlegd\",BC115+AW115)","v":0},null,null,null,null,null,{"$f":"IF(D115=\"\",0,IFERROR((SUM($AK$97:AP115,$D$97:I115)/$V$33),0))","v":0}]
[null,20,null,null,null,null,null,null,null,null,null,null,null,null,null,0,null,null,null,null,null,{"$f":"IF('2.Vorderingsstaat'!$AC$6=TRUE,\"BTW verlegd\",P116*$AT$19)","v":0},null,null,null,null,null,{"$f":"IF('2.Vorderingsstaat'!$AC$6=TRUE,\"BTW verlegd\",V116+P116)","v":0},null,null,null,null,null,null,20,null,null,null,null,null,null,null,null,null,null,null,null,null,0,null,null,null,null,null,{"$f":"IF('2.Vorderingsstaat'!$AC$6=TRUE,\"BTW verlegd\",AW116*$AT$19)","v":0},null,null,null,null,null,{"$f":"IF('2.Vorderingsstaat'!$AC$6=TRUE,\"BTW verlegd\",BC116+AW116)","v":0},null,null,null,null,null,{"$f":"IF(D116=\"\",0,IFERROR((SUM($AK$97:AP116,$D$97:I116)/$V$33),0))","v":0}]

{"sheet":"2.Vorderingsstaat","index":4,"n_rows":71,"n_cols":40,"rows_kept":71,"cut":false,"hidden":false,"merged":[[57,31,57,36],[54,1,54,36],[55,1,55,30],[56,1,56,30],[57,1,57,30],[51,31,51,36],[52,31,52,36],[41,1,41,12],[42,1,42,12],[50,1,50,36],[47,8,47,14],[48,8,48,14],[44,8,44,12],[45,8,45,12],[46,8,46,12],[45,1,45,7],[47,1,48,7],[46,1,46,7],[47,15,47,17],[48,15,48,17],[44,13,44,17],[44,1,44,7],[47,20,48,26],[45,13,45,17],[19,18,19,19],[29,23,29,26],[10,32,13,36],[14,32,15,36],[17,32,18,36],[19,32,22,36],[23,32,24,36],[26,32,27,36],[28,32,31,36],[10,27,10,28],[11,27,11,28],[12,27,12,28],[13,27,13,28],[10,29,10,31],[11,29,11,31],[12,29,12,31],[31,29,31,31],[13,29,13,31],[15,27,15,31],[23,27,23,31],[14,27,14,31],[19,27,19,28],[20,27,20,28],[21,27,21,28],[28,6,29,7],[28,8,29,12],[18,6,18,7],[18,8,18,12],[18,13,18,17],[17,1,18,5],[17,6,17,7],[17,8,17,12],[19,29,19,31],[20,29,20,31],[23,1,24,5],[23,6,23,7],[23,8,23,12],[23,13,23,17],[23,18,23,22],[19,1,22,5],[24,6,24,7],[24,8,24,12],[24,13,24,17],[24,18,24,22],[19,13,20,17],[21,13,22,17],[19,20,19,22],[22,20,22,22],[27,27,27,31],[26,27,26,31],[26,23,26,26],[27,23,27,26],[20,20,20,22],[21,20,21,22],[26,1,27,5],[27,18,27,22],[26,13,26,17],[26,6,26,7],[22,27,22,28],[43,13,43,17],[43,20,43,26],[42,20,42,31],[41,20,41,31],[10,8,11,12],[33,27,33,31],[33,23,33,26],[32,1,33,5],[32,6,32,7],[32,8,32,12],[32,13,32,17],[30,27,30,28],[31,27,31,28],[28,29,28,31],[29,29,29,31],[30,29,30,31],[29,27,29,28],[28,23,28,26],[28,1,31,5],[33,6,33,7],[33,8,33,12],[28,27,28,28],[25,1,25,36],[16,1,16,36],[46,13,46,17],[20,18,20,19],[21,18,21,19],[22,18,22,19],[27,6,27,7],[27,8,27,12],[27,13,27,17],[35,1,35,17],[30,6,31,7],[29,18,29,19],[30,18,30,19],[31,18,31,19],[26,18,26,22],[30,8,31,12],[28,13,29,17],[30,13,31,17],[28,20,28,22],[29,20,29,22],[30,20,30,22],[26,8,26,12],[19,6,20,7],[21,6,22,7],[21,8,22,12],[19,8,20,12],[10,18,10,19],[11,18,11,19],[9,23,9,26],[10,23,10,26],[11,23,11,26],[18,23,18,26],[10,20,10,22],[11,20,11,22],[14,23,14,26],[15,23,15,26],[17,23,17,26],[12,23,12,26],[13,23,13,26],[17,18,17,22],[18,18,18,22],[14,18,14,22],[15,18,15,22],[12,18,12,19],[13,18,13,19],[12,20,12,22],[13,20,13,22],[6,32,6,36],[6,27,6,31],[6,18,6,22],[8,27,8,31],[9,18,9,22],[6,23,6,26],[8,23,8,26],[9,27,9,31],[8,18,8,22],[7,1,7,36],[8,32,9,36],[9,8,9,12],[4,3,4,5],[4,11,4,13],[4,15,4,17],[6,1,6,7],[6,8,6,12],[6,13,6,17],[8,1,9,5],[8,6,8,7],[8,8,8,12],[8,13,8,17],[9,6,9,7],[9,13,9,17],[14,1,15,5],[14,6,14,7],[14,8,14,12],[14,13,14,17],[15,6,15,7],[15,8,15,12],[15,13,15,17],[17,13,17,17],[10,6,11,7],[10,13,11,17],[12,13,13,17],[12,6,13,7],[12,8,13,12],[10,1,13,5],[19,23,19,26],[22,23,22,26],[23,23,23,26],[17,27,17,31],[18,27,18,31],[22,29,22,31],[24,23,24,26],[24,27,24,31],[20,23,20,26],[21,23,21,26],[21,29,21,31],[28,18,28,19],[32,18,32,22],[32,23,32,26],[44,27,44,31],[35,20,35,36],[31,23,31,26],[30,23,30,26],[41,13,41,17],[42,13,42,17],[36,13,36,17],[37,13,37,17],[38,13,38,17],[40,13,40,17],[39,1,39,17],[36,1,36,12],[37,1,37,12],[38,1,38,12],[40,1,40,12],[33,13,33,17],[33,18,33,22],[36,32,36,36],[37,32,37,36],[38,32,38,36],[40,32,40,36],[32,32,33,36],[32,27,32,31],[40,20,40,31],[38,20,38,31],[37,20,37,31],[36,20,36,31],[39,20,39,36],[47,34,47,36],[31,20,31,22],[41,32,41,36],[42,32,42,36],[43,27,43,31],[45,27,45,31],[43,32,43,36],[44,32,44,36],[45,32,45,36],[48,34,48,36],[45,20,45,26],[44,20,44,26],[59,16,59,36],[60,16,67,21],[60,27,67,31],[60,22,67,26],[60,32,67,36],[59,1,59,5],[59,6,59,10],[59,11,59,15],[60,1,67,5],[60,6,67,10],[60,11,67,15],[47,27,47,32],[46,20,46,26],[46,27,46,31],[46,32,46,36],[53,31,53,36],[51,1,51,30],[52,1,52,30],[53,1,53,30],[55,31,55,36],[56,31,56,36],[68,27,69,31],[68,32,69,36],[70,27,71,31],[70,32,71,36],[60,39,67,39],[68,39,69,39],[70,39,71,39],[70,1,71,5],[68,6,69,10],[70,6,71,10],[68,11,69,15],[70,11,71,15],[68,16,69,21],[70,16,71,21],[68,22,69,26],[70,22,71,26],[68,1,69,5]]}
[null,{"$f":"CONCATENATE(\"VORDERINGSSTAAT \",'1.Overzicht vorderingsstaat'!AK3)","v":"VORDERINGSSTAAT 0"}]
[]
[null,{"$f":"CONCATENATE(\"Dossier : \",'0.basisgegevens'!B2,\" - \",'0.basisgegevens'!B3)","v":"Dossier : TE - Omschrijving project"}]
[null,{"$f":"CONCATENATE(\"Perceel : \",'0.basisgegevens'!B4,\" - \",'0.basisgegevens'!B5)","v":"Perceel : Pxx - Perceel omschrijving"}]
[null,"Datum :",null,{"$f":"'0.basisgegevens'!B13","v":"00:00:00"},null,null,null,null,null,null,"Periode : Van ",{"$f":"'1.Overzicht vorderingsstaat'!AK6","v":"00:00:00"},null,null,"tot",{"$f":"'1.Overzicht vorderingsstaat'!AK7","v":"00:00:00"}]
[null,null,null,null,null,null,null,null,null,null,null,null,null,null,null,null,null,null,null,null,null,null,null,null,null,null,null,null,false]
[null,"Overzicht",null,null,null,null,null,null,"Vordering excl. BTW",null,null,null,null,"Herzieningen",null,null,null,null,"Vordering excl.BTW, Incl herziening",null,null,null,null,"BTW",null,null,null,"Te betalen",null,null,null,null,"Totalen"]
[null,"Algemene totalen vorige staten"]
[null,"Deel UZL",null,null,null,null,"Deel A",null,{"$f":"'1.Overzicht vorderingsstaat'!AE19","v":0},null,null,null,null,{"$f":"'1.Overzicht vorderingsstaat'!AL19","v":0},null,null,null,null,{"$f":"I9+N9","v":0},null,null,null,null,{"$f":"IF($AC$6=TRUE,\"BTW verlegd\",((S9)*'1.Overzicht vorderingsstaat'!$AT$19))","v":0},null,null,null,{"$f":"IF($AC$6=TRUE,S9,S9+X9)","v":0},null,null,null,null,{"$f":"AB9+AB10","v":0}]
[null,null,null,null,null,null,"Deel B",null,{"$f":"'1.Overzicht vorderingsstaat'!AE20","v":0},null,null,null,null,{"$f":"'1.Overzicht vorderingsstaat'!AL20","v":0},null,null,null,null,{"$f":"I10+N10","v":0},null,null,null,null,{"$f":"IF($AC$6=TRUE,\"BTW verlegd\",((S10)*'1.Overzicht vorderingsstaat'!$AT$19))","v":0},null,null,null,{"$f":"IF($AC$6=TRUE,S10,S10+X10)","v":0}]
[null,"Deel Gemeenschappelijk",null,null,null,null,"Deel A",null,{"$f":"'1.Overzicht vorderingsstaat'!AE29","v":0},null,null,null,null,{"$f":"'1.Overzicht vorderingsstaat'!AL29","v":0},null,null,null,null,"UZL",null,{"$f":"(I11+N11)*'1.Overzicht vorderingsstaat'!$S$24","v":0},null,null,{"$f":"IF($AC$6=TRUE,\"BTW verlegd\",((U11)*'1.Overzicht vorderingsstaat'!$AT$19))","v":0},null,null,null,"UZL",null,{"$f":"IF($AC$6=TRUE,U11,U11+X11)","v":0},null,null,{"$f":"CONCATENATE(\"UZL: \",DOLLAR(AM11),\" Derden: \",DOLLAR(AM12))","v":"UZL: € 0,00 Derden: € 0,00"},null,null,null,null,"UZL",{"$f":"AD11+AD13","v":0}]
[null,null,null,null,null,null,null,null,null,null,null,null,null,null,null,null,null,null,"Derden",null,{"$f":"(I11+N11)*'1.Overzicht vorderingsstaat'!$S$25","v":0},null,null,{"$f":"IF($AC$6=TRUE,\"BTW verlegd\",((U12)*'1.Overzicht vorderingsstaat'!$AT$37))","v":0},null,null,null,"Derden",null,{"$f":"IF($AC$6=TRUE,U12,U12+X12)","v":0},null,null,null,null,null,null,null,"Derden",{"$f":"AD12+AD14","v":0}]
[null,null,null,null,null,null,"Deel B",null,{"$f":"'1.Overzicht vorderingsstaat'!AE30","v":0},null,null,null,null,{"$f":"'1.Overzicht vorderingsstaat'!AL30","v":0},null,null,null,null,"UZL",null,{"$f":"(I13+N13)*'1.Overzicht vorderingsstaat'!$S$24","v":0},null,null,{"$f":"IF($AC$6=TRUE,\"BTW verlegd\",((U13)*'1.Overzicht vorderingsstaat'!$AT$19))","v":0},null,null,null,"UZL",null,{"$f":"IF($AC$6=TRUE,U13,U13+X13)","v":0}]
[null,null,null,null,null,null,null,null,null,null,null,null,null,null,null,null,null,null,"Derden",null,{"$f":"(I13+N13)*'1.Overzicht vorderingsstaat'!$S$25","v":0},null,null,{"$f":"IF($AC$6=TRUE,\"BTW verlegd\",((U14)*'1.Overzicht vorderingsstaat'!$AT$37))","v":0},null,null,null,"Derden",null,{"$f":"IF($AC$6=TRUE,U14,U14+X14)","v":0}]
[null,"Deel Derden",null,null,null,null,"Deel A",null,{"$f":"'1.Overzicht vorderingsstaat'!AE37","v":0},null,null,null,null,{"$f":"'1.Overzicht vorderingsstaat'!AL37","v":0},null,null,null,null,{"$f":"I15+N15","v":0},null,null,null,null,{"$f":"IF($AC$6=TRUE,\"BTW verlegd\",((S15)*'1.Overzicht vorderingsstaat'!$AT$37))","v":0},null,null,null,{"$f":"IF($AC$6=TRUE,S15,S15+X15)","v":0},null,null,null,null,{"$f":"AB15+AB16","v":0}]
[null,null,null,null,null,null,"Deel B",null,{"$f":"'1.Overzicht vorderingsstaat'!AE38","v":0},null,null,null,null,{"$f":"'1.Overzicht vorderingsstaat'!AL38","v":0},null,null,null,null,{"$f":"I16+N16","v":0},null,null,null,null,{"$f":"IF($AC$6=TRUE,\"BTW verlegd\",((S16)*'1.Overzicht vorderingsstaat'!$AT$37))","v":0},null,null,null,{"$f":"IF($AC$6=TRUE,S16,S16+X16)","v":0}]
[null,{"$f":"CONCATENATE(\"Totalen huidige staat nr. \",'1.Overzicht vorderingsstaat'!AK3)","v":"Totalen huidige staat nr. 0"}]
[null,"Deel UZL",null,null,null,null,"Deel A",null,{"$f":"'1.Overzicht vorderingsstaat'!I19:O19","v":0},null,null,null,null,{"$f":"'1.Overzicht vorderingsstaat'!P19","v":0},null,null,null,null,{"$f":"I18+N18","v":0},null,null,null,null,{"$f":"IF($AC$6=TRUE,\"BTW verlegd\",((S18)*'1.Overzicht vorderingsstaat'!$AT$19))","v":0},null,null,null,{"$f":"IF($AC$6=TRUE,S18,S18+X18)","v":0},null,null,null,null,{"$f":"AB18+AB19","v":0}]
[null,null,null,null,null,null,"Deel B",null,{"$f":"'1.Overzicht vorderingsstaat'!I20:O20","v":0},null,null,null,null,{"$f":"'1.Overzicht vorderingsstaat'!P20","v":0},null,null,null,null,{"$f":"I19+N19","v":0},null,null,null,null,{"$f":"IF($AC$6=TRUE,\"BTW verlegd\",((S19)*'1.Overzicht vorderingsstaat'!$AT$19))","v":0},null,null,null,{"$f":"IF($AC$6=TRUE,S19,S19+X19)","v":0}]
[null,"Deel Gemeenschappelijk",null,null,null,null,"Deel A",null,{"$f":"'1.Overzicht vorderingsstaat'!I29:O29","v":0},null,null,null,null,{"$f":"'1.Overzicht vorderingsstaat'!P29","v":0},null,null,null,null,"UZL",null,{"$f":"(I20+N20)*'1.Overzicht vorderingsstaat'!$S$24","v":0},null,null,{"$f":"IF($AC$6=TRUE,\"BTW verlegd\",((U20)*'1.Overzicht vorderingsstaat'!$AT$19))","v":0},null,null,null,"UZL",null,{"$f":"IF($AC$6=TRUE,U20,U20+X20)","v":0},null,null,{"$f":"CONCATENATE(\"UZL:\",DOLLAR(AM20),\"  Derden:\",DOLLAR(AM21))","v":"UZL:€ 0,00  Derden:€ 0,00"},null,null,null,null,"UZL",{"$f":"AD20+AD22","v":0}]
[null,null,null,null,null,null,null,null,null,null,null,null,null,null,null,null,null,null,"Derden",null,{"$f":"(I20+N20)*'1.Overzicht vorderingsstaat'!$S$25","v":0},null,null,{"$f":"IF($AC$6=TRUE,\"BTW verlegd\",((U21)*'1.Overzicht vorderingsstaat'!$AT$37))","v":0},null,null,null,"Derden",null,{"$f":"IF($AC$6=TRUE,U21,U21+X21)","v":0},null,null,null,null,null,null,null,"Derden",{"$f":"AD21+AD23","v":0}]
[null,null,null,null,null,null,"Deel B",null,{"$f":"'1.Overzicht vorderingsstaat'!I30:O30","v":0},null,null,null,null,{"$f":"'1.Overzicht vorderingsstaat'!P30","v":0},null,null,null,null,"UZL",null,{"$f":"(I22+N22)*'1.Overzicht vorderingsstaat'!$S$24","v":0},null,null,{"$f":"IF($AC$6=TRUE,\"BTW verlegd\",((U22)*'1.Overzicht vorderingsstaat'!$AT$19))","v":0},null,null,null,"UZL",null,{"$f":"IF($AC$6=TRUE,U22,U22+X22)","v":0}]
[null,null,null,null,null,null,null,null,null,null,null,null,null,null,null,null,null,null,"Derden",null,{"$f":"(I22+N22)*'1.Overzicht vorderingsstaat'!$S$25","v":0},null,null,{"$f":"IF($AC$6=TRUE,\"BTW verlegd\",((U23)*'1.Overzicht vorderingsstaat'!$AT$37))","v":0},null,null,null,"Derden",null,{"$f":"IF($AC$6=TRUE,U23,U23+X23)","v":0}]
[null,"Deel Derden",null,null,null,null,"Deel A",null,{"$f":"'1.Overzicht vorderingsstaat'!I37:O37","v":0},null,null,null,null,{"$f":"'1.Overzicht vorderingsstaat'!P37","v":0},null,null,null,null,{"$f":"I24+N24","v":0},null,null,null,null,{"$f":"IF($AC$6=TRUE,\"BTW verlegd\",((S24)*'1.Overzicht vorderingsstaat'!$AT$37))","v":0},null,null,null,{"$f":"IF($AC$6=TRUE,S24,S24+X24)","v":0},null,null,null,null,{"$f":"AB24+AB25","v":0}]
[null,null,null,null,null,null,"Deel B",null,{"$f":"'1.Overzicht vorderingsstaat'!I38:O38","v":0},null,null,null,null,{"$f":"'1.Overzicht vorderingsstaat'!P38","v":0},null,null,null,null,{"$f":"I25+N25","v":0},null,null,null,null,{"$f":"IF($AC$6=TRUE,\"BTW verlegd\",((S25)*'1.Overzicht vorderingsstaat'!$AT$37))","v":0},null,null,null,{"$f":"IF($AC$6=TRUE,S25,S25+X25)","v":0}]
[null,{"$f":"CONCATENATE(\"Algemene totalen inclusief staat nr. \",'1.Overzicht vorderingsstaat'!AK3)","v":"Algemene totalen inclusief staat nr. 0"}]
[null,"Deel UZL",null,null,null,null,"Deel A",null,{"$f":"I9+I18","v":0},null,null,null,null,{"$f":"N9+N18","v":0},null,null,null,null,{"$f":"I27+N27","v":0},null,null,null,null,{"$f":"IF($AC$6=TRUE,\"BTW verlegd\",((S27)*'1.Overzicht vorderingsstaat'!$AT$19))","v":0},null,null,null,{"$f":"IF($AC$6=TRUE,S27,S27+X27)","v":0},null,null,null,null,{"$f":"AB27+AB28","v":0}]
[null,null,null,null,null,null,"Deel B",null,{"$f":"I10+I19","v":0},null,null,null,null,{"$f":"N10+N19","v":0},null,null,null,null,{"$f":"I28+N28","v":0},null,null,null,null,{"$f":"IF($AC$6=TRUE,\"BTW verlegd\",((S28)*'1.Overzicht vorderingsstaat'!$AT$19))","v":0},null,null,null,{"$f":"IF($AC$6=TRUE,S28,S28+X28)","v":0}]
[null,"Deel gemeenschappelijk",null,null,null,null,"Deel A",null,{"$f":"I11+I20","v":0},null,null,null,null,{"$f":"N11+N20","v":0},null,null,null,null,"UZL",null,{"$f":"(I29+N29)*'1.Overzicht vorderingsstaat'!$S$24","v":0},null,null,{"$f":"IF($AC$6=TRUE,\"BTW verlegd\",((U29)*'1.Overzicht vorderingsstaat'!$AT$19))","v":0},null,null,null,"UZL",null,{"$f":"IF($AC$6=TRUE,U29,U29+X29)","v":0},null,null,{"$f":"CONCATENATE(\"UZL:\",DOLLAR(AM29),\" Derden:\",DOLLAR(AM30))","v":"UZL:€ 0,00 Derden:€ 0,00"},null,null,null,null,"UZL",{"$f":"AD29+AD31","v":0}]
[null,null,null,null,null,null,null,null,null,null,null,null,null,null,null,null,null,null,"Derden",null,{"$f":"(I29+N29)*'1.Overzicht vorderingsstaat'!$S$25","v":0},null,null,{"$f":"IF($AC$6=TRUE,\"BTW verlegd\",((U30)*'1.Overzicht vorderingsstaat'!$AT$37))","v":0},null,null,null,"Derden",null,{"$f":"IF($AC$6=TRUE,U30,U30+X30)","v":0},null,null,null,null,null,null,null,"Derden",{"$f":"AD30+AD32","v":0}]
[null,null,null,null,null,null,"Deel B",null,{"$f":"I13+I22","v":0},null,null,null,null,{"$f":"N13+N22","v":0},null,null,null,null,"UZL",null,{"$f":"(I31+N31)*'1.Overzicht vorderingsstaat'!$S$24","v":0},null,null,{"$f":"IF($AC$6=TRUE,\"BTW verlegd\",((U31)*'1.Overzicht vorderingsstaat'!$AT$19))","v":0},null,null,null,"UZL",null,{"$f":"IF($AC$6=TRUE,U31,U31+X31)","v":0}]
[null,null,null,null,null,null,null,null,null,null,null,null,null,null,null,null,null,null,"Derden",null,{"$f":"(I31+N31)*'1.Overzicht vorderingsstaat'!$S$25","v":0},null,null,{"$f":"IF($AC$6=TRUE,\"BTW verlegd\",((U32)*'1.Overzicht vorderingsstaat'!$AT$37))","v":0},null,null,null,"Derden",null,{"$f":"IF($AC$6=TRUE,U32,U32+X32)","v":0}]
[null,"Deel Derden",null,null,null,null,"Deel A",null,{"$f":"I15+I24","v":0},null,null,null,null,{"$f":"N15+N24","v":0},null,null,null,null,{"$f":"I33+N33","v":0},null,null,null,null,{"$f":"IF($AC$6=TRUE,\"BTW verlegd\",((S33)*'1.Overzicht vorderingsstaat'!$AT$37))","v":0},null,null,null,{"$f":"IF($AC$6=TRUE,S33,S33+X33)","v":0},null,null,null,null,{"$f":"AB33+AB34","v":0}]
[null,null,null,null,null,null,"Deel B",null,{"$f":"I16+I25","v":0},null,null,null,null,{"$f":"N16+N25","v":0},null,null,null,null,{"$f":"I34+N34","v":0},null,null,null,null,{"$f":"IF($AC$6=TRUE,\"BTW verlegd\",((S34)*'1.Overzicht vorderingsstaat'!$AT$37))","v":0},null,null,null,{"$f":"IF($AC$6=TRUE,S34,S34+X34)","v":0}]
[]
[null,{"$f":"CONCATENATE(\"Totaal vorderingsstaat deel UZL\",\": VS nr \",'1.Overzicht vorderingsstaat'!AK3)","v":"Totaal vorderingsstaat deel UZL: VS nr 0"},null,null,null,null,null,null,null,null,null,null,null,null,null,null,null,null,null,null,{"$f":"CONCATENATE(\"Totaal vorderingsstaat deel derden\",\": VS nr \",'1.Overzicht vorderingsstaat'!AK3)","v":"Totaal vorderingsstaat deel derden: VS nr 0"}]
[null,"Deel A + Deel B excl. BTW",null,null,null,null,null,null,null,null,null,null,null,{"$f":"S18+S19+U20+U22","v":0},null,null,null,null,null,null,"Deel A + Deel B excl. BTW",null,null,null,null,null,null,null,null,null,null,null,{"$f":"U21+U23+S24+S25","v":0}]
[null,"Deel A + Deel B incl. BTW",null,null,null,null,null,null,null,null,null,null,null,{"$f":"N37*(1+'1.Overzicht vorderingsstaat'!$AT$19)","v":0},null,null,null,null,null,null,"Deel A + Deel B incl. BTW",null,null,null,null,null,null,null,null,null,null,null,{"$f":"AG37*(1+'1.Overzicht vorderingsstaat'!$AT$37)","v":0}]
[null,"Te betalen",null,null,null,null,null,null,null,null,null,null,null,{"$f":"AB18+AB19+AD20+AD22","v":0},null,null,null,null,null,null,"Te betalen",null,null,null,null,null,null,null,null,null,null,null,{"$f":"AD21+AD23+AB24+AB25","v":0}]
[null,{"$f":"CONCATENATE(\"Algemene totalen UZL inclusief staat nr. \",'1.Overzicht vorderingsstaat'!AK3)","v":"Algemene totalen UZL inclusief staat nr. 0"},null,null,null,null,null,null,null,null,null,null,null,null,null,null,null,null,null,null,{"$f":"CONCATENATE(\"Algemene totalen  deel derden inclusief staat nr. \",'1.Overzicht vorderingsstaat'!AK3)","v":"Algemene totalen  deel derden inclusief staat nr. 0"}]
[null,"Deel A + Deel B excl. BTW",null,null,null,null,null,null,null,null,null,null,null,{"$f":"S27+S28+U29+U31","v":0},null,null,null,null,null,null,"Deel A + Deel B excl. BTW",null,null,null,null,null,null,null,null,null,null,null,{"$f":"U30+U32+S33+S34","v":0}]
[null,"Deel A + Deel B incl. BTW",null,null,null,null,null,null,null,null,null,null,null,{"$f":"N41*(1+'1.Overzicht vorderingsstaat'!$AT$19)","v":0},null,null,null,null,null,null,"Deel A + Deel B incl. BTW",null,null,null,null,null,null,null,null,null,null,null,{"$f":"AG41*(1+'1.Overzicht vorderingsstaat'!$AT$37)","v":0}]
[null,"Totaal : ",null,null,null,null,null,null,null,null,null,null,null,{"$f":"AB27+AB28+AD29+AD31","v":0},null,null,null,null,null,null,"Totaal : ",null,null,null,null,null,null,null,null,null,null,null,{"$f":"AD30+AD32+AB33+AB34","v":0}]
[null,null,null,null,null,null,null,null,"Excl. BTW",null,null,null,null,"Incl. BTW",null,null,null,null,null,null,null,null,null,null,null,null,null,"Excl. BTW",null,null,null,null,"Incl. BTW"]
[null,"Basisbedrag aanbesteding :",null,null,null,null,null,null,{"$f":"'1.Overzicht vorderingsstaat'!V15+'1.Overzicht vorderingsstaat'!V24","v":0},null,null,null,null,{"$f":"IF($AC$6=TRUE,\"BTW verlegd\",(I45+(I45)*'1.Overzicht vorderingsstaat'!$AT$19))","v":0},null,null,null,null,null,null,"Basisbedrag van de aanbesteding :",null,null,null,null,null,null,{"$f":"'1.Overzicht vorderingsstaat'!V33+'1.Overzicht vorderingsstaat'!V25","v":0},null,null,null,null,{"$f":"IF($AC$6=TRUE,\"BTW verlegd\",(AB45+(AB45)*'1.Overzicht vorderingsstaat'!$AT$37))","v":0}]
[null,"Bedrag goedgekeurde wijzigingen :",null,null,null,null,null,null,{"$f":"I28+(I31*'1.Overzicht vorderingsstaat'!$S$24)","v":0},null,null,null,null,{"$f":"IF($AC$6=TRUE,\"BTW verlegd\",(I46+(I46)*'1.Overzicht vorderingsstaat'!$AT$19))","v":0},null,null,null,null,null,null,"Bedrag goedgekeurde wijzigingen :",null,null,null,null,null,null,{"$f":"I34+(I31*'1.Overzicht vorderingsstaat'!$S$25)","v":0},null,null,null,null,{"$f":"IF($AC$6=TRUE,\"BTW verlegd\",(AB46+(AB46)*'1.Overzicht vorderingsstaat'!$AT$37))","v":0}]
[null,"Huidig bedrag aanbesteding :",null,null,null,null,null,null,{"$f":"I45+I46","v":0},null,null,null,null,{"$f":"IF($AC$6=TRUE,\"BTW verlegd\",(I47+(I47)*'1.Overzicht vorderingsstaat'!$AT$19))","v":0},null,null,null,null,null,null,"Huidig bedrag van de aanbesteding :",null,null,null,null,null,null,{"$f":"AB45+AB46","v":0},null,null,null,null,{"$f":"IF($AC$6=TRUE,\"BTW verlegd\",(AB47+(AB47)*'1.Overzicht vorderingsstaat'!$AT$37))","v":0}]
[null,"% tav basisbedrag aanbesteding (incl.BTW) :",null,null,null,null,null,null,"Excl. goedgekeurde wijzigingen :",null,null,null,null,null,null,{"$f":"IFERROR(((I27*(1+'1.Overzicht vorderingsstaat'!AT19)))/(I45+(I45)*'1.Overzicht vorderingsstaat'!$AT$19),0)","v":0},null,null,null,null,"% tav basisbedrag v/d aanbesteding (incl.BTW) :",null,null,null,null,null,null,"Excl. goedgekeurde wijzigingen :",null,null,null,null,null,null,{"$f":"IFERROR(((I33*(1+'1.Overzicht vorderingsstaat'!AT37)))/(AB45+(AB45)*'1.Overzicht vorderingsstaat'!$AT$37),0)","v":0}]
[null,null,null,null,null,null,null,null,"Incl. goedgekeurde wijzigingen :",null,null,null,null,null,null,{"$f":"IFERROR(((I27+I28)*(1+'1.Overzicht vorderingsstaat'!AT19))/(I45+(I45)*'1.Overzicht vorderingsstaat'!$AT$19),0)","v":0},null,null,null,null,null,null,null,null,null,null,null,"Incl. goedgekeurde wijzigingen :",null,null,null,null,null,null,{"$f":"IFERROR(((I33+I34)*(1+'1.Overzicht vorderingsstaat'!AT37))/(AB45+(AB45)*'1.Overzicht vorderingsstaat'!$AT$37),0)","v":0}]
[]
[null,{"$f":"CONCATENATE(\"Totaal vorderingsstaat \",\": VS nr \",'1.Overzicht vorderingsstaat'!AK3)","v":"Totaal vorderingsstaat : VS nr 0"}]
[null,"Deel A + Deel B excl. BTW",null,null,null,null,null,null,null,null,null,null,null,null,null,null,null,null,null,null,null,null,null,null,null,null,null,null,null,null,null,{"$f":"N37+AG37","v":0}]
[null,"Deel A + Deel B incl. BTW",null,null,null,null,null,null,null,null,null,null,null,null,null,null,null,null,null,null,null,null,null,null,null,null,null,null,null,null,null,{"$f":"N38+AG38","v":0}]
[null,"Te betalen",null,null,null,null,null,null,null,null,null,null,null,null,null,null,null,null,null,null,null,null,null,null,null,null,null,null,null,null,null,{"$f":"N39+AG39","v":0}]
[null,{"$f":"CONCATENATE(\"Algemene totalen inclusief staat nr. \",'1.Overzicht vorderingsstaat'!AK3)","v":"Algemene totalen inclusief staat nr. 0"}]
[null,"Deel A + Deel B excl. BTW",null,null,null,null,null,null,null,null,null,null,null,null,null,null,null,null,null,null,null,null,null,null,null,null,null,null,null,null,null,{"$f":"N41+AG41","v":0}]
[null,"Deel A + Deel B incl. BTW",null,null,null,null,null,null,null,null,null,null,null,null,null,null,null,null,null,null,null,null,null,null,null,null,null,null,null,null,null,{"$f":"N42+AG42","v":0}]
[null,"Totaal :",null,null,null,null,null,null,null,null,null,null,null,null,null,null,null,null,null,null,null,null,null,null,null,null,null,null,null,null,null,{"$f":"N43+AG43","v":0}]
[]
[null,"Aannemer",null,null,null,null,"Uitvoeringscoördinator",null,null,null,null,"Ontwerper",null,null,null,null,"Bouwheer",null,null,null,null,null,null,null,null,null,null,null,null,null,null,null,null,null,null,null,null,null,null,"Derden"]
[null,null,null,null,null,null,null,null,null,null,null,null,null,null,null,null,"Administratief nazicht \nprojectadministratie",null,null,null,null,null,"Projectingenieur UZL",null,null,null,null,"Project Coördinator",null,null,null,null,"Leidend Ambtenaar"]
[]
[]
[]
[]
[]
[]
[]
[null,"Datum :",null,null,null,null,"Datum :",null,null,null,null,"Datum :",null,null,null,null,"Datum :",null,null,null,null,null,"Datum :",null,null,null,null,"Datum :",null,null,null,null,"Datum :",null,null,null,null,null,null,"Datum :"]
[]
[null,{"$f":"'0.basisgegevens'!B10","v":0},null,null,null,null,{"$f":"'0.basisgegevens'!B8","v":0},null,null,null,null,{"$f":"'0.basisgegevens'!B9","v":0},null,null,null,null,null,null,null,null,null,null,{"$f":"'0.basisgegevens'!B6","v":0},null,null,null,null,{"$f":"'0.basisgegevens'!B7","v":0},null,null,null,null,null,null,null,null,null,null,null,{"$f":"'0.basisgegevens'!B11","v":0}]

{"sheet":"3.VS1-A","index":5,"n_rows":1002,"n_cols":16,"rows_kept":1002,"cut":false,"hidden":false,"merged":[[7,5,7,8],[7,9,9,9],[7,10,7,13],[8,5,9,5],[8,6,8,8],[8,10,9,10],[8,11,8,13],[7,4,9,4],[0,1,1,1],[7,0,9,0],[7,1,9,1],[7,2,9,2],[7,3,9,3]]}
[null,"VORDERINGSSTAAT 1 - DEEL A",null,null,null,null,null,null,null,null,null,null,"Datum : ",{"$f":"'0.basisgegevens'!B12","v":"00:00:00"}]
[null,null,null,null,null,null,null,null,null,null,null,null,"Projectingenieur : ",{"$f":"'0.basisgegevens'!B6","v":0}]
["TE",{"$f":"'0.basisgegevens'!B2","v":"TE"}]
["Titel",{"$f":"'0.basisgegevens'!B3","v":"Omschrijving project"}]
[]
[null,null,null,null,null,null,null,null,null,"TOTAAL excl. BTW",{"$f":"IFERROR(IF(SUM(K11:K1001)<>0,SUM(K11:K1001),\"\"),\"\")","v":""},{"$f":"IFERROR(IF(SUM(L11:L1001)<>0,SUM(L11:L1001),\"\"),\"\")","v":""},"",{"$f":"IFERROR(IF(SUM(N11:N1001)<>0,SUM(N11:N1001),\"\"),\"\")","v":""},null,"afdrukbereik filter"]
[]
["Artnr","Omschrijving","Herziening","Meting","EH","HOEVEELHEDEN",null,null,null,"Eenh.prijs \n(excl. BTW)","BEDRAGEN"]
[null,null,null,null,null,"Voorziene hoeveelheid","Uitgevoerde hoeveelheden",null,null,null,"Voorzien bedrag","Uitgevoerde bedragen"]
[null,null,null,null,null,null,"Vorige periode","Huidige periode","Cumul",null,null,"Vorige periode","Huidige periode","Cumul"]
[null,null,null,null,null,null,null,null,{"$f":"IFERROR(G11+H11,\"\")","v":0},null,{"$f":"IFERROR(IF(J11<>\"\",F11*J11,\"\"),\"\")","v":""},{"$f":"IFERROR(IF(J11<>\"\",G11*J11,\"\"),\"\")","v":""},{"$f":"IFERROR(IF(J11<>\"\",H11*J11,\"\"),\"\")","v":""},{"$f":"IFERROR(L11+M11,\"\")","v":""}]
[null,null,null,null,null,null,null,null,{"$f":"IFERROR(G12+H12,\"\")","v":0},null,{"$f":"IFERROR(IF(J12<>\"\",F12*J12,\"\"),\"\")","v":""},{"$f":"IFERROR(IF(J12<>\"\",G12*J12,\"\"),\"\")","v":""},{"$f":"IFERROR(IF(J12<>\"\",H12*J12,\"\"),\"\")","v":""},{"$f":"IFERROR(L12+M12,\"\")","v":""}]
[null,null,null,null,null,null,null,null,0,null,"","","",""]
[null,null,null,null,null,null,null,null,0,null,"","","",""]
[null,null,null,null,null,null,null,null,0,null,"","","",""]
[null,null,null,null,null,null,null,null,0,null,"","","",""]
[null,null,null,null,null,null,null,null,0,null,"","","",""]
[null,null,null,null,null,null,null,null,0,null,"","","",""]
[null,null,null,null,null,null,null,null,0,null,"","","",""]
[null,null,null,null,null,null,null,null,0,null,"","","",""]
[null,null,null,null,null,null,null,null,0,null,"","","",""]
[null,null,null,null,null,null,null,null,0,null,"","","",""]
[null,null,null,null,null,null,null,null,0,null,"","","",""]
[null,null,null,null,null,null,null,null,0,null,"","","",""]
[null,null,null,null,null,null,null,null,0,null,"","","",""]
[null,null,null,null,null,null,null,null,0,null,"","","",""]
[null,null,null,null,null,null,null,null,0,null,"","","",""]
[null,null,null,null,null,null,null,null,0,null,"","","",""]
[null,null,null,null,null,null,null,null,0,null,"","","",""]
[null,null,null,null,null,null,null,null,0,null,"","","",""]
[null,null,null,null,null,null,null,null,0,null,"","","",""]
[null,null,null,null,null,null,null,null,0,null,"","","",""]
[null,null,null,null,null,null,null,null,0,null,"","","",""]
[null,null,null,null,null,null,null,null,0,null,"","","",""]
[null,null,null,null,null,null,null,null,0,null,"","","",""]
[null,null,null,null,null,null,null,null,0,null,"","","",""]
[null,null,null,null,null,null,null,null,0,null,"","","",""]
[null,null,null,null,null,null,null,null,0,null,"","","",""]
[null,null,null,null,null,null,null,null,0,null,"","","",""]
[null,null,null,null,null,null,null,null,0,null,"","","",""]
[null,null,null,null,null,null,null,null,0,null,"","","",""]
[null,null,null,null,null,null,null,null,0,null,"","","",""]
[null,null,null,null,null,null,null,null,0,null,"","","",""]
[null,null,null,null,null,null,null,null,0,null,"","","",""]
[null,null,null,null,null,null,null,null,0,null,"","","",""]
[null,null,null,null,null,null,null,null,0,null,"","","",""]
[null,null,null,null,null,null,null,null,0,null,"","","",""]
[null,null,null,null,null,null,null,null,0,null,"","","",""]
[null,null,null,null,null,null,null,null,0,null,"","","",""]
[null,null,null,null,null,null,null,null,0,null,"","","",""]
[null,null,null,null,null,null,null,null,0,null,"","","",""]
[null,null,null,null,null,null,null,null,0,null,"","","",""]
[null,null,null,null,null,null,null,null,0,null,"","","",""]
[null,null,null,null,null,null,null,null,0,null,"","","",""]
[null,null,null,null,null,null,null,null,0,null,"","","",""]
[null,null,null,null,null,null,null,null,0,null,"","","",""]
[null,null,null,null,null,null,null,null,0,null,"","","",""]
[null,null,null,null,null,null,null,null,0,null,"","","",""]
[null,null,null,null,null,null,null,null,0,null,"","","",""]
[null,null,null,null,null,null,null,null,0,null,"","","",""]
[null,null,null,null,null,null,null,null,0,null,"","","",""]
[null,null,null,null,null,null,null,null,0,null,"","","",""]
[null,null,null,null,null,null,null,null,0,null,"","","",""]
[null,null,null,null,null,null,null,null,0,null,"","","",""]
[null,null,null,null,null,null,null,null,0,null,"","","",""]
[null,null,null,null,null,null,null,null,0,null,"","","",""]
[null,null,null,null,null,null,null,null,0,null,"","","",""]
[null,null,null,null,null,null,null,null,0,null,"","","",""]
[null,null,null,null,null,null,null,null,0,null,"","","",""]
[null,null,null,null,null,null,null,null,0,null,"","","",""]
[null,null,null,null,null,null,null,null,0,null,"","","",""]
[null,null,null,null,null,null,null,null,0,null,"","","",""]
[null,null,null,null,null,null,null,null,0,null,"","","",""]
[null,null,null,null,null,null,null,null,0,null,"","","",""]
[null,null,null,null,null,null,null,null,0,null,"","","",""]
[null,null,null,null,null,null,null,null,{"$f":"IFERROR(G76+H76,\"\")","v":0},null,{"$f":"IFERROR(IF(J76<>\"\",F76*J76,\"\"),\"\")","v":""},{"$f":"IFERROR(IF(J76<>\"\",G76*J76,\"\"),\"\")","v":""},{"$f":"IFERROR(IF(J76<>\"\",H76*J76,\"\"),\"\")","v":""},{"$f":"IFERROR(L76+M76,\"\")","v":""}]
[null,null,null,null,null,null,null,null,0,null,"","","",""]
[null,null,null,null,null,null,null,null,0,null,"","","",""]
[null,null,null,null,null,null,null,null,0,null,"","","",""]
[null,null,null,null,null,null,null,null,0,null,"","","",""]
[null,null,null,null,null,null,null,null,0,null,"","","",""]
[null,null,null,null,null,null,null,null,0,null,"","","",""]
[null,null,null,null,null,null,null,null,0,null,"","","",""]
[null,null,null,null,null,null,null,null,0,null,"","","",""]
[null,null,null,null,null,null,null,null,0,null,"","","",""]
[null,null,null,null,null,null,null,null,0,null,"","","",""]
[null,null,null,null,null,null,null,null,0,null,"","","",""]
[null,null,null,null,null,null,null,null,0,null,"","","",""]
[null,null,null,null,null,null,null,null,0,null,"","","",""]
[null,null,null,null,null,null,null,null,0,null,"","","",""]
[null,null,null,null,null,null,null,null,0,null,"","","",""]
[null,null,null,null,null,null,null,null,0,null,"","","",""]
[null,null,null,null,null,null,null,null,0,null,"","","",""]
[null,null,null,null,null,null,null,null,0,null,"","","",""]
[null,null,null,null,null,null,null,null,0,null,"","","",""]
[null,null,null,null,null,null,null,null,0,null,"","","",""]
[null,null,null,null,null,null,null,null,0,null,"","","",""]
[null,null,null,null,null,null,null,null,0,null,"","","",""]
[null,null,null,null,null,null,null,null,0,null,"","","",""]
[null,null,null,null,null,null,null,null,0,null,"","","",""]
[null,null,null,null,null,null,null,null,0,null,"","","",""]
[null,null,null,null,null,null,null,null,0,null,"","","",""]
[null,null,null,null,null,null,null,null,0,null,"","","",""]
[null,null,null,null,null,null,null,null,0,null,"","","",""]
[null,null,null,null,null,null,null,null,0,null,"","","",""]
[null,null,null,null,null,null,null,null,0,null,"","","",""]
[null,null,null,null,null,null,null,null,0,null,"","","",""]
[null,null,null,null,null,null,null,null,0,null,"","","",""]
[null,null,null,null,null,null,null,null,0,null,"","","",""]
[null,null,null,null,null,null,null,null,0,null,"","","",""]
[null,null,null,null,null,null,null,null,0,null,"","","",""]
[null,null,null,null,null,null,null,null,0,null,"","","",""]
[null,null,null,null,null,null,null,null,0,null,"","","",""]
[null,null,null,null,null,null,null,null,0,null,"","","",""]
[null,null,null,null,null,null,null,null,0,null,"","","",""]
[null,null,null,null,null,null,null,null,0,null,"","","",""]
[null,null,null,null,null,null,null,null,0,null,"","","",""]
[null,null,null,null,null,null,null,null,0,null,"","","",""]
[null,null,null,null,null,null,null,null,0,null,"","","",""]
[null,null,null,null,null,null,null,null,0,null,"","","",""]
[null,null,null,null,null,null,null,null,0,null,"","","",""]
[null,null,null,null,null,null,null,null,0,null,"","","",""]
[null,null,null,null,null,null,null,null,0,null,"","","",""]
[null,null,null,null,null,null,null,null,0,null,"","","",""]
[null,null,null,null,null,null,null,null,0,null,"","","",""]
[null,null,null,null,null,null,null,null,0,null,"","","",""]
[null,null,null,null,null,null,null,null,0,null,"","","",""]
[null,null,null,null,null,null,null,null,0,null,"","","",""]
[null,null,null,null,null,null,null,null,0,null,"","","",""]
[null,null,null,null,null,null,null,null,0,null,"","","",""]
[null,null,null,null,null,null,null,null,0,null,"","","",""]
[null,null,null,null,null,null,null,null,0,null,"","","",""]
[null,null,null,null,null,null,null,null,0,null,"","","",""]
[null,null,null,null,null,null,null,null,0,null,"","","",""]
[null,null,null,null,null,null,null,null,0,null,"","","",""]
[null,null,null,null,null,null,null,null,0,null,"","","",""]
[null,null,null,null,null,null,null,null,0,null,"","","",""]
[null,null,null,null,null,null,null,null,0,null,"","","",""]
[null,null,null,null,null,null,null,null,0,null,"","","",""]
[null,null,null,null,null,null,null,null,{"$f":"IFERROR(G140+H140,\"\")","v":0},null,{"$f":"IFERROR(IF(J140<>\"\",F140*J140,\"\"),\"\")","v":""},{"$f":"IFERROR(IF(J140<>\"\",G140*J140,\"\"),\"\")","v":""},{"$f":"IFERROR(IF(J140<>\"\",H140*J140,\"\"),\"\")","v":""},{"$f":"IFERROR(L140+M140,\"\")","v":""}]
[null,null,null,null,null,null,null,null,0,null,"","","",""]
[null,null,null,null,null,null,null,null,0,null,"","","",""]
[null,null,null,null,null,null,null,null,0,null,"","","",""]
[null,null,null,null,null,null,null,null,0,null,"","","",""]
[null,null,null,null,null,null,null,null,0,null,"","","",""]
[null,null,null,null,null,null,null,null,0,null,"","","",""]
[null,null,null,null,null,null,null,null,0,null,"","","",""]
[null,null,null,null,null,null,null,null,0,null,"","","",""]
[null,null,null,null,null,null,null,null,0,null,"","","",""]
[null,null,null,null,null,null,null,null,0,null,"","","",""]
[null,null,null,null,null,null,null,null,0,null,"","","",""]
[null,null,null,null,null,null,null,null,0,null,"","","",""]
[null,null,null,null,null,null,null,null,0,null,"","","",""]
[null,null,null,null,null,null,null,null,0,null,"","","",""]
[null,null,null,null,null,null,null,null,0,null,"","","",""]
[null,null,null,null,null,null,null,null,0,null,"","","",""]
[null,null,null,null,null,null,null,null,0,null,"","","",""]
[null,null,null,null,null,null,null,null,0,null,"","","",""]
[null,null,null,null,null,null,null,null,0,null,"","","",""]
[null,null,null,null,null,null,null,null,0,null,"","","",""]
[null,null,null,null,null,null,null,null,0,null,"","","",""]
[null,null,null,null,null,null,null,null,0,null,"","","",""]
[null,null,null,null,null,null,null,null,0,null,"","","",""]
[null,null,null,null,null,null,null,null,0,null,"","","",""]
[null,null,null,null,null,null,null,null,0,null,"","","",""]
[null,null,null,null,null,null,null,null,0,null,"","","",""]
[null,null,null,null,null,null,null,null,0,null,"","","",""]
[null,null,null,null,null,null,null,null,0,null,"","","",""]
[null,null,null,null,null,null,null,null,0,null,"","","",""]
[null,null,null,null,null,null,null,null,0,null,"","","",""]
[null,null,null,null,null,null,null,null,0,null,"","","",""]
[null,null,null,null,null,null,null,null,0,null,"","","",""]
[null,null,null,null,null,null,null,null,0,null,"","","",""]
[null,null,null,null,null,null,null,null,0,null,"","","",""]
[null,null,null,null,null,null,null,null,0,null,"","","",""]
[null,null,null,null,null,null,null,null,0,null,"","","",""]
[null,null,null,null,null,null,null,null,0,null,"","","",""]
[null,null,null,null,null,null,null,null,0,null,"","","",""]
[null,null,null,null,null,null,null,null,0,null,"","","",""]
[null,null,null,null,null,null,null,null,0,null,"","","",""]
[null,null,null,null,null,null,null,null,0,null,"","","",""]
[null,null,null,null,null,null,null,null,0,null,"","","",""]
[null,null,null,null,null,null,null,null,0,null,"","","",""]
[null,null,null,null,null,null,null,null,0,null,"","","",""]
[null,null,null,null,null,null,null,null,0,null,"","","",""]
[null,null,null,null,null,null,null,null,0,null,"","","",""]
[null,null,null,null,null,null,null,null,0,null,"","","",""]
[null,null,null,null,null,null,null,null,0,null,"","","",""]
[null,null,null,null,null,null,null,null,0,null,"","","",""]
[null,null,null,null,null,null,null,null,0,null,"","","",""]
[null,null,null,null,null,null,null,null,0,null,"","","",""]
[null,null,null,null,null,null,null,null,0,null,"","","",""]
[null,null,null,null,null,null,null,null,0,null,"","","",""]
[null,null,null,null,null,null,null,null,0,null,"","","",""]
[null,null,null,null,null,null,null,null,0,null,"","","",""]
[null,null,null,null,null,null,null,null,0,null,"","","",""]
[null,null,null,null,null,null,null,null,0,null,"","","",""]
[null,null,null,null,null,null,null,null,0,null,"","","",""]
[null,null,null,null,null,null,null,null,0,null,"","","",""]
[null,null,null,null,null,null,null,null,0,null,"","","",""]
[null,null,null,null,null,null,null,null,0,null,"","","",""]
[null,null,null,null,null,null,null,null,0,null,"","","",""]
[null,null,null,null,null,null,null,null,0,null,"","","",""]
[null,null,null,null,null,null,null,null,{"$f":"IFERROR(G204+H204,\"\")","v":0},null,{"$f":"IFERROR(IF(J204<>\"\",F204*J204,\"\"),\"\")","v":""},{"$f":"IFERROR(IF(J204<>\"\",G204*J204,\"\"),\"\")","v":""},{"$f":"IFERROR(IF(J204<>\"\",H204*J204,\"\"),\"\")","v":""},{"$f":"IFERROR(L204+M204,\"\")","v":""}]
[null,null,null,null,null,null,null,null,0,null,"","","",""]
[null,null,null,null,null,null,null,null,0,null,"","","",""]
[null,null,null,null,null,null,null,null,0,null,"","","",""]
[null,null,null,null,null,null,null,null,0,null,"","","",""]
[null,null,null,null,null,null,null,null,0,null,"","","",""]
[null,null,null,null,null,null,null,null,0,null,"","","",""]
[null,null,null,null,null,null,null,null,0,null,"","","",""]
[null,null,null,null,null,null,null,null,0,null,"","","",""]
[null,null,null,null,null,null,null,null,0,null,"","","",""]
[null,null,null,null,null,null,null,null,0,null,"","","",""]
[null,null,null,null,null,null,null,null,0,null,"","","",""]
[null,null,null,null,null,null,null,null,0,null,"","","",""]
[null,null,null,null,null,null,null,null,0,null,"","","",""]
[null,null,null,null,null,null,null,null,0,null,"","","",""]
[null,null,null,null,null,null,null,null,0,null,"","","",""]
[null,null,null,null,null,null,null,null,0,null,"","","",""]
[null,null,null,null,null,null,null,null,0,null,"","","",""]
[null,null,null,null,null,null,null,null,0,null,"","","",""]
[null,null,null,null,null,null,null,null,0,null,"","","",""]
[null,null,null,null,null,null,null,null,0,null,"","","",""]
[null,null,null,null,null,null,null,null,0,null,"","","",""]
[null,null,null,null,null,null,null,null,0,null,"","","",""]
[null,null,null,null,null,null,null,null,0,null,"","","",""]
[null,null,null,null,null,null,null,null,0,null,"","","",""]
[null,null,null,null,null,null,null,null,0,null,"","","",""]
[null,null,null,null,null,null,null,null,0,null,"","","",""]
[null,null,null,null,null,null,null,null,0,null,"","","",""]
[null,null,null,null,null,null,null,null,0,null,"","","",""]
[null,null,null,null,null,null,null,null,0,null,"","","",""]
[null,null,null,null,null,null,null,null,0,null,"","","",""]
[null,null,null,null,null,null,null,null,0,null,"","","",""]
[null,null,null,null,null,null,null,null,0,null,"","","",""]
[null,null,null,null,null,null,null,null,0,null,"","","",""]
[null,null,null,null,null,null,null,null,0,null,"","","",""]
[null,null,null,null,null,null,null,null,0,null,"","","",""]
[null,null,null,null,null,null,null,null,0,null,"","","",""]
[null,null,null,null,null,null,null,null,0,null,"","","",""]
[null,null,null,null,null,null,null,null,0,null,"","","",""]
[null,null,null,null,null,null,null,null,0,null,"","","",""]
[null,null,null,null,null,null,null,null,0,null,"","","",""]
[null,null,null,null,null,null,null,null,0,null,"","","",""]
[null,null,null,null,null,null,null,null,0,null,"","","",""]
[null,null,null,null,null,null,null,null,0,null,"","","",""]
[null,null,null,null,null,null,null,null,0,null,"","","",""]
[null,null,null,null,null,null,null,null,0,null,"","","",""]
[null,null,null,null,null,null,null,null,0,null,"","","",""]
[null,null,null,null,null,null,null,null,0,null,"","","",""]
[null,null,null,null,null,null,null,null,0,null,"","","",""]
[null,null,null,null,null,null,null,null,0,null,"","","",""]
[null,null,null,null,null,null,null,null,0,null,"","","",""]
[null,null,null,null,null,null,null,null,0,null,"","","",""]
[null,null,null,null,null,null,null,null,0,null,"","","",""]
[null,null,null,null,null,null,null,null,0,null,"","","",""]
[null,null,null,null,null,null,null,null,0,null,"","","",""]
[null,null,null,null,null,null,null,null,0,null,"","","",""]
[null,null,null,null,null,null,null,null,0,null,"","","",""]
[null,null,null,null,null,null,null,null,0,null,"","","",""]
[null,null,null,null,null,null,null,null,0,null,"","","",""]
[null,null,null,null,null,null,null,null,0,null,"","","",""]
[null,null,null,null,null,null,null,null,0,null,"","","",""]
[null,null,null,null,null,null,null,null,0,null,"","","",""]
[null,null,null,null,null,null,null,null,0,null,"","","",""]
[null,null,null,null,null,null,null,null,0,null,"","","",""]
[null,null,null,null,null,null,null,null,{"$f":"IFERROR(G268+H268,\"\")","v":0},null,{"$f":"IFERROR(IF(J268<>\"\",F268*J268,\"\"),\"\")","v":""},{"$f":"IFERROR(IF(J268<>\"\",G268*J268,\"\"),\"\")","v":""},{"$f":"IFERROR(IF(J268<>\"\",H268*J268,\"\"),\"\")","v":""},{"$f":"IFERROR(L268+M268,\"\")","v":""}]
[null,null,null,null,null,null,null,null,0,null,"","","",""]
[null,null,null,null,null,null,null,null,0,null,"","","",""]
[null,null,null,null,null,null,null,null,0,null,"","","",""]
[null,null,null,null,null,null,null,null,0,null,"","","",""]
[null,null,null,null,null,null,null,null,0,null,"","","",""]
[null,null,null,null,null,null,null,null,0,null,"","","",""]
[null,null,null,null,null,null,null,null,0,null,"","","",""]
[null,null,null,null,null,null,null,null,0,null,"","","",""]
[null,null,null,null,null,null,null,null,0,null,"","","",""]
[null,null,null,null,null,null,null,null,0,null,"","","",""]
[null,null,null,null,null,null,null,null,0,null,"","","",""]
[null,null,null,null,null,null,null,null,0,null,"","","",""]
[null,null,null,null,null,null,null,null,0,null,"","","",""]
[null,null,null,null,null,null,null,null,0,null,"","","",""]
[null,null,null,null,null,null,null,null,0,null,"","","",""]
[null,null,null,null,null,null,null,null,0,null,"","","",""]
[null,null,null,null,null,null,null,null,0,null,"","","",""]
[null,null,null,null,null,null,null,null,0,null,"","","",""]
[null,null,null,null,null,null,null,null,0,null,"","","",""]
[null,null,null,null,null,null,null,null,0,null,"","","",""]
[null,null,null,null,null,null,null,null,0,null,"","","",""]
[null,null,null,null,null,null,null,null,0,null,"","","",""]
[null,null,null,null,null,null,null,null,0,null,"","","",""]
[null,null,null,null,null,null,null,null,0,null,"","","",""]
[null,null,null,null,null,null,null,null,0,null,"","","",""]
[null,null,null,null,null,null,null,null,0,null,"","","",""]
[null,null,null,null,null,null,null,null,0,null,"","","",""]
[null,null,null,null,null,null,null,null,0,null,"","","",""]
[null,null,null,null,null,null,null,null,0,null,"","","",""]
[null,null,null,null,null,null,null,null,0,null,"","","",""]
[null,null,null,null,null,null,null,null,0,null,"","","",""]
[null,null,null,null,null,null,null,null,0,null,"","","",""]
[null,null,null,null,null,null,null,null,0,null,"","","",""]
[null,null,null,null,null,null,null,null,0,null,"","","",""]
[null,null,null,null,null,null,null,null,0,null,"","","",""]
[null,null,null,null,null,null,null,null,0,null,"","","",""]
[null,null,null,null,null,null,null,null,0,null,"","","",""]
[null,null,null,null,null,null,null,null,0,null,"","","",""]
[null,null,null,null,null,null,null,null,0,null,"","","",""]
[null,null,null,null,null,null,null,null,0,null,"","","",""]
[null,null,null,null,null,null,null,null,0,null,"","","",""]
[null,null,null,null,null,null,null,null,0,null,"","","",""]
[null,null,null,null,null,null,null,null,0,null,"","","",""]
[null,null,null,null,null,null,null,null,0,null,"","","",""]
[null,null,null,null,null,null,null,null,0,null,"","","",""]
[null,null,null,null,null,null,null,null,0,null,"","","",""]
[null,null,null,null,null,null,null,null,0,null,"","","",""]
[null,null,null,null,null,null,null,null,0,null,"","","",""]
[null,null,null,null,null,null,null,null,0,null,"","","",""]
[null,null,null,null,null,null,null,null,0,null,"","","",""]
[null,null,null,null,null,null,null,null,0,null,"","","",""]
[null,null,null,null,null,null,null,null,0,null,"","","",""]
[null,null,null,null,null,null,null,null,0,null,"","","",""]
[null,null,null,null,null,null,null,null,0,null,"","","",""]
[null,null,null,null,null,null,null,null,0,null,"","","",""]
[null,null,null,null,null,null,null,null,0,null,"","","",""]
[null,null,null,null,null,null,null,null,0,null,"","","",""]
[null,null,null,null,null,null,null,null,0,null,"","","",""]
[null,null,null,null,null,null,null,null,0,null,"","","",""]
[null,null,null,null,null,null,null,null,0,null,"","","",""]
[null,null,null,null,null,null,null,null,0,null,"","","",""]
[null,null,null,null,null,null,null,null,0,null,"","","",""]
[null,null,null,null,null,null,null,null,0,null,"","","",""]
[null,null,null,null,null,null,null,null,{"$f":"IFERROR(G332+H332,\"\")","v":0},null,{"$f":"IFERROR(IF(J332<>\"\",F332*J332,\"\"),\"\")","v":""},{"$f":"IFERROR(IF(J332<>\"\",G332*J332,\"\"),\"\")","v":""},{"$f":"IFERROR(IF(J332<>\"\",H332*J332,\"\"),\"\")","v":""},{"$f":"IFERROR(L332+M332,\"\")","v":""}]
[null,null,null,null,null,null,null,null,0,null,"","","",""]
[null,null,null,null,null,null,null,null,0,null,"","","",""]
[null,null,null,null,null,null,null,null,0,null,"","","",""]
[null,null,null,null,null,null,null,null,0,null,"","","",""]
[null,null,null,null,null,null,null,null,0,null,"","","",""]
[null,null,null,null,null,null,null,null,0,null,"","","",""]
[null,null,null,null,null,null,null,null,0,null,"","","",""]
[null,null,null,null,null,null,null,null,0,null,"","","",""]
[null,null,null,null,null,null,null,null,0,null,"","","",""]
[null,null,null,null,null,null,null,null,0,null,"","","",""]
[null,null,null,null,null,null,null,null,0,null,"","","",""]
[null,null,null,null,null,null,null,null,0,null,"","","",""]
[null,null,null,null,null,null,null,null,0,null,"","","",""]
[null,null,null,null,null,null,null,null,0,null,"","","",""]
[null,null,null,null,null,null,null,null,0,null,"","","",""]
[null,null,null,null,null,null,null,null,0,null,"","","",""]
[null,null,null,null,null,null,null,null,0,null,"","","",""]
[null,null,null,null,null,null,null,null,0,null,"","","",""]
[null,null,null,null,null,null,null,null,0,null,"","","",""]
[null,null,null,null,null,null,null,null,0,null,"","","",""]
[null,null,null,null,null,null,null,null,0,null,"","","",""]
[null,null,null,null,null,null,null,null,0,null,"","","",""]
[null,null,null,null,null,null,null,null,0,null,"","","",""]
[null,null,null,null,null,null,null,null,0,null,"","","",""]
[null,null,null,null,null,null,null,null,0,null,"","","",""]
[null,null,null,null,null,null,null,null,0,null,"","","",""]
[null,null,null,null,null,null,null,null,0,null,"","","",""]
[null,null,null,null,null,null,null,null,0,null,"","","",""]
[null,null,null,null,null,null,null,null,0,null,"","","",""]
[null,null,null,null,null,null,null,null,0,null,"","","",""]
[null,null,null,null,null,null,null,null,0,null,"","","",""]
[null,null,null,null,null,null,null,null,0,null,"","","",""]
[null,null,null,null,null,null,null,null,0,null,"","","",""]
[null,null,null,null,null,null,null,null,0,null,"","","",""]
[null,null,null,null,null,null,null,null,0,null,"","","",""]
[null,null,null,null,null,null,null,null,0,null,"","","",""]
[null,null,null,null,null,null,null,null,0,null,"","","",""]
[null,null,null,null,null,null,null,null,0,null,"","","",""]
[null,null,null,null,null,null,null,null,0,null,"","","",""]
[null,null,null,null,null,null,null,null,0,null,"","","",""]
[null,null,null,null,null,null,null,null,0,null,"","","",""]
[null,null,null,null,null,null,null,null,0,null,"","","",""]
[null,null,null,null,null,null,null,null,0,null,"","","",""]
[null,null,null,null,null,null,null,null,0,null,"","","",""]
[null,null,null,null,null,null,null,null,0,null,"","","",""]
[null,null,null,null,null,null,null,null,0,null,"","","",""]
[null,null,null,null,null,null,null,null,0,null,"","","",""]
[null,null,null,null,null,null,null,null,0,null,"","","",""]
[null,null,null,null,null,null,null,null,0,null,"","","",""]
[null,null,null,null,null,null,null,null,0,null,"","","",""]
[null,null,null,null,null,null,null,null,0,null,"","","",""]
[null,null,null,null,null,null,null,null,0,null,"","","",""]
[null,null,null,null,null,null,null,null,0,null,"","","",""]
[null,null,null,null,null,null,null,null,0,null,"","","",""]
[null,null,null,null,null,null,null,null,0,null,"","","",""]
[null,null,null,null,null,null,null,null,0,null,"","","",""]
[null,null,null,null,null,null,null,null,0,null,"","","",""]
[null,null,null,null,null,null,null,null,0,null,"","","",""]
[null,null,null,null,null,null,null,null,0,null,"","","",""]
[null,null,null,null,null,null,null,null,0,null,"","","",""]
[null,null,null,null,null,null,null,null,0,null,"","","",""]
[null,null,null,null,null,null,null,null,0,null,"","","",""]
[null,null,null,null,null,null,null,null,0,null,"","","",""]
[null,null,null,null,null,null,null,null,{"$f":"IFERROR(G396+H396,\"\")","v":0},null,{"$f":"IFERROR(IF(J396<>\"\",F396*J396,\"\"),\"\")","v":""},{"$f":"IFERROR(IF(J396<>\"\",G396*J396,\"\"),\"\")","v":""},{"$f":"IFERROR(IF(J396<>\"\",H396*J396,\"\"),\"\")","v":""},{"$f":"IFERROR(L396+M396,\"\")","v":""}]
[null,null,null,null,null,null,null,null,0,null,"","","",""]
[null,null,null,null,null,null,null,null,0,null,"","","",""]
[null,null,null,null,null,null,null,null,0,null,"","","",""]
[null,null,null,null,null,null,null,null,0,null,"","","",""]
[null,null,null,null,null,null,null,null,0,null,"","","",""]
[null,null,null,null,null,null,null,null,0,null,"","","",""]
[null,null,null,null,null,null,null,null,0,null,"","","",""]
[null,null,null,null,null,null,null,null,0,null,"","","",""]
[null,null,null,null,null,null,null,null,0,null,"","","",""]
[null,null,null,null,null,null,null,null,0,null,"","","",""]
[null,null,null,null,null,null,null,null,0,null,"","","",""]
[null,null,null,null,null,null,null,null,0,null,"","","",""]
[null,null,null,null,null,null,null,null,0,null,"","","",""]
[null,null,null,null,null,null,null,null,0,null,"","","",""]
[null,null,null,null,null,null,null,null,0,null,"","","",""]
[null,null,null,null,null,null,null,null,0,null,"","","",""]
[null,null,null,null,null,null,null,null,0,null,"","","",""]
[null,null,null,null,null,null,null,null,0,null,"","","",""]
[null,null,null,null,null,null,null,null,0,null,"","","",""]
[null,null,null,null,null,null,null,null,0,null,"","","",""]
[null,null,null,null,null,null,null,null,0,null,"","","",""]
[null,null,null,null,null,null,null,null,0,null,"","","",""]
[null,null,null,null,null,null,null,null,0,null,"","","",""]
[null,null,null,null,null,null,null,null,0,null,"","","",""]
[null,null,null,null,null,null,null,null,0,null,"","","",""]
[null,null,null,null,null,null,null,null,0,null,"","","",""]
[null,null,null,null,null,null,null,null,0,null,"","","",""]
[null,null,null,null,null,null,null,null,0,null,"","","",""]
[null,null,null,null,null,null,null,null,0,null,"","","",""]
[null,null,null,null,null,null,null,null,0,null,"","","",""]
[null,null,null,null,null,null,null,null,0,null,"","","",""]
[null,null,null,null,null,null,null,null,0,null,"","","",""]
[null,null,null,null,null,null,null,null,0,null,"","","",""]
[null,null,null,null,null,null,null,null,0,null,"","","",""]
[null,null,null,null,null,null,null,null,0,null,"","","",""]
[null,null,null,null,null,null,null,null,0,null,"","","",""]
[null,null,null,null,null,null,null,null,0,null,"","","",""]
[null,null,null,null,null,null,null,null,0,null,"","","",""]
[null,null,null,null,null,null,null,null,0,null,"","","",""]
[null,null,null,null,null,null,null,null,0,null,"","","",""]
[null,null,null,null,null,null,null,null,0,null,"","","",""]
[null,null,null,null,null,null,null,null,0,null,"","","",""]
[null,null,null,null,null,null,null,null,0,null,"","","",""]
[null,null,null,null,null,null,null,null,0,null,"","","",""]
[null,null,null,null,null,null,null,null,0,null,"","","",""]
[null,null,null,null,null,null,null,null,0,null,"","","",""]
[null,null,null,null,null,null,null,null,0,null,"","","",""]
[null,null,null,null,null,null,null,null,0,null,"","","",""]
[null,null,null,null,null,null,null,null,0,null,"","","",""]
[null,null,null,null,null,null,null,null,0,null,"","","",""]
[null,null,null,null,null,null,null,null,0,null,"","","",""]
[null,null,null,null,null,null,null,null,0,null,"","","",""]
[null,null,null,null,null,null,null,null,0,null,"","","",""]
[null,null,null,null,null,null,null,null,0,null,"","","",""]
[null,null,null,null,null,null,null,null,0,null,"","","",""]
[null,null,null,null,null,null,null,null,0,null,"","","",""]
[null,null,null,null,null,null,null,null,0,null,"","","",""]
[null,null,null,null,null,null,null,null,0,null,"","","",""]
[null,null,null,null,null,null,null,null,0,null,"","","",""]
[null,null,null,null,null,null,null,null,0,null,"","","",""]
[null,null,null,null,null,null,null,null,0,null,"","","",""]
[null,null,null,null,null,null,null,null,0,null,"","","",""]
[null,null,null,null,null,null,null,null,0,null,"","","",""]
[null,null,null,null,null,null,null,null,{"$f":"IFERROR(G460+H460,\"\")","v":0},null,{"$f":"IFERROR(IF(J460<>\"\",F460*J460,\"\"),\"\")","v":""},{"$f":"IFERROR(IF(J460<>\"\",G460*J460,\"\"),\"\")","v":""},{"$f":"IFERROR(IF(J460<>\"\",H460*J460,\"\"),\"\")","v":""},{"$f":"IFERROR(L460+M460,\"\")","v":""}]
[null,null,null,null,null,null,null,null,0,null,"","","",""]
[null,null,null,null,null,null,null,null,0,null,"","","",""]
[null,null,null,null,null,null,null,null,0,null,"","","",""]
[null,null,null,null,null,null,null,null,0,null,"","","",""]
[null,null,null,null,null,null,null,null,0,null,"","","",""]
[null,null,null,null,null,null,null,null,0,null,"","","",""]
[null,null,null,null,null,null,null,null,0,null,"","","",""]
[null,null,null,null,null,null,null,null,0,null,"","","",""]
[null,null,null,null,null,null,null,null,0,null,"","","",""]
[null,null,null,null,null,null,null,null,0,null,"","","",""]
[null,null,null,null,null,null,null,null,0,null,"","","",""]
[null,null,null,null,null,null,null,null,0,null,"","","",""]
[null,null,null,null,null,null,null,null,0,null,"","","",""]
[null,null,null,null,null,null,null,null,0,null,"","","",""]
[null,null,null,null,null,null,null,null,0,null,"","","",""]
[null,null,null,null,null,null,null,null,0,null,"","","",""]
[null,null,null,null,null,null,null,null,0,null,"","","",""]
[null,null,null,null,null,null,null,null,0,null,"","","",""]
[null,null,null,null,null,null,null,null,0,null,"","","",""]
[null,null,null,null,null,null,null,null,0,null,"","","",""]
[null,null,null,null,null,null,null,null,0,null,"","","",""]
[null,null,null,null,null,null,null,null,0,null,"","","",""]
[null,null,null,null,null,null,null,null,0,null,"","","",""]
[null,null,null,null,null,null,null,null,0,null,"","","",""]
[null,null,null,null,null,null,null,null,0,null,"","","",""]
[null,null,null,null,null,null,null,null,0,null,"","","",""]
[null,null,null,null,null,null,null,null,0,null,"","","",""]
[null,null,null,null,null,null,null,null,0,null,"","","",""]
[null,null,null,null,null,null,null,null,0,null,"","","",""]
[null,null,null,null,null,null,null,null,0,null,"","","",""]
[null,null,null,null,null,null,null,null,0,null,"","","",""]
[null,null,null,null,null,null,null,null,0,null,"","","",""]
[null,null,null,null,null,null,null,null,0,null,"","","",""]
[null,null,null,null,null,null,null,null,0,null,"","","",""]
[null,null,null,null,null,null,null,null,0,null,"","","",""]
[null,null,null,null,null,null,null,null,0,null,"","","",""]
[null,null,null,null,null,null,null,null,0,null,"","","",""]
[null,null,null,null,null,null,null,null,0,null,"","","",""]
[null,null,null,null,null,null,null,null,0,null,"","","",""]
[null,null,null,null,null,null,null,null,0,null,"","","",""]
[null,null,null,null,null,null,null,null,0,null,"","","",""]
[null,null,null,null,null,null,null,null,0,null,"","","",""]
[null,null,null,null,null,null,null,null,0,null,"","","",""]
[null,null,null,null,null,null,null,null,0,null,"","","",""]
[null,null,null,null,null,null,null,null,0,null,"","","",""]
[null,null,null,null,null,null,null,null,0,null,"","","",""]
[null,null,null,null,null,null,null,null,0,null,"","","",""]
[null,null,null,null,null,null,null,null,0,null,"","","",""]
[null,null,null,null,null,null,null,null,0,null,"","","",""]
[null,null,null,null,null,null,null,null,0,null,"","","",""]
[null,null,null,null,null,null,null,null,0,null,"","","",""]
[null,null,null,null,null,null,null,null,0,null,"","","",""]
[null,null,null,null,null,null,null,null,0,null,"","","",""]
[null,null,null,null,null,null,null,null,0,null,"","","",""]
[null,null,null,null,null,null,null,null,0,null,"","","",""]
[null,null,null,null,null,null,null,null,0,null,"","","",""]
[null,null,null,null,null,null,null,null,0,null,"","","",""]
[null,null,null,null,null,null,null,null,0,null,"","","",""]
[null,null,null,null,null,null,null,null,0,null,"","","",""]
[null,null,null,null,null,null,null,null,0,null,"","","",""]
[null,null,null,null,null,null,null,null,0,null,"","","",""]
[null,null,null,null,null,null,null,null,0,null,"","","",""]
[null,null,null,null,null,null,null,null,0,null,"","","",""]
[null,null,null,null,null,null,null,null,{"$f":"IFERROR(G524+H524,\"\")","v":0},null,{"$f":"IFERROR(IF(J524<>\"\",F524*J524,\"\"),\"\")","v":""},{"$f":"IFERROR(IF(J524<>\"\",G524*J524,\"\"),\"\")","v":""},{"$f":"IFERROR(IF(J524<>\"\",H524*J524,\"\"),\"\")","v":""},{"$f":"IFERROR(L524+M524,\"\")","v":""}]
[null,null,null,null,null,null,null,null,0,null,"","","",""]
[null,null,null,null,null,null,null,null,0,null,"","","",""]
[null,null,null,null,null,null,null,null,0,null,"","","",""]
[null,null,null,null,null,null,null,null,0,null,"","","",""]
[null,null,null,null,null,null,null,null,0,null,"","","",""]
[null,null,null,null,null,null,null,null,0,null,"","","",""]
[null,null,null,null,null,null,null,null,0,null,"","","",""]
[null,null,null,null,null,null,null,null,0,null,"","","",""]
[null,null,null,null,null,null,null,null,0,null,"","","",""]
[null,null,null,null,null,null,null,null,0,null,"","","",""]
[null,null,null,null,null,null,null,null,0,null,"","","",""]
[null,null,null,null,null,null,null,null,0,null,"","","",""]
[null,null,null,null,null,null,null,null,0,null,"","","",""]
[null,null,null,null,null,null,null,null,0,null,"","","",""]
[null,null,null,null,null,null,null,null,0,null,"","","",""]
[null,null,null,null,null,null,null,null,0,null,"","","",""]
[null,null,null,null,null,null,null,null,0,null,"","","",""]
[null,null,null,null,null,null,null,null,0,null,"","","",""]
[null,null,null,null,null,null,null,null,0,null,"","","",""]
[null,null,null,null,null,null,null,null,0,null,"","","",""]
[null,null,null,null,null,null,null,null,0,null,"","","",""]
[null,null,null,null,null,null,null,null,0,null,"","","",""]
[null,null,null,null,null,null,null,null,0,null,"","","",""]
[null,null,null,null,null,null,null,null,0,null,"","","",""]
[null,null,null,null,null,null,null,null,0,null,"","","",""]
[null,null,null,null,null,null,null,null,0,null,"","","",""]
[null,null,null,null,null,null,null,null,0,null,"","","",""]
[null,null,null,null,null,null,null,null,0,null,"","","",""]
[null,null,null,null,null,null,null,null,0,null,"","","",""]
[null,null,null,null,null,null,null,null,0,null,"","","",""]
[null,null,null,null,null,null,null,null,0,null,"","","",""]
[null,null,null,null,null,null,null,null,0,null,"","","",""]
[null,null,null,null,null,null,null,null,0,null,"","","",""]
[null,null,null,null,null,null,null,null,0,null,"","","",""]
[null,null,null,null,null,null,null,null,0,null,"","","",""]
[null,null,null,null,null,null,null,null,0,null,"","","",""]
[null,null,null,null,null,null,null,null,0,null,"","","",""]
[null,null,null,null,null,null,null,null,0,null,"","","",""]
[null,null,null,null,null,null,null,null,0,null,"","","",""]
[null,null,null,null,null,null,null,null,0,null,"","","",""]
[null,null,null,null,null,null,null,null,0,null,"","","",""]
[null,null,null,null,null,null,null,null,0,null,"","","",""]
[null,null,null,null,null,null,null,null,0,null,"","","",""]
[null,null,null,null,null,null,null,null,0,null,"","","",""]
[null,null,null,null,null,null,null,null,0,null,"","","",""]
[null,null,null,null,null,null,null,null,0,null,"","","",""]
[null,null,null,null,null,null,null,null,0,null,"","","",""]
[null,null,null,null,null,null,null,null,0,null,"","","",""]
[null,null,null,null,null,null,null,null,0,null,"","","",""]
[null,null,null,null,null,null,null,null,0,null,"","","",""]
[null,null,null,null,null,null,null,null,0,null,"","","",""]
[null,null,null,null,null,null,null,null,0,null,"","","",""]
[null,null,null,null,null,null,null,null,0,null,"","","",""]
[null,null,null,null,null,null,null,null,0,null,"","","",""]
[null,null,null,null,null,null,null,null,0,null,"","","",""]
[null,null,null,null,null,null,null,null,0,null,"","","",""]
[null,null,null,null,null,null,null,null,0,null,"","","",""]
[null,null,null,null,null,null,null,null,0,null,"","","",""]
[null,null,null,null,null,null,null,null,0,null,"","","",""]
[null,null,null,null,null,null,null,null,0,null,"","","",""]
[null,null,null,null,null,null,null,null,0,null,"","","",""]
[null,null,null,null,null,null,null,null,0,null,"","","",""]
[null,null,null,null,null,null,null,null,0,null,"","","",""]
[null,null,null,null,null,null,null,null,{"$f":"IFERROR(G588+H588,\"\")","v":0},null,{"$f":"IFERROR(IF(J588<>\"\",F588*J588,\"\"),\"\")","v":""},{"$f":"IFERROR(IF(J588<>\"\",G588*J588,\"\"),\"\")","v":""},{"$f":"IFERROR(IF(J588<>\"\",H588*J588,\"\"),\"\")","v":""},{"$f":"IFERROR(L588+M588,\"\")","v":""}]
[null,null,null,null,null,null,null,null,0,null,"","","",""]
[null,null,null,null,null,null,null,null,0,null,"","","",""]
[null,null,null,null,null,null,null,null,0,null,"","","",""]
[null,null,null,null,null,null,null,null,0,null,"","","",""]
[null,null,null,null,null,null,null,null,0,null,"","","",""]
[null,null,null,null,null,null,null,null,0,null,"","","",""]
[null,null,null,null,null,null,null,null,0,null,"","","",""]
[null,null,null,null,null,null,null,null,0,null,"","","",""]
[null,null,null,null,null,null,null,null,0,null,"","","",""]
[null,null,null,null,null,null,null,null,0,null,"","","",""]
[null,null,null,null,null,null,null,null,0,null,"","","",""]
[null,null,null,null,null,null,null,null,0,null,"","","",""]
[null,null,null,null,null,null,null,null,0,null,"","","",""]
[null,null,null,null,null,null,null,null,0,null,"","","",""]
[null,null,null,null,null,null,null,null,0,null,"","","",""]
[null,null,null,null,null,null,null,null,0,null,"","","",""]
[null,null,null,null,null,null,null,null,0,null,"","","",""]
[null,null,null,null,null,null,null,null,0,null,"","","",""]
[null,null,null,null,null,null,null,null,0,null,"","","",""]
[null,null,null,null,null,null,null,null,0,null,"","","",""]
[null,null,null,null,null,null,null,null,0,null,"","","",""]
[null,null,null,null,null,null,null,null,0,null,"","","",""]
[null,null,null,null,null,null,null,null,0,null,"","","",""]
[null,null,null,null,null,null,null,null,0,null,"","","",""]
[null,null,null,null,null,null,null,null,0,null,"","","",""]
[null,null,null,null,null,null,null,null,0,null,"","","",""]
[null,null,null,null,null,null,null,null,0,null,"","","",""]
[null,null,null,null,null,null,null,null,0,null,"","","",""]
[null,null,null,null,null,null,null,null,0,null,"","","",""]
[null,null,null,null,null,null,null,null,0,null,"","","",""]
[null,null,null,null,null,null,null,null,0,null,"","","",""]
[null,null,null,null,null,null,null,null,0,null,"","","",""]
[null,null,null,null,null,null,null,null,0,null,"","","",""]
[null,null,null,null,null,null,null,null,0,null,"","","",""]
[null,null,null,null,null,null,null,null,0,null,"","","",""]
[null,null,null,null,null,null,null,null,0,null,"","","",""]
[null,null,null,null,null,null,null,null,0,null,"","","",""]
[null,null,null,null,null,null,null,null,0,null,"","","",""]
[null,null,null,null,null,null,null,null,0,null,"","","",""]
[null,null,null,null,null,null,null,null,0,null,"","","",""]
[null,null,null,null,null,null,null,null,0,null,"","","",""]
[null,null,null,null,null,null,null,null,0,null,"","","",""]
[null,null,null,null,null,null,null,null,0,null,"","","",""]
[null,null,null,null,null,null,null,null,0,null,"","","",""]
[null,null,null,null,null,null,null,null,0,null,"","","",""]
[null,null,null,null,null,null,null,null,0,null,"","","",""]
[null,null,null,null,null,null,null,null,0,null,"","","",""]
[null,null,null,null,null,null,null,null,0,null,"","","",""]
[null,null,null,null,null,null,null,null,0,null,"","","",""]
[null,null,null,null,null,null,null,null,0,null,"","","",""]
[null,null,null,null,null,null,null,null,0,null,"","","",""]
[null,null,null,null,null,null,null,null,0,null,"","","",""]
[null,null,null,null,null,null,null,null,0,null,"","","",""]
[null,null,null,null,null,null,null,null,0,null,"","","",""]
[null,null,null,null,null,null,null,null,0,null,"","","",""]
[null,null,null,null,null,null,null,null,0,null,"","","",""]
[null,null,null,null,null,null,null,null,0,null,"","","",""]
[null,null,null,null,null,null,null,null,0,null,"","","",""]
[null,null,null,null,null,null,null,null,0,null,"","","",""]
[null,null,null,null,null,null,null,null,0,null,"","","",""]
[null,null,null,null,null,null,null,null,0,null,"","","",""]
[null,null,null,null,null,null,null,null,0,null,"","","",""]
[null,null,null,null,null,null,null,null,0,null,"","","",""]
[null,null,null,null,null,null,null,null,{"$f":"IFERROR(G652+H652,\"\")","v":0},null,{"$f":"IFERROR(IF(J652<>\"\",F652*J652,\"\"),\"\")","v":""},{"$f":"IFERROR(IF(J652<>\"\",G652*J652,\"\"),\"\")","v":""},{"$f":"IFERROR(IF(J652<>\"\",H652*J652,\"\"),\"\")","v":""},{"$f":"IFERROR(L652+M652,\"\")","v":""}]
[null,null,null,null,null,null,null,null,0,null,"","","",""]
[null,null,null,null,null,null,null,null,0,null,"","","",""]
[null,null,null,null,null,null,null,null,0,null,"","","",""]
[null,null,null,null,null,null,null,null,0,null,"","","",""]
[null,null,null,null,null,null,null,null,0,null,"","","",""]
[null,null,null,null,null,null,null,null,0,null,"","","",""]
[null,null,null,null,null,null,null,null,0,null,"","","",""]
[null,null,null,null,null,null,null,null,0,null,"","","",""]
[null,null,null,null,null,null,null,null,0,null,"","","",""]
[null,null,null,null,null,null,null,null,0,null,"","","",""]
[null,null,null,null,null,null,null,null,0,null,"","","",""]
[null,null,null,null,null,null,null,null,0,null,"","","",""]
[null,null,null,null,null,null,null,null,0,null,"","","",""]
[null,null,null,null,null,null,null,null,0,null,"","","",""]
[null,null,null,null,null,null,null,null,0,null,"","","",""]
[null,null,null,null,null,null,null,null,0,null,"","","",""]
[null,null,null,null,null,null,null,null,0,null,"","","",""]
[null,null,null,null,null,null,null,null,0,null,"","","",""]
[null,null,null,null,null,null,null,null,0,null,"","","",""]
[null,null,null,null,null,null,null,null,0,null,"","","",""]
[null,null,null,null,null,null,null,null,0,null,"","","",""]
[null,null,null,null,null,null,null,null,0,null,"","","",""]
[null,null,null,null,null,null,null,null,0,null,"","","",""]
[null,null,null,null,null,null,null,null,0,null,"","","",""]
[null,null,null,null,null,null,null,null,0,null,"","","",""]
[null,null,null,null,null,null,null,null,0,null,"","","",""]
[null,null,null,null,null,null,null,null,0,null,"","","",""]
[null,null,null,null,null,null,null,null,0,null,"","","",""]
[null,null,null,null,null,null,null,null,0,null,"","","",""]
[null,null,null,null,null,null,null,null,0,null,"","","",""]
[null,null,null,null,null,null,null,null,0,null,"","","",""]
[null,null,null,null,null,null,null,null,0,null,"","","",""]
[null,null,null,null,null,null,null,null,0,null,"","","",""]
[null,null,null,null,null,null,null,null,0,null,"","","",""]
[null,null,null,null,null,null,null,null,0,null,"","","",""]
[null,null,null,null,null,null,null,null,0,null,"","","",""]
[null,null,null,null,null,null,null,null,0,null,"","","",""]
[null,null,null,null,null,null,null,null,0,null,"","","",""]
[null,null,null,null,null,null,null,null,0,null,"","","",""]
[null,null,null,null,null,null,null,null,0,null,"","","",""]
[null,null,null,null,null,null,null,null,0,null,"","","",""]
[null,null,null,null,null,null,null,null,0,null,"","","",""]
[null,null,null,null,null,null,null,null,0,null,"","","",""]
[null,null,null,null,null,null,null,null,0,null,"","","",""]
[null,null,null,null,null,null,null,null,0,null,"","","",""]
[null,null,null,null,null,null,null,null,0,null,"","","",""]
[null,null,null,null,null,null,null,null,0,null,"","","",""]
[null,null,null,null,null,null,null,null,0,null,"","","",""]
[null,null,null,null,null,null,null,null,0,null,"","","",""]
[null,null,null,null,null,null,null,null,0,null,"","","",""]
[null,null,null,null,null,null,null,null,0,null,"","","",""]
[null,null,null,null,null,null,null,null,0,null,"","","",""]
[null,null,null,null,null,null,null,null,0,null,"","","",""]
[null,null,null,null,null,null,null,null,0,null,"","","",""]
[null,null,null,null,null,null,null,null,0,null,"","","",""]
[null,null,null,null,null,null,null,null,0,null,"","","",""]
[null,null,null,null,null,null,null,null,0,null,"","","",""]
[null,null,null,null,null,null,null,null,0,null,"","","",""]
[null,null,null,null,null,null,null,null,0,null,"","","",""]
[null,null,null,null,null,null,null,null,0,null,"","","",""]
[null,null,null,null,null,null,null,null,0,null,"","","",""]
[null,null,null,null,null,null,null,null,0,null,"","","",""]
[null,null,null,null,null,null,null,null,0,null,"","","",""]
[null,null,null,null,null,null,null,null,{"$f":"IFERROR(G716+H716,\"\")","v":0},null,{"$f":"IFERROR(IF(J716<>\"\",F716*J716,\"\"),\"\")","v":""},{"$f":"IFERROR(IF(J716<>\"\",G716*J716,\"\"),\"\")","v":""},{"$f":"IFERROR(IF(J716<>\"\",H716*J716,\"\"),\"\")","v":""},{"$f":"IFERROR(L716+M716,\"\")","v":""}]
[null,null,null,null,null,null,null,null,0,null,"","","",""]
[null,null,null,null,null,null,null,null,0,null,"","","",""]
[null,null,null,null,null,null,null,null,0,null,"","","",""]
[null,null,null,null,null,null,null,null,0,null,"","","",""]
[null,null,null,null,null,null,null,null,0,null,"","","",""]
[null,null,null,null,null,null,null,null,0,null,"","","",""]
[null,null,null,null,null,null,null,null,0,null,"","","",""]
[null,null,null,null,null,null,null,null,0,null,"","","",""]
[null,null,null,null,null,null,null,null,0,null,"","","",""]
[null,null,null,null,null,null,null,null,0,null,"","","",""]
[null,null,null,null,null,null,null,null,0,null,"","","",""]
[null,null,null,null,null,null,null,null,0,null,"","","",""]
[null,null,null,null,null,null,null,null,0,null,"","","",""]
[null,null,null,null,null,null,null,null,0,null,"","","",""]
[null,null,null,null,null,null,null,null,0,null,"","","",""]
[null,null,null,null,null,null,null,null,0,null,"","","",""]
[null,null,null,null,null,null,null,null,0,null,"","","",""]
[null,null,null,null,null,null,null,null,0,null,"","","",""]
[null,null,null,null,null,null,null,null,0,null,"","","",""]
[null,null,null,null,null,null,null,null,0,null,"","","",""]
[null,null,null,null,null,null,null,null,0,null,"","","",""]
[null,null,null,null,null,null,null,null,0,null,"","","",""]
[null,null,null,null,null,null,null,null,0,null,"","","",""]
[null,null,null,null,null,null,null,null,0,null,"","","",""]
[null,null,null,null,null,null,null,null,0,null,"","","",""]
[null,null,null,null,null,null,null,null,0,null,"","","",""]
[null,null,null,null,null,null,null,null,0,null,"","","",""]
[null,null,null,null,null,null,null,null,0,null,"","","",""]
[null,null,null,null,null,null,null,null,0,null,"","","",""]
[null,null,null,null,null,null,null,null,0,null,"","","",""]
[null,null,null,null,null,null,null,null,0,null,"","","",""]
[null,null,null,null,null,null,null,null,0,null,"","","",""]
[null,null,null,null,null,null,null,null,0,null,"","","",""]
[null,null,null,null,null,null,null,null,0,null,"","","",""]
[null,null,null,null,null,null,null,null,0,null,"","","",""]
[null,null,null,null,null,null,null,null,0,null,"","","",""]
[null,null,null,null,null,null,null,null,0,null,"","","",""]
[null,null,null,null,null,null,null,null,0,null,"","","",""]
[null,null,null,null,null,null,null,null,0,null,"","","",""]
[null,null,null,null,null,null,null,null,0,null,"","","",""]
[null,null,null,null,null,null,null,null,0,null,"","","",""]
[null,null,null,null,null,null,null,null,0,null,"","","",""]
[null,null,null,null,null,null,null,null,0,null,"","","",""]
[null,null,null,null,null,null,null,null,0,null,"","","",""]
[null,null,null,null,null,null,null,null,0,null,"","","",""]
[null,null,null,null,null,null,null,null,0,null,"","","",""]
[null,null,null,null,null,null,null,null,0,null,"","","",""]
[null,null,null,null,null,null,null,null,0,null,"","","",""]
[null,null,null,null,null,null,null,null,0,null,"","","",""]
[null,null,null,null,null,null,null,null,0,null,"","","",""]
[null,null,null,null,null,null,null,null,0,null,"","","",""]
[null,null,null,null,null,null,null,null,0,null,"","","",""]
[null,null,null,null,null,null,null,null,0,null,"","","",""]
[null,null,null,null,null,null,null,null,0,null,"","","",""]
[null,null,null,null,null,null,null,null,0,null,"","","",""]
[null,null,null,null,null,null,null,null,0,null,"","","",""]
[null,null,null,null,null,null,null,null,0,null,"","","",""]
[null,null,null,null,null,null,null,null,0,null,"","","",""]
[null,null,null,null,null,null,null,null,0,null,"","","",""]
[null,null,null,null,null,null,null,null,0,null,"","","",""]
[null,null,null,null,null,null,null,null,0,null,"","","",""]
[null,null,null,null,null,null,null,null,0,null,"","","",""]
[null,null,null,null,null,null,null,null,0,null,"","","",""]
[null,null,null,null,null,null,null,null,{"$f":"IFERROR(G780+H780,\"\")","v":0},null,{"$f":"IFERROR(IF(J780<>\"\",F780*J780,\"\"),\"\")","v":""},{"$f":"IFERROR(IF(J780<>\"\",G780*J780,\"\"),\"\")","v":""},{"$f":"IFERROR(IF(J780<>\"\",H780*J780,\"\"),\"\")","v":""},{"$f":"IFERROR(L780+M780,\"\")","v":""}]
[null,null,null,null,null,null,null,null,0,null,"","","",""]
[null,null,null,null,null,null,null,null,0,null,"","","",""]
[null,null,null,null,null,null,null,null,0,null,"","","",""]
[null,null,null,null,null,null,null,null,0,null,"","","",""]
[null,null,null,null,null,null,null,null,0,null,"","","",""]
[null,null,null,null,null,null,null,null,0,null,"","","",""]
[null,null,null,null,null,null,null,null,0,null,"","","",""]
[null,null,null,null,null,null,null,null,0,null,"","","",""]
[null,null,null,null,null,null,null,null,0,null,"","","",""]
[null,null,null,null,null,null,null,null,0,null,"","","",""]
[null,null,null,null,null,null,null,null,0,null,"","","",""]
[null,null,null,null,null,null,null,null,0,null,"","","",""]
[null,null,null,null,null,null,null,null,0,null,"","","",""]
[null,null,null,null,null,null,null,null,0,null,"","","",""]
[null,null,null,null,null,null,null,null,0,null,"","","",""]
[null,null,null,null,null,null,null,null,0,null,"","","",""]
[null,null,null,null,null,null,null,null,0,null,"","","",""]
[null,null,null,null,null,null,null,null,0,null,"","","",""]
[null,null,null,null,null,null,null,null,0,null,"","","",""]
[null,null,null,null,null,null,null,null,0,null,"","","",""]
[null,null,null,null,null,null,null,null,0,null,"","","",""]
[null,null,null,null,null,null,null,null,0,null,"","","",""]
[null,null,null,null,null,null,null,null,0,null,"","","",""]
[null,null,null,null,null,null,null,null,0,null,"","","",""]
[null,null,null,null,null,null,null,null,0,null,"","","",""]
[null,null,null,null,null,null,null,null,0,null,"","","",""]
[null,null,null,null,null,null,null,null,0,null,"","","",""]
[null,null,null,null,null,null,null,null,0,null,"","","",""]
[null,null,null,null,null,null,null,null,0,null,"","","",""]
[null,null,null,null,null,null,null,null,0,null,"","","",""]
[null,null,null,null,null,null,null,null,0,null,"","","",""]
[null,null,null,null,null,null,null,null,0,null,"","","",""]
[null,null,null,null,null,null,null,null,0,null,"","","",""]
[null,null,null,null,null,null,null,null,0,null,"","","",""]
[null,null,null,null,null,null,null,null,0,null,"","","",""]
[null,null,null,null,null,null,null,null,0,null,"","","",""]
[null,null,null,null,null,null,null,null,0,null,"","","",""]
[null,null,null,null,null,null,null,null,0,null,"","","",""]
[null,null,null,null,null,null,null,null,0,null,"","","",""]
[null,null,null,null,null,null,null,null,0,null,"","","",""]
[null,null,null,null,null,null,null,null,0,null,"","","",""]
[null,null,null,null,null,null,null,null,0,null,"","","",""]
[null,null,null,null,null,null,null,null,0,null,"","","",""]
[null,null,null,null,null,null,null,null,0,null,"","","",""]
[null,null,null,null,null,null,null,null,0,null,"","","",""]
[null,null,null,null,null,null,null,null,0,null,"","","",""]
[null,null,null,null,null,null,null,null,0,null,"","","",""]
[null,null,null,null,null,null,null,null,0,null,"","","",""]
[null,null,null,null,null,null,null,null,0,null,"","","",""]
[null,null,null,null,null,null,null,null,0,null,"","","",""]
[null,null,null,null,null,null,null,null,0,null,"","","",""]
[null,null,null,null,null,null,null,null,0,null,"","","",""]
[null,null,null,null,null,null,null,null,0,null,"","","",""]
[null,null,null,null,null,null,null,null,0,null,"","","",""]
[null,null,null,null,null,null,null,null,0,null,"","","",""]
[null,null,null,null,null,null,null,null,0,null,"","","",""]
[null,null,null,null,null,null,null,null,0,null,"","","",""]
[null,null,null,null,null,null,null,null,0,null,"","","",""]
[null,null,null,null,null,null,null,null,0,null,"","","",""]
[null,null,null,null,null,null,null,null,0,null,"","","",""]
[null,null,null,null,null,null,null,null,0,null,"","","",""]
[null,null,null,null,null,null,null,null,0,null,"","","",""]
[null,null,null,null,null,null,null,null,0,null,"","","",""]
[null,null,null,null,null,null,null,null,{"$f":"IFERROR(G844+H844,\"\")","v":0},null,{"$f":"IFERROR(IF(J844<>\"\",F844*J844,\"\"),\"\")","v":""},{"$f":"IFERROR(IF(J844<>\"\",G844*J844,\"\"),\"\")","v":""},{"$f":"IFERROR(IF(J844<>\"\",H844*J844,\"\"),\"\")","v":""},{"$f":"IFERROR(L844+M844,\"\")","v":""}]
[null,null,null,null,null,null,null,null,0,null,"","","",""]
[null,null,null,null,null,null,null,null,0,null,"","","",""]
[null,null,null,null,null,null,null,null,0,null,"","","",""]
[null,null,null,null,null,null,null,null,0,null,"","","",""]
[null,null,null,null,null,null,null,null,0,null,"","","",""]
[null,null,null,null,null,null,null,null,0,null,"","","",""]
[null,null,null,null,null,null,null,null,0,null,"","","",""]
[null,null,null,null,null,null,null,null,0,null,"","","",""]
[null,null,null,null,null,null,null,null,0,null,"","","",""]
[null,null,null,null,null,null,null,null,0,null,"","","",""]
[null,null,null,null,null,null,null,null,0,null,"","","",""]
[null,null,null,null,null,null,null,null,0,null,"","","",""]
[null,null,null,null,null,null,null,null,0,null,"","","",""]
[null,null,null,null,null,null,null,null,0,null,"","","",""]
[null,null,null,null,null,null,null,null,0,null,"","","",""]
[null,null,null,null,null,null,null,null,0,null,"","","",""]
[null,null,null,null,null,null,null,null,0,null,"","","",""]
[null,null,null,null,null,null,null,null,0,null,"","","",""]
[null,null,null,null,null,null,null,null,0,null,"","","",""]
[null,null,null,null,null,null,null,null,0,null,"","","",""]
[null,null,null,null,null,null,null,null,0,null,"","","",""]
[null,null,null,null,null,null,null,null,0,null,"","","",""]
[null,null,null,null,null,null,null,null,0,null,"","","",""]
[null,null,null,null,null,null,null,null,0,null,"","","",""]
[null,null,null,null,null,null,null,null,0,null,"","","",""]
[null,null,null,null,null,null,null,null,0,null,"","","",""]
[null,null,null,null,null,null,null,null,0,null,"","","",""]
[null,null,null,null,null,null,null,null,0,null,"","","",""]
[null,null,null,null,null,null,null,null,0,null,"","","",""]
[null,null,null,null,null,null,null,null,0,null,"","","",""]
[null,null,null,null,null,null,null,null,0,null,"","","",""]
[null,null,null,null,null,null,null,null,0,null,"","","",""]
[null,null,null,null,null,null,null,null,0,null,"","","",""]
[null,null,null,null,null,null,null,null,0,null,"","","",""]
[null,null,null,null,null,null,null,null,0,null,"","","",""]
[null,null,null,null,null,null,null,null,0,null,"","","",""]
[null,null,null,null,null,null,null,null,0,null,"","","",""]
[null,null,null,null,null,null,null,null,0,null,"","","",""]
[null,null,null,null,null,null,null,null,0,null,"","","",""]
[null,null,null,null,null,null,null,null,0,null,"","","",""]
[null,null,null,null,null,null,null,null,0,null,"","","",""]
[null,null,null,null,null,null,null,null,0,null,"","","",""]
[null,null,null,null,null,null,null,null,0,null,"","","",""]
[null,null,null,null,null,null,null,null,0,null,"","","",""]
[null,null,null,null,null,null,null,null,0,null,"","","",""]
[null,null,null,null,null,null,null,null,0,null,"","","",""]
[null,null,null,null,null,null,null,null,0,null,"","","",""]
[null,null,null,null,null,null,null,null,0,null,"","","",""]
[null,null,null,null,null,null,null,null,0,null,"","","",""]
[null,null,null,null,null,null,null,null,0,null,"","","",""]
[null,null,null,null,null,null,null,null,0,null,"","","",""]
[null,null,null,null,null,null,null,null,0,null,"","","",""]
[null,null,null,null,null,null,null,null,0,null,"","","",""]
[null,null,null,null,null,null,null,null,0,null,"","","",""]
[null,null,null,null,null,null,null,null,0,null,"","","",""]
[null,null,null,null,null,null,null,null,0,null,"","","",""]
[null,null,null,null,null,null,null,null,0,null,"","","",""]
[null,null,null,null,null,null,null,null,0,null,"","","",""]
[null,null,null,null,null,null,null,null,0,null,"","","",""]
[null,null,null,null,null,null,null,null,0,null,"","","",""]
[null,null,null,null,null,null,null,null,0,null,"","","",""]
[null,null,null,null,null,null,null,null,0,null,"","","",""]
[null,null,null,null,null,null,null,null,0,null,"","","",""]
[null,null,null,null,null,null,null,null,{"$f":"IFERROR(G908+H908,\"\")","v":0},null,{"$f":"IFERROR(IF(J908<>\"\",F908*J908,\"\"),\"\")","v":""},{"$f":"IFERROR(IF(J908<>\"\",G908*J908,\"\"),\"\")","v":""},{"$f":"IFERROR(IF(J908<>\"\",H908*J908,\"\"),\"\")","v":""},{"$f":"IFERROR(L908+M908,\"\")","v":""}]
[null,null,null,null,null,null,null,null,0,null,"","","",""]
[null,null,null,null,null,null,null,null,0,null,"","","",""]
[null,null,null,null,null,null,null,null,0,null,"","","",""]
[null,null,null,null,null,null,null,null,0,null,"","","",""]
[null,null,null,null,null,null,null,null,0,null,"","","",""]
[null,null,null,null,null,null,null,null,0,null,"","","",""]
[null,null,null,null,null,null,null,null,0,null,"","","",""]
[null,null,null,null,null,null,null,null,0,null,"","","",""]
[null,null,null,null,null,null,null,null,0,null,"","","",""]
[null,null,null,null,null,null,null,null,0,null,"","","",""]
[null,null,null,null,null,null,null,null,0,null,"","","",""]
[null,null,null,null,null,null,null,null,0,null,"","","",""]
[null,null,null,null,null,null,null,null,0,null,"","","",""]
[null,null,null,null,null,null,null,null,0,null,"","","",""]
[null,null,null,null,null,null,null,null,0,null,"","","",""]
[null,null,null,null,null,null,null,null,0,null,"","","",""]
[null,null,null,null,null,null,null,null,0,null,"","","",""]
[null,null,null,null,null,null,null,null,0,null,"","","",""]
[null,null,null,null,null,null,null,null,0,null,"","","",""]
[null,null,null,null,null,null,null,null,0,null,"","","",""]
[null,null,null,null,null,null,null,null,0,null,"","","",""]
[null,null,null,null,null,null,null,null,0,null,"","","",""]
[null,null,null,null,null,null,null,null,0,null,"","","",""]
[null,null,null,null,null,null,null,null,0,null,"","","",""]
[null,null,null,null,null,null,null,null,0,null,"","","",""]
[null,null,null,null,null,null,null,null,0,null,"","","",""]
[null,null,null,null,null,null,null,null,0,null,"","","",""]
[null,null,null,null,null,null,null,null,0,null,"","","",""]
[null,null,null,null,null,null,null,null,0,null,"","","",""]
[null,null,null,null,null,null,null,null,0,null,"","","",""]
[null,null,null,null,null,null,null,null,0,null,"","","",""]
[null,null,null,null,null,null,null,null,0,null,"","","",""]
[null,null,null,null,null,null,null,null,0,null,"","","",""]
[null,null,null,null,null,null,null,null,0,null,"","","",""]
[null,null,null,null,null,null,null,null,0,null,"","","",""]
[null,null,null,null,null,null,null,null,0,null,"","","",""]
[null,null,null,null,null,null,null,null,0,null,"","","",""]
[null,null,null,null,null,null,null,null,0,null,"","","",""]
[null,null,null,null,null,null,null,null,0,null,"","","",""]
[null,null,null,null,null,null,null,null,0,null,"","","",""]
[null,null,null,null,null,null,null,null,0,null,"","","",""]
[null,null,null,null,null,null,null,null,0,null,"","","",""]
[null,null,null,null,null,null,null,null,0,null,"","","",""]
[null,null,null,null,null,null,null,null,0,null,"","","",""]
[null,null,null,null,null,null,null,null,0,null,"","","",""]
[null,null,null,null,null,null,null,null,0,null,"","","",""]
[null,null,null,null,null,null,null,null,0,null,"","","",""]
[null,null,null,null,null,null,null,null,0,null,"","","",""]
[null,null,null,null,null,null,null,null,0,null,"","","",""]
[null,null,null,null,null,null,null,null,0,null,"","","",""]
[null,null,null,null,null,null,null,null,0,null,"","","",""]
[null,null,null,null,null,null,null,null,0,null,"","","",""]
[null,null,null,null,null,null,null,null,0,null,"","","",""]
[null,null,null,null,null,null,null,null,0,null,"","","",""]
[null,null,null,null,null,null,null,null,0,null,"","","",""]
[null,null,null,null,null,null,null,null,0,null,"","","",""]
[null,null,null,null,null,null,null,null,0,null,"","","",""]
[null,null,null,null,null,null,null,null,0,null,"","","",""]
[null,null,null,null,null,null,null,null,0,null,"","","",""]
[null,null,null,null,null,null,null,null,0,null,"","","",""]
[null,null,null,null,null,null,null,null,0,null,"","","",""]
[null,null,null,null,null,null,null,null,0,null,"","","",""]
[null,null,null,null,null,null,null,null,0,null,"","","",""]
[null,null,null,null,null,null,null,null,{"$f":"IFERROR(G972+H972,\"\")","v":0},null,{"$f":"IFERROR(IF(J972<>\"\",F972*J972,\"\"),\"\")","v":""},{"$f":"IFERROR(IF(J972<>\"\",G972*J972,\"\"),\"\")","v":""},{"$f":"IFERROR(IF(J972<>\"\",H972*J972,\"\"),\"\")","v":""},{"$f":"IFERROR(L972+M972,\"\")","v":""}]
[null,null,null,null,null,null,null,null,0,null,"","","",""]
[null,null,null,null,null,null,null,null,0,null,"","","",""]
[null,null,null,null,null,null,null,null,0,null,"","","",""]
[null,null,null,null,null,null,null,null,0,null,"","","",""]
[null,null,null,null,null,null,null,null,0,null,"","","",""]
[null,null,null,null,null,null,null,null,0,null,"","","",""]
[null,null,null,null,null,null,null,null,0,null,"","","",""]
[null,null,null,null,null,null,null,null,0,null,"","","",""]
[null,null,null,null,null,null,null,null,0,null,"","","",""]
[null,null,null,null,null,null,null,null,0,null,"","","",""]
[null,null,null,null,null,null,null,null,0,null,"","","",""]
[null,null,null,null,null,null,null,null,0,null,"","","",""]
[null,null,null,null,null,null,null,null,0,null,"","","",""]
[null,null,null,null,null,null,null,null,0,null,"","","",""]
[null,null,null,null,null,null,null,null,0,null,"","","",""]
[null,null,null,null,null,null,null,null,0,null,"","","",""]
[null,null,null,null,null,null,null,null,0,null,"","","",""]
[null,null,null,null,null,null,null,null,0,null,"","","",""]
[null,null,null,null,null,null,null,null,0,null,"","","",""]
[null,null,null,null,null,null,null,null,0,null,"","","",""]
[null,null,null,null,null,null,null,null,0,null,"","","",""]
[null,null,null,null,null,null,null,null,0,null,"","","",""]
[null,null,null,null,null,null,null,null,0,null,"","","",""]
[null,null,null,null,null,null,null,null,0,null,"","","",""]
[null,null,null,null,null,null,null,null,0,null,"","","",""]
[null,null,null,null,null,null,null,null,0,null,"","","",""]
[null,null,null,null,null,null,null,null,0,null,"","","",""]
[null,null,null,null,null,null,null,null,0,null,"","","",""]
[null,null,null,null,null,null,null,null,0,null,"","","",""]
[null,null,null,null,null,null,null,null,null,null,null,null,null,null,null,"x"]

{"sheet":"4.VS1-B","index":6,"n_rows":1002,"n_cols":16,"rows_kept":1002,"cut":false,"hidden":false,"merged":[[7,5,7,8],[7,9,9,9],[7,10,7,13],[8,5,9,5],[8,6,8,8],[8,10,9,10],[8,11,8,13],[7,4,9,4],[0,1,1,1],[7,0,9,0],[7,1,9,1],[7,2,9,2],[7,3,9,3]]}
[null,"VORDERINGSSTAAT 1 - DEEL B",null,null,null,null,null,null,null,null,null,null,"Datum : ",{"$f":"'0.basisgegevens'!B12","v":"00:00:00"}]
[null,null,null,null,null,null,null,null,null,null,null,null,"Projectingenieur : ",{"$f":"'0.basisgegevens'!B6","v":0}]
["TE",{"$f":"'0.basisgegevens'!B2","v":"TE"}]
["Titel",{"$f":"'0.basisgegevens'!B3","v":"Omschrijving project"}]
[]
[null,null,null,null,null,null,null,null,null,"TOTAAL excl. BTW",{"$f":"IFERROR(IF(SUM(K11:K1001)<>0,SUM(K11:K1001),\"\"),\"\")","v":""},{"$f":"IFERROR(IF(SUM(L11:L1001)<>0,SUM(L11:L1001),\"\"),\"\")","v":""},"",{"$f":"IFERROR(IF(SUM(N11:N1001)<>0,SUM(N11:N1001),\"\"),\"\")","v":""},null,"afdrukbereik filter"]
[]
["Artnr","Omschrijving","Herziening","Meting","EH","HOEVEELHEDEN",null,null,null,"Eenh.prijs \n(excl. BTW)","BEDRAGEN"]
[null,null,null,null,null,"Voorziene hoeveelheid","Uitgevoerde hoeveelheden",null,null,null,"Voorzien bedrag","Uitgevoerde bedragen"]
[null,null,null,null,null,null,"Vorige periode","Huidige periode","Cumul",null,null,"Vorige periode","Huidige periode","Cumul"]
[null,null,null,null,null,null,null,null,{"$f":"IFERROR(G11+H11,\"\")","v":0},null,{"$f":"IFERROR(IF(J11<>\"\",F11*J11,\"\"),\"\")","v":""},{"$f":"IFERROR(IF(J11<>\"\",G11*J11,\"\"),\"\")","v":""},{"$f":"IFERROR(IF(J11<>\"\",H11*J11,\"\"),\"\")","v":""},{"$f":"IFERROR(L11+M11,\"\")","v":""}]
[null,null,null,null,null,null,null,null,{"$f":"IFERROR(G12+H12,\"\")","v":0},null,{"$f":"IFERROR(IF(J12<>\"\",F12*J12,\"\"),\"\")","v":""},{"$f":"IFERROR(IF(J12<>\"\",G12*J12,\"\"),\"\")","v":""},{"$f":"IFERROR(IF(J12<>\"\",H12*J12,\"\"),\"\")","v":""},{"$f":"IFERROR(L12+M12,\"\")","v":""}]
[null,null,null,null,null,null,null,null,0,null,"","","",""]
[null,null,null,null,null,null,null,null,0,null,"","","",""]
[null,null,null,null,null,null,null,null,0,null,"","","",""]
[null,null,null,null,null,null,null,null,0,null,"","","",""]
[null,null,null,null,null,null,null,null,0,null,"","","",""]
[null,null,null,null,null,null,null,null,0,null,"","","",""]
[null,null,null,null,null,null,null,null,0,null,"","","",""]
[null,null,null,null,null,null,null,null,0,null,"","","",""]
[null,null,null,null,null,null,null,null,0,null,"","","",""]
[null,null,null,null,null,null,null,null,0,null,"","","",""]
[null,null,null,null,null,null,null,null,0,null,"","","",""]
[null,null,null,null,null,null,null,null,0,null,"","","",""]
[null,null,null,null,null,null,null,null,0,null,"","","",""]
[null,null,null,null,null,null,null,null,0,null,"","","",""]
[null,null,null,null,null,null,null,null,0,null,"","","",""]
[null,null,null,null,null,null,null,null,0,null,"","","",""]
[null,null,null,null,null,null,null,null,0,null,"","","",""]
[null,null,null,null,null,null,null,null,0,null,"","","",""]
[null,null,null,null,null,null,null,null,0,null,"","","",""]
[null,null,null,null,null,null,null,null,0,null,"","","",""]
[null,null,null,null,null,null,null,null,0,null,"","","",""]
[null,null,null,null,null,null,null,null,0,null,"","","",""]
[null,null,null,null,null,null,null,null,0,null,"","","",""]
[null,null,null,null,null,null,null,null,0,null,"","","",""]
[null,null,null,null,null,null,null,null,0,null,"","","",""]
[null,null,null,null,null,null,null,null,0,null,"","","",""]
[null,null,null,null,null,null,null,null,0,null,"","","",""]
[null,null,null,null,null,null,null,null,0,null,"","","",""]
[null,null,null,null,null,null,null,null,0,null,"","","",""]
[null,null,null,null,null,null,null,null,0,null,"","","",""]
[null,null,null,null,null,null,null,null,0,null,"","","",""]
[null,null,null,null,null,null,null,null,0,null,"","","",""]
[null,null,null,null,null,null,null,null,0,null,"","","",""]
[null,null,null,null,null,null,null,null,0,null,"","","",""]
[null,null,null,null,null,null,null,null,0,null,"","","",""]
[null,null,null,null,null,null,null,null,0,null,"","","",""]
[null,null,null,null,null,null,null,null,0,null,"","","",""]
[null,null,null,null,null,null,null,null,0,null,"","","",""]
[null,null,null,null,null,null,null,null,0,null,"","","",""]
[null,null,null,null,null,null,null,null,0,null,"","","",""]
[null,null,null,null,null,null,null,null,0,null,"","","",""]
[null,null,null,null,null,null,null,null,0,null,"","","",""]
[null,null,null,null,null,null,null,null,0,null,"","","",""]
[null,null,null,null,null,null,null,null,0,null,"","","",""]
[null,null,null,null,null,null,null,null,0,null,"","","",""]
[null,null,null,null,null,null,null,null,0,null,"","","",""]
[null,null,null,null,null,null,null,null,0,null,"","","",""]
[null,null,null,null,null,null,null,null,0,null,"","","",""]
[null,null,null,null,null,null,null,null,0,null,"","","",""]
[null,null,null,null,null,null,null,null,0,null,"","","",""]
[null,null,null,null,null,null,null,null,0,null,"","","",""]
[null,null,null,null,null,null,null,null,0,null,"","","",""]
[null,null,null,null,null,null,null,null,0,null,"","","",""]
[null,null,null,null,null,null,null,null,0,null,"","","",""]
[null,null,null,null,null,null,null,null,0,null,"","","",""]
[null,null,null,null,null,null,null,null,0,null,"","","",""]
[null,null,null,null,null,null,null,null,0,null,"","","",""]
[null,null,null,null,null,null,null,null,0,null,"","","",""]
[null,null,null,null,null,null,null,null,0,null,"","","",""]
[null,null,null,null,null,null,null,null,0,null,"","","",""]
[null,null,null,null,null,null,null,null,0,null,"","","",""]
[null,null,null,null,null,null,null,null,0,null,"","","",""]
[null,null,null,null,null,null,null,null,0,null,"","","",""]
[null,null,null,null,null,null,null,null,{"$f":"IFERROR(G76+H76,\"\")","v":0},null,{"$f":"IFERROR(IF(J76<>\"\",F76*J76,\"\"),\"\")","v":""},{"$f":"IFERROR(IF(J76<>\"\",G76*J76,\"\"),\"\")","v":""},{"$f":"IFERROR(IF(J76<>\"\",H76*J76,\"\"),\"\")","v":""},{"$f":"IFERROR(L76+M76,\"\")","v":""}]
[null,null,null,null,null,null,null,null,0,null,"","","",""]
[null,null,null,null,null,null,null,null,0,null,"","","",""]
[null,null,null,null,null,null,null,null,0,null,"","","",""]
[null,null,null,null,null,null,null,null,0,null,"","","",""]
[null,null,null,null,null,null,null,null,0,null,"","","",""]
[null,null,null,null,null,null,null,null,0,null,"","","",""]
[null,null,null,null,null,null,null,null,0,null,"","","",""]
[null,null,null,null,null,null,null,null,0,null,"","","",""]
[null,null,null,null,null,null,null,null,0,null,"","","",""]
[null,null,null,null,null,null,null,null,0,null,"","","",""]
[null,null,null,null,null,null,null,null,0,null,"","","",""]
[null,null,null,null,null,null,null,null,0,null,"","","",""]
[null,null,null,null,null,null,null,null,0,null,"","","",""]
[null,null,null,null,null,null,null,null,0,null,"","","",""]
[null,null,null,null,null,null,null,null,0,null,"","","",""]
[null,null,null,null,null,null,null,null,0,null,"","","",""]
[null,null,null,null,null,null,null,null,0,null,"","","",""]
[null,null,null,null,null,null,null,null,0,null,"","","",""]
[null,null,null,null,null,null,null,null,0,null,"","","",""]
[null,null,null,null,null,null,null,null,0,null,"","","",""]
[null,null,null,null,null,null,null,null,0,null,"","","",""]
[null,null,null,null,null,null,null,null,0,null,"","","",""]
[null,null,null,null,null,null,null,null,0,null,"","","",""]
[null,null,null,null,null,null,null,null,0,null,"","","",""]
[null,null,null,null,null,null,null,null,0,null,"","","",""]
[null,null,null,null,null,null,null,null,0,null,"","","",""]
[null,null,null,null,null,null,null,null,0,null,"","","",""]
[null,null,null,null,null,null,null,null,0,null,"","","",""]
[null,null,null,null,null,null,null,null,0,null,"","","",""]
[null,null,null,null,null,null,null,null,0,null,"","","",""]
[null,null,null,null,null,null,null,null,0,null,"","","",""]
[null,null,null,null,null,null,null,null,0,null,"","","",""]
[null,null,null,null,null,null,null,null,0,null,"","","",""]
[null,null,null,null,null,null,null,null,0,null,"","","",""]
[null,null,null,null,null,null,null,null,0,null,"","","",""]
[null,null,null,null,null,null,null,null,0,null,"","","",""]
[null,null,null,null,null,null,null,null,0,null,"","","",""]
[null,null,null,null,null,null,null,null,0,null,"","","",""]
[null,null,null,null,null,null,null,null,0,null,"","","",""]
[null,null,null,null,null,null,null,null,0,null,"","","",""]
[null,null,null,null,null,null,null,null,0,null,"","","",""]
[null,null,null,null,null,null,null,null,0,null,"","","",""]
[null,null,null,null,null,null,null,null,0,null,"","","",""]
[null,null,null,null,null,null,null,null,0,null,"","","",""]
[null,null,null,null,null,null,null,null,0,null,"","","",""]
[null,null,null,null,null,null,null,null,0,null,"","","",""]
[null,null,null,null,null,null,null,null,0,null,"","","",""]
[null,null,null,null,null,null,null,null,0,null,"","","",""]
[null,null,null,null,null,null,null,null,0,null,"","","",""]
[null,null,null,null,null,null,null,null,0,null,"","","",""]
[null,null,null,null,null,null,null,null,0,null,"","","",""]
[null,null,null,null,null,null,null,null,0,null,"","","",""]
[null,null,null,null,null,null,null,null,0,null,"","","",""]
[null,null,null,null,null,null,null,null,0,null,"","","",""]
[null,null,null,null,null,null,null,null,0,null,"","","",""]
[null,null,null,null,null,null,null,null,0,null,"","","",""]
[null,null,null,null,null,null,null,null,0,null,"","","",""]
[null,null,null,null,null,null,null,null,0,null,"","","",""]
[null,null,null,null,null,null,null,null,0,null,"","","",""]
[null,null,null,null,null,null,null,null,0,null,"","","",""]
[null,null,null,null,null,null,null,null,0,null,"","","",""]
[null,null,null,null,null,null,null,null,0,null,"","","",""]
[null,null,null,null,null,null,null,null,0,null,"","","",""]
[null,null,null,null,null,null,null,null,{"$f":"IFERROR(G140+H140,\"\")","v":0},null,{"$f":"IFERROR(IF(J140<>\"\",F140*J140,\"\"),\"\")","v":""},{"$f":"IFERROR(IF(J140<>\"\",G140*J140,\"\"),\"\")","v":""},{"$f":"IFERROR(IF(J140<>\"\",H140*J140,\"\"),\"\")","v":""},{"$f":"IFERROR(L140+M140,\"\")","v":""}]
[null,null,null,null,null,null,null,null,0,null,"","","",""]
[null,null,null,null,null,null,null,null,0,null,"","","",""]
[null,null,null,null,null,null,null,null,0,null,"","","",""]
[null,null,null,null,null,null,null,null,0,null,"","","",""]
[null,null,null,null,null,null,null,null,0,null,"","","",""]
[null,null,null,null,null,null,null,null,0,null,"","","",""]
[null,null,null,null,null,null,null,null,0,null,"","","",""]
[null,null,null,null,null,null,null,null,0,null,"","","",""]
[null,null,null,null,null,null,null,null,0,null,"","","",""]
[null,null,null,null,null,null,null,null,0,null,"","","",""]
[null,null,null,null,null,null,null,null,0,null,"","","",""]
[null,null,null,null,null,null,null,null,0,null,"","","",""]
[null,null,null,null,null,null,null,null,0,null,"","","",""]
[null,null,null,null,null,null,null,null,0,null,"","","",""]
[null,null,null,null,null,null,null,null,0,null,"","","",""]
[null,null,null,null,null,null,null,null,0,null,"","","",""]
[null,null,null,null,null,null,null,null,0,null,"","","",""]
[null,null,null,null,null,null,null,null,0,null,"","","",""]
[null,null,null,null,null,null,null,null,0,null,"","","",""]
[null,null,null,null,null,null,null,null,0,null,"","","",""]
[null,null,null,null,null,null,null,null,0,null,"","","",""]
[null,null,null,null,null,null,null,null,0,null,"","","",""]
[null,null,null,null,null,null,null,null,0,null,"","","",""]
[null,null,null,null,null,null,null,null,0,null,"","","",""]
[null,null,null,null,null,null,null,null,0,null,"","","",""]
[null,null,null,null,null,null,null,null,0,null,"","","",""]
[null,null,null,null,null,null,null,null,0,null,"","","",""]
[null,null,null,null,null,null,null,null,0,null,"","","",""]
[null,null,null,null,null,null,null,null,0,null,"","","",""]
[null,null,null,null,null,null,null,null,0,null,"","","",""]
[null,null,null,null,null,null,null,null,0,null,"","","",""]
[null,null,null,null,null,null,null,null,0,null,"","","",""]
[null,null,null,null,null,null,null,null,0,null,"","","",""]
[null,null,null,null,null,null,null,null,0,null,"","","",""]
[null,null,null,null,null,null,null,null,0,null,"","","",""]
[null,null,null,null,null,null,null,null,0,null,"","","",""]
[null,null,null,null,null,null,null,null,0,null,"","","",""]
[null,null,null,null,null,null,null,null,0,null,"","","",""]
[null,null,null,null,null,null,null,null,0,null,"","","",""]
[null,null,null,null,null,null,null,null,0,null,"","","",""]
[null,null,null,null,null,null,null,null,0,null,"","","",""]
[null,null,null,null,null,null,null,null,0,null,"","","",""]
[null,null,null,null,null,null,null,null,0,null,"","","",""]
[null,null,null,null,null,null,null,null,0,null,"","","",""]
[null,null,null,null,null,null,null,null,0,null,"","","",""]
[null,null,null,null,null,null,null,null,0,null,"","","",""]
[null,null,null,null,null,null,null,null,0,null,"","","",""]
[null,null,null,null,null,null,null,null,0,null,"","","",""]
[null,null,null,null,null,null,null,null,0,null,"","","",""]
[null,null,null,null,null,null,null,null,0,null,"","","",""]
[null,null,null,null,null,null,null,null,0,null,"","","",""]
[null,null,null,null,null,null,null,null,0,null,"","","",""]
[null,null,null,null,null,null,null,null,0,null,"","","",""]
[null,null,null,null,null,null,null,null,0,null,"","","",""]
[null,null,null,null,null,null,null,null,0,null,"","","",""]
[null,null,null,null,null,null,null,null,0,null,"","","",""]
[null,null,null,null,null,null,null,null,0,null,"","","",""]
[null,null,null,null,null,null,null,null,0,null,"","","",""]
[null,null,null,null,null,null,null,null,0,null,"","","",""]
[null,null,null,null,null,null,null,null,0,null,"","","",""]
[null,null,null,null,null,null,null,null,0,null,"","","",""]
[null,null,null,null,null,null,null,null,0,null,"","","",""]
[null,null,null,null,null,null,null,null,0,null,"","","",""]
[null,null,null,null,null,null,null,null,{"$f":"IFERROR(G204+H204,\"\")","v":0},null,{"$f":"IFERROR(IF(J204<>\"\",F204*J204,\"\"),\"\")","v":""},{"$f":"IFERROR(IF(J204<>\"\",G204*J204,\"\"),\"\")","v":""},{"$f":"IFERROR(IF(J204<>\"\",H204*J204,\"\"),\"\")","v":""},{"$f":"IFERROR(L204+M204,\"\")","v":""}]
[null,null,null,null,null,null,null,null,0,null,"","","",""]
[null,null,null,null,null,null,null,null,0,null,"","","",""]
[null,null,null,null,null,null,null,null,0,null,"","","",""]
[null,null,null,null,null,null,null,null,0,null,"","","",""]
[null,null,null,null,null,null,null,null,0,null,"","","",""]
[null,null,null,null,null,null,null,null,0,null,"","","",""]
[null,null,null,null,null,null,null,null,0,null,"","","",""]
[null,null,null,null,null,null,null,null,0,null,"","","",""]
[null,null,null,null,null,null,null,null,0,null,"","","",""]
[null,null,null,null,null,null,null,null,0,null,"","","",""]
[null,null,null,null,null,null,null,null,0,null,"","","",""]
[null,null,null,null,null,null,null,null,0,null,"","","",""]
[null,null,null,null,null,null,null,null,0,null,"","","",""]
[null,null,null,null,null,null,null,null,0,null,"","","",""]
[null,null,null,null,null,null,null,null,0,null,"","","",""]
[null,null,null,null,null,null,null,null,0,null,"","","",""]
[null,null,null,null,null,null,null,null,0,null,"","","",""]
[null,null,null,null,null,null,null,null,0,null,"","","",""]
[null,null,null,null,null,null,null,null,0,null,"","","",""]
[null,null,null,null,null,null,null,null,0,null,"","","",""]
[null,null,null,null,null,null,null,null,0,null,"","","",""]
[null,null,null,null,null,null,null,null,0,null,"","","",""]
[null,null,null,null,null,null,null,null,0,null,"","","",""]
[null,null,null,null,null,null,null,null,0,null,"","","",""]
[null,null,null,null,null,null,null,null,0,null,"","","",""]
[null,null,null,null,null,null,null,null,0,null,"","","",""]
[null,null,null,null,null,null,null,null,0,null,"","","",""]
[null,null,null,null,null,null,null,null,0,null,"","","",""]
[null,null,null,null,null,null,null,null,0,null,"","","",""]
[null,null,null,null,null,null,null,null,0,null,"","","",""]
[null,null,null,null,null,null,null,null,0,null,"","","",""]
[null,null,null,null,null,null,null,null,0,null,"","","",""]
[null,null,null,null,null,null,null,null,0,null,"","","",""]
[null,null,null,null,null,null,null,null,0,null,"","","",""]
[null,null,null,null,null,null,null,null,0,null,"","","",""]
[null,null,null,null,null,null,null,null,0,null,"","","",""]
[null,null,null,null,null,null,null,null,0,null,"","","",""]
[null,null,null,null,null,null,null,null,0,null,"","","",""]
[null,null,null,null,null,null,null,null,0,null,"","","",""]
[null,null,null,null,null,null,null,null,0,null,"","","",""]
[null,null,null,null,null,null,null,null,0,null,"","","",""]
[null,null,null,null,null,null,null,null,0,null,"","","",""]
[null,null,null,null,null,null,null,null,0,null,"","","",""]
[null,null,null,null,null,null,null,null,0,null,"","","",""]
[null,null,null,null,null,null,null,null,0,null,"","","",""]
[null,null,null,null,null,null,null,null,0,null,"","","",""]
[null,null,null,null,null,null,null,null,0,null,"","","",""]
[null,null,null,null,null,null,null,null,0,null,"","","",""]
[null,null,null,null,null,null,null,null,0,null,"","","",""]
[null,null,null,null,null,null,null,null,0,null,"","","",""]
[null,null,null,null,null,null,null,null,0,null,"","","",""]
[null,null,null,null,null,null,null,null,0,null,"","","",""]
[null,null,null,null,null,null,null,null,0,null,"","","",""]
[null,null,null,null,null,null,null,null,0,null,"","","",""]
[null,null,null,null,null,null,null,null,0,null,"","","",""]
[null,null,null,null,null,null,null,null,0,null,"","","",""]
[null,null,null,null,null,null,null,null,0,null,"","","",""]
[null,null,null,null,null,null,null,null,0,null,"","","",""]
[null,null,null,null,null,null,null,null,0,null,"","","",""]
[null,null,null,null,null,null,null,null,0,null,"","","",""]
[null,null,null,null,null,null,null,null,0,null,"","","",""]
[null,null,null,null,null,null,null,null,0,null,"","","",""]
[null,null,null,null,null,null,null,null,0,null,"","","",""]
[null,null,null,null,null,null,null,null,{"$f":"IFERROR(G268+H268,\"\")","v":0},null,{"$f":"IFERROR(IF(J268<>\"\",F268*J268,\"\"),\"\")","v":""},{"$f":"IFERROR(IF(J268<>\"\",G268*J268,\"\"),\"\")","v":""},{"$f":"IFERROR(IF(J268<>\"\",H268*J268,\"\"),\"\")","v":""},{"$f":"IFERROR(L268+M268,\"\")","v":""}]
[null,null,null,null,null,null,null,null,0,null,"","","",""]
[null,null,null,null,null,null,null,null,0,null,"","","",""]
[null,null,null,null,null,null,null,null,0,null,"","","",""]
[null,null,null,null,null,null,null,null,0,null,"","","",""]
[null,null,null,null,null,null,null,null,0,null,"","","",""]
[null,null,null,null,null,null,null,null,0,null,"","","",""]
[null,null,null,null,null,null,null,null,0,null,"","","",""]
[null,null,null,null,null,null,null,null,0,null,"","","",""]
[null,null,null,null,null,null,null,null,0,null,"","","",""]
[null,null,null,null,null,null,null,null,0,null,"","","",""]
[null,null,null,null,null,null,null,null,0,null,"","","",""]
[null,null,null,null,null,null,null,null,0,null,"","","",""]
[null,null,null,null,null,null,null,null,0,null,"","","",""]
[null,null,null,null,null,null,null,null,0,null,"","","",""]
[null,null,null,null,null,null,null,null,0,null,"","","",""]
[null,null,null,null,null,null,null,null,0,null,"","","",""]
[null,null,null,null,null,null,null,null,0,null,"","","",""]
[null,null,null,null,null,null,null,null,0,null,"","","",""]
[null,null,null,null,null,null,null,null,0,null,"","","",""]
[null,null,null,null,null,null,null,null,0,null,"","","",""]
[null,null,null,null,null,null,null,null,0,null,"","","",""]
[null,null,null,null,null,null,null,null,0,null,"","","",""]
[null,null,null,null,null,null,null,null,0,null,"","","",""]
[null,null,null,null,null,null,null,null,0,null,"","","",""]
[null,null,null,null,null,null,null,null,0,null,"","","",""]
[null,null,null,null,null,null,null,null,0,null,"","","",""]
[null,null,null,null,null,null,null,null,0,null,"","","",""]
[null,null,null,null,null,null,null,null,0,null,"","","",""]
[null,null,null,null,null,null,null,null,0,null,"","","",""]
[null,null,null,null,null,null,null,null,0,null,"","","",""]
[null,null,null,null,null,null,null,null,0,null,"","","",""]
[null,null,null,null,null,null,null,null,0,null,"","","",""]
[null,null,null,null,null,null,null,null,0,null,"","","",""]
[null,null,null,null,null,null,null,null,0,null,"","","",""]
[null,null,null,null,null,null,null,null,0,null,"","","",""]
[null,null,null,null,null,null,null,null,0,null,"","","",""]
[null,null,null,null,null,null,null,null,0,null,"","","",""]
[null,null,null,null,null,null,null,null,0,null,"","","",""]
[null,null,null,null,null,null,null,null,0,null,"","","",""]
[null,null,null,null,null,null,null,null,0,null,"","","",""]
[null,null,null,null,null,null,null,null,0,null,"","","",""]
[null,null,null,null,null,null,null,null,0,null,"","","",""]
[null,null,null,null,null,null,null,null,0,null,"","","",""]
[null,null,null,null,null,null,null,null,0,null,"","","",""]
[null,null,null,null,null,null,null,null,0,null,"","","",""]
[null,null,null,null,null,null,null,null,0,null,"","","",""]
[null,null,null,null,null,null,null,null,0,null,"","","",""]
[null,null,null,null,null,null,null,null,0,null,"","","",""]
[null,null,null,null,null,null,null,null,0,null,"","","",""]
[null,null,null,null,null,null,null,null,0,null,"","","",""]
[null,null,null,null,null,null,null,null,0,null,"","","",""]
[null,null,null,null,null,null,null,null,0,null,"","","",""]
[null,null,null,null,null,null,null,null,0,null,"","","",""]
[null,null,null,null,null,null,null,null,0,null,"","","",""]
[null,null,null,null,null,null,null,null,0,null,"","","",""]
[null,null,null,null,null,null,null,null,0,null,"","","",""]
[null,null,null,null,null,null,null,null,0,null,"","","",""]
[null,null,null,null,null,null,null,null,0,null,"","","",""]
[null,null,null,null,null,null,null,null,0,null,"","","",""]
[null,null,null,null,null,null,null,null,0,null,"","","",""]
[null,null,null,null,null,null,null,null,0,null,"","","",""]
[null,null,null,null,null,null,null,null,0,null,"","","",""]
[null,null,null,null,null,null,null,null,0,null,"","","",""]
[null,null,null,null,null,null,null,null,{"$f":"IFERROR(G332+H332,\"\")","v":0},null,{"$f":"IFERROR(IF(J332<>\"\",F332*J332,\"\"),\"\")","v":""},{"$f":"IFERROR(IF(J332<>\"\",G332*J332,\"\"),\"\")","v":""},{"$f":"IFERROR(IF(J332<>\"\",H332*J332,\"\"),\"\")","v":""},{"$f":"IFERROR(L332+M332,\"\")","v":""}]
[null,null,null,null,null,null,null,null,0,null,"","","",""]
[null,null,null,null,null,null,null,null,0,null,"","","",""]
[null,null,null,null,null,null,null,null,0,null,"","","",""]
[null,null,null,null,null,null,null,null,0,null,"","","",""]
[null,null,null,null,null,null,null,null,0,null,"","","",""]
[null,null,null,null,null,null,null,null,0,null,"","","",""]
[null,null,null,null,null,null,null,null,0,null,"","","",""]
[null,null,null,null,null,null,null,null,0,null,"","","",""]
[null,null,null,null,null,null,null,null,0,null,"","","",""]
[null,null,null,null,null,null,null,null,0,null,"","","",""]
[null,null,null,null,null,null,null,null,0,null,"","","",""]
[null,null,null,null,null,null,null,null,0,null,"","","",""]
[null,null,null,null,null,null,null,null,0,null,"","","",""]
[null,null,null,null,null,null,null,null,0,null,"","","",""]
[null,null,null,null,null,null,null,null,0,null,"","","",""]
[null,null,null,null,null,null,null,null,0,null,"","","",""]
[null,null,null,null,null,null,null,null,0,null,"","","",""]
[null,null,null,null,null,null,null,null,0,null,"","","",""]
[null,null,null,null,null,null,null,null,0,null,"","","",""]
[null,null,null,null,null,null,null,null,0,null,"","","",""]
[null,null,null,null,null,null,null,null,0,null,"","","",""]
[null,null,null,null,null,null,null,null,0,null,"","","",""]
[null,null,null,null,null,null,null,null,0,null,"","","",""]
[null,null,null,null,null,null,null,null,0,null,"","","",""]
[null,null,null,null,null,null,null,null,0,null,"","","",""]
[null,null,null,null,null,null,null,null,0,null,"","","",""]
[null,null,null,null,null,null,null,null,0,null,"","","",""]
[null,null,null,null,null,null,null,null,0,null,"","","",""]
[null,null,null,null,null,null,null,null,0,null,"","","",""]
[null,null,null,null,null,null,null,null,0,null,"","","",""]
[null,null,null,null,null,null,null,null,0,null,"","","",""]
[null,null,null,null,null,null,null,null,0,null,"","","",""]
[null,null,null,null,null,null,null,null,0,null,"","","",""]
[null,null,null,null,null,null,null,null,0,null,"","","",""]
[null,null,null,null,null,null,null,null,0,null,"","","",""]
[null,null,null,null,null,null,null,null,0,null,"","","",""]
[null,null,null,null,null,null,null,null,0,null,"","","",""]
[null,null,null,null,null,null,null,null,0,null,"","","",""]
[null,null,null,null,null,null,null,null,0,null,"","","",""]
[null,null,null,null,null,null,null,null,0,null,"","","",""]
[null,null,null,null,null,null,null,null,0,null,"","","",""]
[null,null,null,null,null,null,null,null,0,null,"","","",""]
[null,null,null,null,null,null,null,null,0,null,"","","",""]
[null,null,null,null,null,null,null,null,0,null,"","","",""]
[null,null,null,null,null,null,null,null,0,null,"","","",""]
[null,null,null,null,null,null,null,null,0,null,"","","",""]
[null,null,null,null,null,null,null,null,0,null,"","","",""]
[null,null,null,null,null,null,null,null,0,null,"","","",""]
[null,null,null,null,null,null,null,null,0,null,"","","",""]
[null,null,null,null,null,null,null,null,0,null,"","","",""]
[null,null,null,null,null,null,null,null,0,null,"","","",""]
[null,null,null,null,null,null,null,null,0,null,"","","",""]
[null,null,null,null,null,null,null,null,0,null,"","","",""]
[null,null,null,null,null,null,null,null,0,null,"","","",""]
[null,null,null,null,null,null,null,null,0,null,"","","",""]
[null,null,null,null,null,null,null,null,0,null,"","","",""]
[null,null,null,null,null,null,null,null,0,null,"","","",""]
[null,null,null,null,null,null,null,null,0,null,"","","",""]
[null,null,null,null,null,null,null,null,0,null,"","","",""]
[null,null,null,null,null,null,null,null,0,null,"","","",""]
[null,null,null,null,null,null,null,null,0,null,"","","",""]
[null,null,null,null,null,null,null,null,0,null,"","","",""]
[null,null,null,null,null,null,null,null,0,null,"","","",""]
[null,null,null,null,null,null,null,null,{"$f":"IFERROR(G396+H396,\"\")","v":0},null,{"$f":"IFERROR(IF(J396<>\"\",F396*J396,\"\"),\"\")","v":""},{"$f":"IFERROR(IF(J396<>\"\",G396*J396,\"\"),\"\")","v":""},{"$f":"IFERROR(IF(J396<>\"\",H396*J396,\"\"),\"\")","v":""},{"$f":"IFERROR(L396+M396,\"\")","v":""}]
[null,null,null,null,null,null,null,null,0,null,"","","",""]
[null,null,null,null,null,null,null,null,0,null,"","","",""]
[null,null,null,null,null,null,null,null,0,null,"","","",""]
[null,null,null,null,null,null,null,null,0,null,"","","",""]
[null,null,null,null,null,null,null,null,0,null,"","","",""]
[null,null,null,null,null,null,null,null,0,null,"","","",""]
[null,null,null,null,null,null,null,null,0,null,"","","",""]
[null,null,null,null,null,null,null,null,0,null,"","","",""]
[null,null,null,null,null,null,null,null,0,null,"","","",""]
[null,null,null,null,null,null,null,null,0,null,"","","",""]
[null,null,null,null,null,null,null,null,0,null,"","","",""]
[null,null,null,null,null,null,null,null,0,null,"","","",""]
[null,null,null,null,null,null,null,null,0,null,"","","",""]
[null,null,null,null,null,null,null,null,0,null,"","","",""]
[null,null,null,null,null,null,null,null,0,null,"","","",""]
[null,null,null,null,null,null,null,null,0,null,"","","",""]
[null,null,null,null,null,null,null,null,0,null,"","","",""]
[null,null,null,null,null,null,null,null,0,null,"","","",""]
[null,null,null,null,null,null,null,null,0,null,"","","",""]
[null,null,null,null,null,null,null,null,0,null,"","","",""]
[null,null,null,null,null,null,null,null,0,null,"","","",""]
[null,null,null,null,null,null,null,null,0,null,"","","",""]
[null,null,null,null,null,null,null,null,0,null,"","","",""]
[null,null,null,null,null,null,null,null,0,null,"","","",""]
[null,null,null,null,null,null,null,null,0,null,"","","",""]
[null,null,null,null,null,null,null,null,0,null,"","","",""]
[null,null,null,null,null,null,null,null,0,null,"","","",""]
[null,null,null,null,null,null,null,null,0,null,"","","",""]
[null,null,null,null,null,null,null,null,0,null,"","","",""]
[null,null,null,null,null,null,null,null,0,null,"","","",""]
[null,null,null,null,null,null,null,null,0,null,"","","",""]
[null,null,null,null,null,null,null,null,0,null,"","","",""]
[null,null,null,null,null,null,null,null,0,null,"","","",""]
[null,null,null,null,null,null,null,null,0,null,"","","",""]
[null,null,null,null,null,null,null,null,0,null,"","","",""]
[null,null,null,null,null,null,null,null,0,null,"","","",""]
[null,null,null,null,null,null,null,null,0,null,"","","",""]
[null,null,null,null,null,null,null,null,0,null,"","","",""]
[null,null,null,null,null,null,null,null,0,null,"","","",""]
[null,null,null,null,null,null,null,null,0,null,"","","",""]
[null,null,null,null,null,null,null,null,0,null,"","","",""]
[null,null,null,null,null,null,null,null,0,null,"","","",""]
[null,null,null,null,null,null,null,null,0,null,"","","",""]
[null,null,null,null,null,null,null,null,0,null,"","","",""]
[null,null,null,null,null,null,null,null,0,null,"","","",""]
[null,null,null,null,null,null,null,null,0,null,"","","",""]
[null,null,null,null,null,null,null,null,0,null,"","","",""]
[null,null,null,null,null,null,null,null,0,null,"","","",""]
[null,null,null,null,null,null,null,null,0,null,"","","",""]
[null,null,null,null,null,null,null,null,0,null,"","","",""]
[null,null,null,null,null,null,null,null,0,null,"","","",""]
[null,null,null,null,null,null,null,null,0,null,"","","",""]
[null,null,null,null,null,null,null,null,0,null,"","","",""]
[null,null,null,null,null,null,null,null,0,null,"","","",""]
[null,null,null,null,null,null,null,null,0,null,"","","",""]
[null,null,null,null,null,null,null,null,0,null,"","","",""]
[null,null,null,null,null,null,null,null,0,null,"","","",""]
[null,null,null,null,null,null,null,null,0,null,"","","",""]
[null,null,null,null,null,null,null,null,0,null,"","","",""]
[null,null,null,null,null,null,null,null,0,null,"","","",""]
[null,null,null,null,null,null,null,null,0,null,"","","",""]
[null,null,null,null,null,null,null,null,0,null,"","","",""]
[null,null,null,null,null,null,null,null,0,null,"","","",""]
[null,null,null,null,null,null,null,null,{"$f":"IFERROR(G460+H460,\"\")","v":0},null,{"$f":"IFERROR(IF(J460<>\"\",F460*J460,\"\"),\"\")","v":""},{"$f":"IFERROR(IF(J460<>\"\",G460*J460,\"\"),\"\")","v":""},{"$f":"IFERROR(IF(J460<>\"\",H460*J460,\"\"),\"\")","v":""},{"$f":"IFERROR(L460+M460,\"\")","v":""}]
[null,null,null,null,null,null,null,null,0,null,"","","",""]
[null,null,null,null,null,null,null,null,0,null,"","","",""]
[null,null,null,null,null,null,null,null,0,null,"","","",""]
[null,null,null,null,null,null,null,null,0,null,"","","",""]
[null,null,null,null,null,null,null,null,0,null,"","","",""]
[null,null,null,null,null,null,null,null,0,null,"","","",""]
[null,null,null,null,null,null,null,null,0,null,"","","",""]
[null,null,null,null,null,null,null,null,0,null,"","","",""]
[null,null,null,null,null,null,null,null,0,null,"","","",""]
[null,null,null,null,null,null,null,null,0,null,"","","",""]
[null,null,null,null,null,null,null,null,0,null,"","","",""]
[null,null,null,null,null,null,null,null,0,null,"","","",""]
[null,null,null,null,null,null,null,null,0,null,"","","",""]
[null,null,null,null,null,null,null,null,0,null,"","","",""]
[null,null,null,null,null,null,null,null,0,null,"","","",""]
[null,null,null,null,null,null,null,null,0,null,"","","",""]
[null,null,null,null,null,null,null,null,0,null,"","","",""]
[null,null,null,null,null,null,null,null,0,null,"","","",""]
[null,null,null,null,null,null,null,null,0,null,"","","",""]
[null,null,null,null,null,null,null,null,0,null,"","","",""]
[null,null,null,null,null,null,null,null,0,null,"","","",""]
[null,null,null,null,null,null,null,null,0,null,"","","",""]
[null,null,null,null,null,null,null,null,0,null,"","","",""]
[null,null,null,null,null,null,null,null,0,null,"","","",""]
[null,null,null,null,null,null,null,null,0,null,"","","",""]
[null,null,null,null,null,null,null,null,0,null,"","","",""]
[null,null,null,null,null,null,null,null,0,null,"","","",""]
[null,null,null,null,null,null,null,null,0,null,"","","",""]
[null,null,null,null,null,null,null,null,0,null,"","","",""]
[null,null,null,null,null,null,null,null,0,null,"","","",""]
[null,null,null,null,null,null,null,null,0,null,"","","",""]
[null,null,null,null,null,null,null,null,0,null,"","","",""]
[null,null,null,null,null,null,null,null,0,null,"","","",""]
[null,null,null,null,null,null,null,null,0,null,"","","",""]
[null,null,null,null,null,null,null,null,0,null,"","","",""]
[null,null,null,null,null,null,null,null,0,null,"","","",""]
[null,null,null,null,null,null,null,null,0,null,"","","",""]
[null,null,null,null,null,null,null,null,0,null,"","","",""]
[null,null,null,null,null,null,null,null,0,null,"","","",""]
[null,null,null,null,null,null,null,null,0,null,"","","",""]
[null,null,null,null,null,null,null,null,0,null,"","","",""]
[null,null,null,null,null,null,null,null,0,null,"","","",""]
[null,null,null,null,null,null,null,null,0,null,"","","",""]
[null,null,null,null,null,null,null,null,0,null,"","","",""]
[null,null,null,null,null,null,null,null,0,null,"","","",""]
[null,null,null,null,null,null,null,null,0,null,"","","",""]
[null,null,null,null,null,null,null,null,0,null,"","","",""]
[null,null,null,null,null,null,null,null,0,null,"","","",""]
[null,null,null,null,null,null,null,null,0,null,"","","",""]
[null,null,null,null,null,null,null,null,0,null,"","","",""]
[null,null,null,null,null,null,null,null,0,null,"","","",""]
[null,null,null,null,null,null,null,null,0,null,"","","",""]
[null,null,null,null,null,null,null,null,0,null,"","","",""]
[null,null,null,null,null,null,null,null,0,null,"","","",""]
[null,null,null,null,null,null,null,null,0,null,"","","",""]
[null,null,null,null,null,null,null,null,0,null,"","","",""]
[null,null,null,null,null,null,null,null,0,null,"","","",""]
[null,null,null,null,null,null,null,null,0,null,"","","",""]
[null,null,null,null,null,null,null,null,0,null,"","","",""]
[null,null,null,null,null,null,null,null,0,null,"","","",""]
[null,null,null,null,null,null,null,null,0,null,"","","",""]
[null,null,null,null,null,null,null,null,0,null,"","","",""]
[null,null,null,null,null,null,null,null,0,null,"","","",""]
[null,null,null,null,null,null,null,null,{"$f":"IFERROR(G524+H524,\"\")","v":0},null,{"$f":"IFERROR(IF(J524<>\"\",F524*J524,\"\"),\"\")","v":""},{"$f":"IFERROR(IF(J524<>\"\",G524*J524,\"\"),\"\")","v":""},{"$f":"IFERROR(IF(J524<>\"\",H524*J524,\"\"),\"\")","v":""},{"$f":"IFERROR(L524+M524,\"\")","v":""}]
[null,null,null,null,null,null,null,null,0,null,"","","",""]
[null,null,null,null,null,null,null,null,0,null,"","","",""]
[null,null,null,null,null,null,null,null,0,null,"","","",""]
[null,null,null,null,null,null,null,null,0,null,"","","",""]
[null,null,null,null,null,null,null,null,0,null,"","","",""]
[null,null,null,null,null,null,null,null,0,null,"","","",""]
[null,null,null,null,null,null,null,null,0,null,"","","",""]
[null,null,null,null,null,null,null,null,0,null,"","","",""]
[null,null,null,null,null,null,null,null,0,null,"","","",""]
[null,null,null,null,null,null,null,null,0,null,"","","",""]
[null,null,null,null,null,null,null,null,0,null,"","","",""]
[null,null,null,null,null,null,null,null,0,null,"","","",""]
[null,null,null,null,null,null,null,null,0,null,"","","",""]
[null,null,null,null,null,null,null,null,0,null,"","","",""]
[null,null,null,null,null,null,null,null,0,null,"","","",""]
[null,null,null,null,null,null,null,null,0,null,"","","",""]
[null,null,null,null,null,null,null,null,0,null,"","","",""]
[null,null,null,null,null,null,null,null,0,null,"","","",""]
[null,null,null,null,null,null,null,null,0,null,"","","",""]
[null,null,null,null,null,null,null,null,0,null,"","","",""]
[null,null,null,null,null,null,null,null,0,null,"","","",""]
[null,null,null,null,null,null,null,null,0,null,"","","",""]
[null,null,null,null,null,null,null,null,0,null,"","","",""]
[null,null,null,null,null,null,null,null,0,null,"","","",""]
[null,null,null,null,null,null,null,null,0,null,"","","",""]
[null,null,null,null,null,null,null,null,0,null,"","","",""]
[null,null,null,null,null,null,null,null,0,null,"","","",""]
[null,null,null,null,null,null,null,null,0,null,"","","",""]
[null,null,null,null,null,null,null,null,0,null,"","","",""]
[null,null,null,null,null,null,null,null,0,null,"","","",""]
[null,null,null,null,null,null,null,null,0,null,"","","",""]
[null,null,null,null,null,null,null,null,0,null,"","","",""]
[null,null,null,null,null,null,null,null,0,null,"","","",""]
[null,null,null,null,null,null,null,null,0,null,"","","",""]
[null,null,null,null,null,null,null,null,0,null,"","","",""]
[null,null,null,null,null,null,null,null,0,null,"","","",""]
[null,null,null,null,null,null,null,null,0,null,"","","",""]
[null,null,null,null,null,null,null,null,0,null,"","","",""]
[null,null,null,null,null,null,null,null,0,null,"","","",""]
[null,null,null,null,null,null,null,null,0,null,"","","",""]
[null,null,null,null,null,null,null,null,0,null,"","","",""]
[null,null,null,null,null,null,null,null,0,null,"","","",""]
[null,null,null,null,null,null,null,null,0,null,"","","",""]
[null,null,null,null,null,null,null,null,0,null,"","","",""]
[null,null,null,null,null,null,null,null,0,null,"","","",""]
[null,null,null,null,null,null,null,null,0,null,"","","",""]
[null,null,null,null,null,null,null,null,0,null,"","","",""]
[null,null,null,null,null,null,null,null,0,null,"","","",""]
[null,null,null,null,null,null,null,null,0,null,"","","",""]
[null,null,null,null,null,null,null,null,0,null,"","","",""]
[null,null,null,null,null,null,null,null,0,null,"","","",""]
[null,null,null,null,null,null,null,null,0,null,"","","",""]
[null,null,null,null,null,null,null,null,0,null,"","","",""]
[null,null,null,null,null,null,null,null,0,null,"","","",""]
[null,null,null,null,null,null,null,null,0,null,"","","",""]
[null,null,null,null,null,null,null,null,0,null,"","","",""]
[null,null,null,null,null,null,null,null,0,null,"","","",""]
[null,null,null,null,null,null,null,null,0,null,"","","",""]
[null,null,null,null,null,null,null,null,0,null,"","","",""]
[null,null,null,null,null,null,null,null,0,null,"","","",""]
[null,null,null,null,null,null,null,null,0,null,"","","",""]
[null,null,null,null,null,null,null,null,0,null,"","","",""]
[null,null,null,null,null,null,null,null,0,null,"","","",""]
[null,null,null,null,null,null,null,null,{"$f":"IFERROR(G588+H588,\"\")","v":0},null,{"$f":"IFERROR(IF(J588<>\"\",F588*J588,\"\"),\"\")","v":""},{"$f":"IFERROR(IF(J588<>\"\",G588*J588,\"\"),\"\")","v":""},{"$f":"IFERROR(IF(J588<>\"\",H588*J588,\"\"),\"\")","v":""},{"$f":"IFERROR(L588+M588,\"\")","v":""}]
[null,null,null,null,null,null,null,null,0,null,"","","",""]
[null,null,null,null,null,null,null,null,0,null,"","","",""]
[null,null,null,null,null,null,null,null,0,null,"","","",""]
[null,null,null,null,null,null,null,null,0,null,"","","",""]
[null,null,null,null,null,null,null,null,0,null,"","","",""]
[null,null,null,null,null,null,null,null,0,null,"","","",""]
[null,null,null,null,null,null,null,null,0,null,"","","",""]
[null,null,null,null,null,null,null,null,0,null,"","","",""]
[null,null,null,null,null,null,null,null,0,null,"","","",""]
[null,null,null,null,null,null,null,null,0,null,"","","",""]
[null,null,null,null,null,null,null,null,0,null,"","","",""]
[null,null,null,null,null,null,null,null,0,null,"","","",""]
[null,null,null,null,null,null,null,null,0,null,"","","",""]
[null,null,null,null,null,null,null,null,0,null,"","","",""]
[null,null,null,null,null,null,null,null,0,null,"","","",""]
[null,null,null,null,null,null,null,null,0,null,"","","",""]
[null,null,null,null,null,null,null,null,0,null,"","","",""]
[null,null,null,null,null,null,null,null,0,null,"","","",""]
[null,null,null,null,null,null,null,null,0,null,"","","",""]
[null,null,null,null,null,null,null,null,0,null,"","","",""]
[null,null,null,null,null,null,null,null,0,null,"","","",""]
[null,null,null,null,null,null,null,null,0,null,"","","",""]
[null,null,null,null,null,null,null,null,0,null,"","","",""]
[null,null,null,null,null,null,null,null,0,null,"","","",""]
[null,null,null,null,null,null,null,null,0,null,"","","",""]
[null,null,null,null,null,null,null,null,0,null,"","","",""]
[null,null,null,null,null,null,null,null,0,null,"","","",""]
[null,null,null,null,null,null,null,null,0,null,"","","",""]
[null,null,null,null,null,null,null,null,0,null,"","","",""]
[null,null,null,null,null,null,null,null,0,null,"","","",""]
[null,null,null,null,null,null,null,null,0,null,"","","",""]
[null,null,null,null,null,null,null,null,0,null,"","","",""]
[null,null,null,null,null,null,null,null,0,null,"","","",""]
[null,null,null,null,null,null,null,null,0,null,"","","",""]
[null,null,null,null,null,null,null,null,0,null,"","","",""]
[null,null,null,null,null,null,null,null,0,null,"","","",""]
[null,null,null,null,null,null,null,null,0,null,"","","",""]
[null,null,null,null,null,null,null,null,0,null,"","","",""]
[null,null,null,null,null,null,null,null,0,null,"","","",""]
[null,null,null,null,null,null,null,null,0,null,"","","",""]
[null,null,null,null,null,null,null,null,0,null,"","","",""]
[null,null,null,null,null,null,null,null,0,null,"","","",""]
[null,null,null,null,null,null,null,null,0,null,"","","",""]
[null,null,null,null,null,null,null,null,0,null,"","","",""]
[null,null,null,null,null,null,null,null,0,null,"","","",""]
[null,null,null,null,null,null,null,null,0,null,"","","",""]
[null,null,null,null,null,null,null,null,0,null,"","","",""]
[null,null,null,null,null,null,null,null,0,null,"","","",""]
[null,null,null,null,null,null,null,null,0,null,"","","",""]
[null,null,null,null,null,null,null,null,0,null,"","","",""]
[null,null,null,null,null,null,null,null,0,null,"","","",""]
[null,null,null,null,null,null,null,null,0,null,"","","",""]
[null,null,null,null,null,null,null,null,0,null,"","","",""]
[null,null,null,null,null,null,null,null,0,null,"","","",""]
[null,null,null,null,null,null,null,null,0,null,"","","",""]
[null,null,null,null,null,null,null,null,0,null,"","","",""]
[null,null,null,null,null,null,null,null,0,null,"","","",""]
[null,null,null,null,null,null,null,null,0,null,"","","",""]
[null,null,null,null,null,null,null,null,0,null,"","","",""]
[null,null,null,null,null,null,null,null,0,null,"","","",""]
[null,null,null,null,null,null,null,null,0,null,"","","",""]
[null,null,null,null,null,null,null,null,0,null,"","","",""]
[null,null,null,null,null,null,null,null,0,null,"","","",""]
[null,null,null,null,null,null,null,null,{"$f":"IFERROR(G652+H652,\"\")","v":0},null,{"$f":"IFERROR(IF(J652<>\"\",F652*J652,\"\"),\"\")","v":""},{"$f":"IFERROR(IF(J652<>\"\",G652*J652,\"\"),\"\")","v":""},{"$f":"IFERROR(IF(J652<>\"\",H652*J652,\"\"),\"\")","v":""},{"$f":"IFERROR(L652+M652,\"\")","v":""}]
[null,null,null,null,null,null,null,null,0,null,"","","",""]
[null,null,null,null,null,null,null,null,0,null,"","","",""]
[null,null,null,null,null,null,null,null,0,null,"","","",""]
[null,null,null,null,null,null,null,null,0,null,"","","",""]
[null,null,null,null,null,null,null,null,0,null,"","","",""]
[null,null,null,null,null,null,null,null,0,null,"","","",""]
[null,null,null,null,null,null,null,null,0,null,"","","",""]
[null,null,null,null,null,null,null,null,0,null,"","","",""]
[null,null,null,null,null,null,null,null,0,null,"","","",""]
[null,null,null,null,null,null,null,null,0,null,"","","",""]
[null,null,null,null,null,null,null,null,0,null,"","","",""]
[null,null,null,null,null,null,null,null,0,null,"","","",""]
[null,null,null,null,null,null,null,null,0,null,"","","",""]
[null,null,null,null,null,null,null,null,0,null,"","","",""]
[null,null,null,null,null,null,null,null,0,null,"","","",""]
[null,null,null,null,null,null,null,null,0,null,"","","",""]
[null,null,null,null,null,null,null,null,0,null,"","","",""]
[null,null,null,null,null,null,null,null,0,null,"","","",""]
[null,null,null,null,null,null,null,null,0,null,"","","",""]
[null,null,null,null,null,null,null,null,0,null,"","","",""]
[null,null,null,null,null,null,null,null,0,null,"","","",""]
[null,null,null,null,null,null,null,null,0,null,"","","",""]
[null,null,null,null,null,null,null,null,0,null,"","","",""]
[null,null,null,null,null,null,null,null,0,null,"","","",""]
[null,null,null,null,null,null,null,null,0,null,"","","",""]
[null,null,null,null,null,null,null,null,0,null,"","","",""]
[null,null,null,null,null,null,null,null,0,null,"","","",""]
[null,null,null,null,null,null,null,null,0,null,"","","",""]
[null,null,null,null,null,null,null,null,0,null,"","","",""]
[null,null,null,null,null,null,null,null,0,null,"","","",""]
[null,null,null,null,null,null,null,null,0,null,"","","",""]
[null,null,null,null,null,null,null,null,0,null,"","","",""]
[null,null,null,null,null,null,null,null,0,null,"","","",""]
[null,null,null,null,null,null,null,null,0,null,"","","",""]
[null,null,null,null,null,null,null,null,0,null,"","","",""]
[null,null,null,null,null,null,null,null,0,null,"","","",""]
[null,null,null,null,null,null,null,null,0,null,"","","",""]
[null,null,null,null,null,null,null,null,0,null,"","","",""]
[null,null,null,null,null,null,null,null,0,null,"","","",""]
[null,null,null,null,null,null,null,null,0,null,"","","",""]
[null,null,null,null,null,null,null,null,0,null,"","","",""]
[null,null,null,null,null,null,null,null,0,null,"","","",""]
[null,null,null,null,null,null,null,null,0,null,"","","",""]
[null,null,null,null,null,null,null,null,0,null,"","","",""]
[null,null,null,null,null,null,null,null,0,null,"","","",""]
[null,null,null,null,null,null,null,null,0,null,"","","",""]
[null,null,null,null,null,null,null,null,0,null,"","","",""]
[null,null,null,null,null,null,null,null,0,null,"","","",""]
[null,null,null,null,null,null,null,null,0,null,"","","",""]
[null,null,null,null,null,null,null,null,0,null,"","","",""]
[null,null,null,null,null,null,null,null,0,null,"","","",""]
[null,null,null,null,null,null,null,null,0,null,"","","",""]
[null,null,null,null,null,null,null,null,0,null,"","","",""]
[null,null,null,null,null,null,null,null,0,null,"","","",""]
[null,null,null,null,null,null,null,null,0,null,"","","",""]
[null,null,null,null,null,null,null,null,0,null,"","","",""]
[null,null,null,null,null,null,null,null,0,null,"","","",""]
[null,null,null,null,null,null,null,null,0,null,"","","",""]
[null,null,null,null,null,null,null,null,0,null,"","","",""]
[null,null,null,null,null,null,null,null,0,null,"","","",""]
[null,null,null,null,null,null,null,null,0,null,"","","",""]
[null,null,null,null,null,null,null,null,0,null,"","","",""]
[null,null,null,null,null,null,null,null,0,null,"","","",""]
[null,null,null,null,null,null,null,null,{"$f":"IFERROR(G716+H716,\"\")","v":0},null,{"$f":"IFERROR(IF(J716<>\"\",F716*J716,\"\"),\"\")","v":""},{"$f":"IFERROR(IF(J716<>\"\",G716*J716,\"\"),\"\")","v":""},{"$f":"IFERROR(IF(J716<>\"\",H716*J716,\"\"),\"\")","v":""},{"$f":"IFERROR(L716+M716,\"\")","v":""}]
[null,null,null,null,null,null,null,null,0,null,"","","",""]
[null,null,null,null,null,null,null,null,0,null,"","","",""]
[null,null,null,null,null,null,null,null,0,null,"","","",""]
[null,null,null,null,null,null,null,null,0,null,"","","",""]
[null,null,null,null,null,null,null,null,0,null,"","","",""]
[null,null,null,null,null,null,null,null,0,null,"","","",""]
[null,null,null,null,null,null,null,null,0,null,"","","",""]
[null,null,null,null,null,null,null,null,0,null,"","","",""]
[null,null,null,null,null,null,null,null,0,null,"","","",""]
[null,null,null,null,null,null,null,null,0,null,"","","",""]
[null,null,null,null,null,null,null,null,0,null,"","","",""]
[null,null,null,null,null,null,null,null,0,null,"","","",""]
[null,null,null,null,null,null,null,null,0,null,"","","",""]
[null,null,null,null,null,null,null,null,0,null,"","","",""]
[null,null,null,null,null,null,null,null,0,null,"","","",""]
[null,null,null,null,null,null,null,null,0,null,"","","",""]
[null,null,null,null,null,null,null,null,0,null,"","","",""]
[null,null,null,null,null,null,null,null,0,null,"","","",""]
[null,null,null,null,null,null,null,null,0,null,"","","",""]
[null,null,null,null,null,null,null,null,0,null,"","","",""]
[null,null,null,null,null,null,null,null,0,null,"","","",""]
[null,null,null,null,null,null,null,null,0,null,"","","",""]
[null,null,null,null,null,null,null,null,0,null,"","","",""]
[null,null,null,null,null,null,null,null,0,null,"","","",""]
[null,null,null,null,null,null,null,null,0,null,"","","",""]
[null,null,null,null,null,null,null,null,0,null,"","","",""]
[null,null,null,null,null,null,null,null,0,null,"","","",""]
[null,null,null,null,null,null,null,null,0,null,"","","",""]
[null,null,null,null,null,null,null,null,0,null,"","","",""]
[null,null,null,null,null,null,null,null,0,null,"","","",""]
[null,null,null,null,null,null,null,null,0,null,"","","",""]
[null,null,null,null,null,null,null,null,0,null,"","","",""]
[null,null,null,null,null,null,null,null,0,null,"","","",""]
[null,null,null,null,null,null,null,null,0,null,"","","",""]
[null,null,null,null,null,null,null,null,0,null,"","","",""]
[null,null,null,null,null,null,null,null,0,null,"","","",""]
[null,null,null,null,null,null,null,null,0,null,"","","",""]
[null,null,null,null,null,null,null,null,0,null,"","","",""]
[null,null,null,null,null,null,null,null,0,null,"","","",""]
[null,null,null,null,null,null,null,null,0,null,"","","",""]
[null,null,null,null,null,null,null,null,0,null,"","","",""]
[null,null,null,null,null,null,null,null,0,null,"","","",""]
[null,null,null,null,null,null,null,null,0,null,"","","",""]
[null,null,null,null,null,null,null,null,0,null,"","","",""]
[null,null,null,null,null,null,null,null,0,null,"","","",""]
[null,null,null,null,null,null,null,null,0,null,"","","",""]
[null,null,null,null,null,null,null,null,0,null,"","","",""]
[null,null,null,null,null,null,null,null,0,null,"","","",""]
[null,null,null,null,null,null,null,null,0,null,"","","",""]
[null,null,null,null,null,null,null,null,0,null,"","","",""]
[null,null,null,null,null,null,null,null,0,null,"","","",""]
[null,null,null,null,null,null,null,null,0,null,"","","",""]
[null,null,null,null,null,null,null,null,0,null,"","","",""]
[null,null,null,null,null,null,null,null,0,null,"","","",""]
[null,null,null,null,null,null,null,null,0,null,"","","",""]
[null,null,null,null,null,null,null,null,0,null,"","","",""]
[null,null,null,null,null,null,null,null,0,null,"","","",""]
[null,null,null,null,null,null,null,null,0,null,"","","",""]
[null,null,null,null,null,null,null,null,0,null,"","","",""]
[null,null,null,null,null,null,null,null,0,null,"","","",""]
[null,null,null,null,null,null,null,null,0,null,"","","",""]
[null,null,null,null,null,null,null,null,0,null,"","","",""]
[null,null,null,null,null,null,null,null,0,null,"","","",""]
[null,null,null,null,null,null,null,null,{"$f":"IFERROR(G780+H780,\"\")","v":0},null,{"$f":"IFERROR(IF(J780<>\"\",F780*J780,\"\"),\"\")","v":""},{"$f":"IFERROR(IF(J780<>\"\",G780*J780,\"\"),\"\")","v":""},{"$f":"IFERROR(IF(J780<>\"\",H780*J780,\"\"),\"\")","v":""},{"$f":"IFERROR(L780+M780,\"\")","v":""}]
[null,null,null,null,null,null,null,null,0,null,"","","",""]
[null,null,null,null,null,null,null,null,0,null,"","","",""]
[null,null,null,null,null,null,null,null,0,null,"","","",""]
[null,null,null,null,null,null,null,null,0,null,"","","",""]
[null,null,null,null,null,null,null,null,0,null,"","","",""]
[null,null,null,null,null,null,null,null,0,null,"","","",""]
[null,null,null,null,null,null,null,null,0,null,"","","",""]
[null,null,null,null,null,null,null,null,0,null,"","","",""]
[null,null,null,null,null,null,null,null,0,null,"","","",""]
[null,null,null,null,null,null,null,null,0,null,"","","",""]
[null,null,null,null,null,null,null,null,0,null,"","","",""]
[null,null,null,null,null,null,null,null,0,null,"","","",""]
[null,null,null,null,null,null,null,null,0,null,"","","",""]
[null,null,null,null,null,null,null,null,0,null,"","","",""]
[null,null,null,null,null,null,null,null,0,null,"","","",""]
[null,null,null,null,null,null,null,null,0,null,"","","",""]
[null,null,null,null,null,null,null,null,0,null,"","","",""]
[null,null,null,null,null,null,null,null,0,null,"","","",""]
[null,null,null,null,null,null,null,null,0,null,"","","",""]
[null,null,null,null,null,null,null,null,0,null,"","","",""]
[null,null,null,null,null,null,null,null,0,null,"","","",""]
[null,null,null,null,null,null,null,null,0,null,"","","",""]
[null,null,null,null,null,null,null,null,0,null,"","","",""]
[null,null,null,null,null,null,null,null,0,null,"","","",""]
[null,null,null,null,null,null,null,null,0,null,"","","",""]
[null,null,null,null,null,null,null,null,0,null,"","","",""]
[null,null,null,null,null,null,null,null,0,null,"","","",""]
[null,null,null,null,null,null,null,null,0,null,"","","",""]
[null,null,null,null,null,null,null,null,0,null,"","","",""]
[null,null,null,null,null,null,null,null,0,null,"","","",""]
[null,null,null,null,null,null,null,null,0,null,"","","",""]
[null,null,null,null,null,null,null,null,0,null,"","","",""]
[null,null,null,null,null,null,null,null,0,null,"","","",""]
[null,null,null,null,null,null,null,null,0,null,"","","",""]
[null,null,null,null,null,null,null,null,0,null,"","","",""]
[null,null,null,null,null,null,null,null,0,null,"","","",""]
[null,null,null,null,null,null,null,null,0,null,"","","",""]
[null,null,null,null,null,null,null,null,0,null,"","","",""]
[null,null,null,null,null,null,null,null,0,null,"","","",""]
[null,null,null,null,null,null,null,null,0,null,"","","",""]
[null,null,null,null,null,null,null,null,0,null,"","","",""]
[null,null,null,null,null,null,null,null,0,null,"","","",""]
[null,null,null,null,null,null,null,null,0,null,"","","",""]
[null,null,null,null,null,null,null,null,0,null,"","","",""]
[null,null,null,null,null,null,null,null,0,null,"","","",""]
[null,null,null,null,null,null,null,null,0,null,"","","",""]
[null,null,null,null,null,null,null,null,0,null,"","","",""]
[null,null,null,null,null,null,null,null,0,null,"","","",""]
[null,null,null,null,null,null,null,null,0,null,"","","",""]
[null,null,null,null,null,null,null,null,0,null,"","","",""]
[null,null,null,null,null,null,null,null,0,null,"","","",""]
[null,null,null,null,null,null,null,null,0,null,"","","",""]
[null,null,null,null,null,null,null,null,0,null,"","","",""]
[null,null,null,null,null,null,null,null,0,null,"","","",""]
[null,null,null,null,null,null,null,null,0,null,"","","",""]
[null,null,null,null,null,null,null,null,0,null,"","","",""]
[null,null,null,null,null,null,null,null,0,null,"","","",""]
[null,null,null,null,null,null,null,null,0,null,"","","",""]
[null,null,null,null,null,null,null,null,0,null,"","","",""]
[null,null,null,null,null,null,null,null,0,null,"","","",""]
[null,null,null,null,null,null,null,null,0,null,"","","",""]
[null,null,null,null,null,null,null,null,0,null,"","","",""]
[null,null,null,null,null,null,null,null,0,null,"","","",""]
[null,null,null,null,null,null,null,null,{"$f":"IFERROR(G844+H844,\"\")","v":0},null,{"$f":"IFERROR(IF(J844<>\"\",F844*J844,\"\"),\"\")","v":""},{"$f":"IFERROR(IF(J844<>\"\",G844*J844,\"\"),\"\")","v":""},{"$f":"IFERROR(IF(J844<>\"\",H844*J844,\"\"),\"\")","v":""},{"$f":"IFERROR(L844+M844,\"\")","v":""}]
[null,null,null,null,null,null,null,null,0,null,"","","",""]
[null,null,null,null,null,null,null,null,0,null,"","","",""]
[null,null,null,null,null,null,null,null,0,null,"","","",""]
[null,null,null,null,null,null,null,null,0,null,"","","",""]
[null,null,null,null,null,null,null,null,0,null,"","","",""]
[null,null,null,null,null,null,null,null,0,null,"","","",""]
[null,null,null,null,null,null,null,null,0,null,"","","",""]
[null,null,null,null,null,null,null,null,0,null,"","","",""]
[null,null,null,null,null,null,null,null,0,null,"","","",""]
[null,null,null,null,null,null,null,null,0,null,"","","",""]
[null,null,null,null,null,null,null,null,0,null,"","","",""]
[null,null,null,null,null,null,null,null,0,null,"","","",""]
[null,null,null,null,null,null,null,null,0,null,"","","",""]
[null,null,null,null,null,null,null,null,0,null,"","","",""]
[null,null,null,null,null,null,null,null,0,null,"","","",""]
[null,null,null,null,null,null,null,null,0,null,"","","",""]
[null,null,null,null,null,null,null,null,0,null,"","","",""]
[null,null,null,null,null,null,null,null,0,null,"","","",""]
[null,null,null,null,null,null,null,null,0,null,"","","",""]
[null,null,null,null,null,null,null,null,0,null,"","","",""]
[null,null,null,null,null,null,null,null,0,null,"","","",""]
[null,null,null,null,null,null,null,null,0,null,"","","",""]
[null,null,null,null,null,null,null,null,0,null,"","","",""]
[null,null,null,null,null,null,null,null,0,null,"","","",""]
[null,null,null,null,null,null,null,null,0,null,"","","",""]
[null,null,null,null,null,null,null,null,0,null,"","","",""]
[null,null,null,null,null,null,null,null,0,null,"","","",""]
[null,null,null,null,null,null,null,null,0,null,"","","",""]
[null,null,null,null,null,null,null,null,0,null,"","","",""]
[null,null,null,null,null,null,null,null,0,null,"","","",""]
[null,null,null,null,null,null,null,null,0,null,"","","",""]
[null,null,null,null,null,null,null,null,0,null,"","","",""]
[null,null,null,null,null,null,null,null,0,null,"","","",""]
[null,null,null,null,null,null,null,null,0,null,"","","",""]
[null,null,null,null,null,null,null,null,0,null,"","","",""]
[null,null,null,null,null,null,null,null,0,null,"","","",""]
[null,null,null,null,null,null,null,null,0,null,"","","",""]
[null,null,null,null,null,null,null,null,0,null,"","","",""]
[null,null,null,null,null,null,null,null,0,null,"","","",""]
[null,null,null,null,null,null,null,null,0,null,"","","",""]
[null,null,null,null,null,null,null,null,0,null,"","","",""]
[null,null,null,null,null,null,null,null,0,null,"","","",""]
[null,null,null,null,null,null,null,null,0,null,"","","",""]
[null,null,null,null,null,null,null,null,0,null,"","","",""]
[null,null,null,null,null,null,null,null,0,null,"","","",""]
[null,null,null,null,null,null,null,null,0,null,"","","",""]
[null,null,null,null,null,null,null,null,0,null,"","","",""]
[null,null,null,null,null,null,null,null,0,null,"","","",""]
[null,null,null,null,null,null,null,null,0,null,"","","",""]
[null,null,null,null,null,null,null,null,0,null,"","","",""]
[null,null,null,null,null,null,null,null,0,null,"","","",""]
[null,null,null,null,null,null,null,null,0,null,"","","",""]
[null,null,null,null,null,null,null,null,0,null,"","","",""]
[null,null,null,null,null,null,null,null,0,null,"","","",""]
[null,null,null,null,null,null,null,null,0,null,"","","",""]
[null,null,null,null,null,null,null,null,0,null,"","","",""]
[null,null,null,null,null,null,null,null,0,null,"","","",""]
[null,null,null,null,null,null,null,null,0,null,"","","",""]
[null,null,null,null,null,null,null,null,0,null,"","","",""]
[null,null,null,null,null,null,null,null,0,null,"","","",""]
[null,null,null,null,null,null,null,null,0,null,"","","",""]
[null,null,null,null,null,null,null,null,0,null,"","","",""]
[null,null,null,null,null,null,null,null,0,null,"","","",""]
[null,null,null,null,null,null,null,null,{"$f":"IFERROR(G908+H908,\"\")","v":0},null,{"$f":"IFERROR(IF(J908<>\"\",F908*J908,\"\"),\"\")","v":""},{"$f":"IFERROR(IF(J908<>\"\",G908*J908,\"\"),\"\")","v":""},{"$f":"IFERROR(IF(J908<>\"\",H908*J908,\"\"),\"\")","v":""},{"$f":"IFERROR(L908+M908,\"\")","v":""}]
[null,null,null,null,null,null,null,null,0,null,"","","",""]
[null,null,null,null,null,null,null,null,0,null,"","","",""]
[null,null,null,null,null,null,null,null,0,null,"","","",""]
[null,null,null,null,null,null,null,null,0,null,"","","",""]
[null,null,null,null,null,null,null,null,0,null,"","","",""]
[null,null,null,null,null,null,null,null,0,null,"","","",""]
[null,null,null,null,null,null,null,null,0,null,"","","",""]
[null,null,null,null,null,null,null,null,0,null,"","","",""]
[null,null,null,null,null,null,null,null,0,null,"","","",""]
[null,null,null,null,null,null,null,null,0,null,"","","",""]
[null,null,null,null,null,null,null,null,0,null,"","","",""]
[null,null,null,null,null,null,null,null,0,null,"","","",""]
[null,null,null,null,null,null,null,null,0,null,"","","",""]
[null,null,null,null,null,null,null,null,0,null,"","","",""]
[null,null,null,null,null,null,null,null,0,null,"","","",""]
[null,null,null,null,null,null,null,null,0,null,"","","",""]
[null,null,null,null,null,null,null,null,0,null,"","","",""]
[null,null,null,null,null,null,null,null,0,null,"","","",""]
[null,null,null,null,null,null,null,null,0,null,"","","",""]
[null,null,null,null,null,null,null,null,0,null,"","","",""]
[null,null,null,null,null,null,null,null,0,null,"","","",""]
[null,null,null,null,null,null,null,null,0,null,"","","",""]
[null,null,null,null,null,null,null,null,0,null,"","","",""]
[null,null,null,null,null,null,null,null,0,null,"","","",""]
[null,null,null,null,null,null,null,null,0,null,"","","",""]
[null,null,null,null,null,null,null,null,0,null,"","","",""]
[null,null,null,null,null,null,null,null,0,null,"","","",""]
[null,null,null,null,null,null,null,null,0,null,"","","",""]
[null,null,null,null,null,null,null,null,0,null,"","","",""]
[null,null,null,null,null,null,null,null,0,null,"","","",""]
[null,null,null,null,null,null,null,null,0,null,"","","",""]
[null,null,null,null,null,null,null,null,0,null,"","","",""]
[null,null,null,null,null,null,null,null,0,null,"","","",""]
[null,null,null,null,null,null,null,null,0,null,"","","",""]
[null,null,null,null,null,null,null,null,0,null,"","","",""]
[null,null,null,null,null,null,null,null,0,null,"","","",""]
[null,null,null,null,null,null,null,null,0,null,"","","",""]
[null,null,null,null,null,null,null,null,0,null,"","","",""]
[null,null,null,null,null,null,null,null,0,null,"","","",""]
[null,null,null,null,null,null,null,null,0,null,"","","",""]
[null,null,null,null,null,null,null,null,0,null,"","","",""]
[null,null,null,null,null,null,null,null,0,null,"","","",""]
[null,null,null,null,null,null,null,null,0,null,"","","",""]
[null,null,null,null,null,null,null,null,0,null,"","","",""]
[null,null,null,null,null,null,null,null,0,null,"","","",""]
[null,null,null,null,null,null,null,null,0,null,"","","",""]
[null,null,null,null,null,null,null,null,0,null,"","","",""]
[null,null,null,null,null,null,null,null,0,null,"","","",""]
[null,null,null,null,null,null,null,null,0,null,"","","",""]
[null,null,null,null,null,null,null,null,0,null,"","","",""]
[null,null,null,null,null,null,null,null,0,null,"","","",""]
[null,null,null,null,null,null,null,null,0,null,"","","",""]
[null,null,null,null,null,null,null,null,0,null,"","","",""]
[null,null,null,null,null,null,null,null,0,null,"","","",""]
[null,null,null,null,null,null,null,null,0,null,"","","",""]
[null,null,null,null,null,null,null,null,0,null,"","","",""]
[null,null,null,null,null,null,null,null,0,null,"","","",""]
[null,null,null,null,null,null,null,null,0,null,"","","",""]
[null,null,null,null,null,null,null,null,0,null,"","","",""]
[null,null,null,null,null,null,null,null,0,null,"","","",""]
[null,null,null,null,null,null,null,null,0,null,"","","",""]
[null,null,null,null,null,null,null,null,0,null,"","","",""]
[null,null,null,null,null,null,null,null,0,null,"","","",""]
[null,null,null,null,null,null,null,null,{"$f":"IFERROR(G972+H972,\"\")","v":0},null,{"$f":"IFERROR(IF(J972<>\"\",F972*J972,\"\"),\"\")","v":""},{"$f":"IFERROR(IF(J972<>\"\",G972*J972,\"\"),\"\")","v":""},{"$f":"IFERROR(IF(J972<>\"\",H972*J972,\"\"),\"\")","v":""},{"$f":"IFERROR(L972+M972,\"\")","v":""}]
[null,null,null,null,null,null,null,null,0,null,"","","",""]
[null,null,null,null,null,null,null,null,0,null,"","","",""]
[null,null,null,null,null,null,null,null,0,null,"","","",""]
[null,null,null,null,null,null,null,null,0,null,"","","",""]
[null,null,null,null,null,null,null,null,0,null,"","","",""]
[null,null,null,null,null,null,null,null,0,null,"","","",""]
[null,null,null,null,null,null,null,null,0,null,"","","",""]
[null,null,null,null,null,null,null,null,0,null,"","","",""]
[null,null,null,null,null,null,null,null,0,null,"","","",""]
[null,null,null,null,null,null,null,null,0,null,"","","",""]
[null,null,null,null,null,null,null,null,0,null,"","","",""]
[null,null,null,null,null,null,null,null,0,null,"","","",""]
[null,null,null,null,null,null,null,null,0,null,"","","",""]
[null,null,null,null,null,null,null,null,0,null,"","","",""]
[null,null,null,null,null,null,null,null,0,null,"","","",""]
[null,null,null,null,null,null,null,null,0,null,"","","",""]
[null,null,null,null,null,null,null,null,0,null,"","","",""]
[null,null,null,null,null,null,null,null,0,null,"","","",""]
[null,null,null,null,null,null,null,null,0,null,"","","",""]
[null,null,null,null,null,null,null,null,0,null,"","","",""]
[null,null,null,null,null,null,null,null,0,null,"","","",""]
[null,null,null,null,null,null,null,null,0,null,"","","",""]
[null,null,null,null,null,null,null,null,0,null,"","","",""]
[null,null,null,null,null,null,null,null,0,null,"","","",""]
[null,null,null,null,null,null,null,null,0,null,"","","",""]
[null,null,null,null,null,null,null,null,0,null,"","","",""]
[null,null,null,null,null,null,null,null,0,null,"","","",""]
[null,null,null,null,null,null,null,null,0,null,"","","",""]
[null,null,null,null,null,null,null,null,0,null,"","","",""]
[null,null,null,null,null,null,null,null,null,null,null,null,null,null,null,"x"]

{"sheet":"Sjabloon revisies","index":7,"n_rows":9,"n_cols":4,"rows_kept":9,"cut":false,"hidden":false,"merged":[]}
[]
[null,"Revisie","Datum","Omschrijving"]
[null,2,"2019-10-07","\n• mogelijkheid aangeven BTW verlegd\n"]
[null,3,"2019-11-22","• stroomdiagramme informatie plicht onderaannemer\n• mogelijkheid aangeven BTW verlegd\n• % overzicht\n• rapportering OA"]
[null,4,"2020-06-09","• opdeling mogelijk om te werken met derden\n• oplijning invul velden\n• ontdubbeling van sommige velden"]
[null,5,"2020-09-29","• Bestelbon nr toegevoegd\n• Default weergave aangepast. Deel derden en gemeenschappelijk zijn default verborgen\n• Correctie formule BTW deel gemeenschappelijk\n• Ondertekenings velden voorzien voor PCO & LA\n• Onderteken veld 'derden' enkel zichtbaar indien derden betrokken zijn\n• Tabblad 'hoe gebruiken' toegevoegd met toelichting rond gebruik werkbladen '3.VS1-A' en '4.VS1-B'"]
[null,6,"2020-12-14","• overzetten basis gegevens \"functie omschrijvingen \" naar tabblad 1. Overzicht Vorderingsstaat gecorrigeerd."]
[null,7,"2021-06-07","• beperking op VS nr veld (enkel nummeriek) om te voorkomen dat men tekst ingeeft in VS nr veld en dit de werking van de formules beïnvloed. Bijkomend toevoeging veld omschrijving, index om omschrijving mogelijk te maken\n• toevoeging alle contacten in werkblad 1.overzicht VS\n• in werkblad 2.vorderingsstaat \"Bedrag goedgekeurde wijzigingen\" aangepast zodat deelB exclusief herziening wordt getoond.\n• Datum niet langer automatisch als datum van vandaag ingesteld. Door gebruiker zelf in te vullen. Voorkomt verwarring indien VS als excel bestand wordt ingediend en nadien afgedrukt."]
[null,8,"2021-08-24","aanpassing configuratie om VS Nr 0 toe te laten"]